﻿Body Name,Service Area,Expenses Type,Invoice Payment Date,Transaction Number,Supplier Name,Net Amount
Manchester City Council,Chief Executives,Agency staff provision,03-Jul-23,5105879373,Michael Page International,"£7,238.00"
Manchester City Council,Chief Executives,Agency staff provision,03-Jul-23,5105879374,Michael Page International,"£3,168.00"
Manchester City Council,Chief Executives,Agency staff provision,03-Jul-23,5105879376,Michael Page International,"£4,500.00"
Manchester City Council,Chief Executives,Agency staff provision,03-Jul-23,5105879377,Michael Page International,"£9,690.00"
Manchester City Council,Chief Executives,Agency staff provision,03-Jul-23,5105879378,Michael Page International,"£4,282.60"
Manchester City Council,Chief Executives,Agency staff provision,03-Jul-23,5105879379,Michael Page International,"£7,910.00"
Manchester City Council,Chief Executives,Agency staff provision,03-Jul-23,5105879426,Buckingham Futures Limited,"£2,220.00"
Manchester City Council,Chief Executives,Agency staff provision,03-Jul-23,5105879433,Buckingham Futures Limited,"£3,550.35"
Manchester City Council,Manchester Leisure,Building Materials for direct delivery,03-Jul-23,5105879432,Cromwell Polythene Limited,"£1,036.80"
Manchester City Council,Housing General Fund,Building Works,03-Jul-23,5105879335,Manchester Care & Repair Ltd,"£103,908.40"
Manchester City Council,Corporate Services,Compensation Payments,03-Jul-23,1908153895,Peasegoods,"£3,600.00"
Manchester City Council,Housing Revenue Account,Council Dwelling Adaptations,03-Jul-23,5105879431,P Casey & Co Ltd,"-£174,109.90"
Manchester City Council,Housing Revenue Account,Council Dwelling Adaptations,03-Jul-23,5105879434,P Casey & Co Ltd,"£174,109.90"
Manchester City Council,Adult Social Care,Grant and subscriptions awarded,03-Jul-23,5105879427,LGBT Foundation,"£10,484.33"
Manchester City Council,Adult Social Care,Grant and subscriptions awarded,03-Jul-23,5105879441,Coffee4Craig Ltd,"£8,750.00"
Manchester City Council,Adult Social Care,Grant and subscriptions awarded,03-Jul-23,5105879382,On The Out CIC,"£2,147.58"
Manchester City Council,Adult Social Care,Grant and subscriptions awarded,03-Jul-23,5105879383,On The Out CIC,"£3,113.60"
Manchester City Council,Manchester Leisure,Grant and subscriptions awarded,03-Jul-23,5105879446,He-Art,"£1,500.00"
Manchester City Council,Manchester Leisure,Grant and subscriptions awarded,03-Jul-23,5105879445,Better We CIC,"£1,000.00"
Manchester City Council,Childrens & Education Services,Payments for services,03-Jul-23,5105879424,The 0161 Project Ltd,"£2,340.00"
Manchester City Council,Childrens & Education Services,Payments for services,03-Jul-23,5105879404,Redacted Personal Information,"£4,165.00"
Manchester City Council,Highways Services,Payments to Sub-Contractors,03-Jul-23,5105879443,Rosgal Ltd,"£19,750.00"
Manchester City Council,Manchester Leisure,Payments to Sub-Contractors,03-Jul-23,5105879375,M247 UK Ltd,"£6,000.00"
Manchester City Council,Manchester Leisure,Professional fees,03-Jul-23,5105879406,Redacted Personal Information,£600.00
Manchester City Council,Housing Revenue Account,Professional fees,03-Jul-23,5105879389,Switch2 Energey Limited,"£2,413.46"
Manchester City Council,Housing Revenue Account,Professional fees,03-Jul-23,5105879422,Switch2 Energey Limited,"£2,413.46"
Manchester City Council,Adult Social Care,Professional fees,03-Jul-23,5105879412,Riverside ECHG,"£3,142.66"
Manchester City Council,Adult Social Care,Third party payments to Health Authority,03-Jul-23,5105879337,Europia,"£16,320.00"
Manchester City Council,Childrens & Education Services,Third party payments to other Local Authorities,03-Jul-23,5105879410,Saint Ambrose College,£953.75
Manchester City Council,Regeneration Finance,Training and Development,03-Jul-23,1908149997,SL Training and Development Ltd,"£1,500.00"
Manchester City Council,Regeneration Finance,Training and Development,03-Jul-23,1908150060,Further Learning (UK) Ltd,"£2,829.17"
Manchester City Council,Childrens & Education Services,Transport Taxis,03-Jul-23,5105879318,MCR Blackcab Ltd,"-£8,406.29"
Manchester City Council,Adult Social Care,Equipment,03-Jul-23,1908107408,Redacted Personal Information,"£1,770.00"
Manchester City Council,Adult Social Care,Rents,03-Jul-23,5105879365,Ashley Property services,"£1,160.00"
Manchester City Council,Adult Social Care,Rents,03-Jul-23,5105879366,Ashley Property services,"£1,160.00"
Manchester City Council,Adult Social Care,Equipment,03-Jul-23,5105879367,Aidapt Bathrooms Ltd,"-£1,862.00"
Manchester City Council,Manchester Leisure,Testing Fees,03-Jul-23,5105879425,County Scientific Services,"£3,640.00"
Manchester City Council,Childrens & Education Services,Foster Payments,03-Jul-23,5105879408,Foster Talk,"£2,739.75"
Manchester City Council,Childrens & Education Services,Foster Payments,03-Jul-23,5105879409,Foster Talk,"£2,200.00"
Manchester City Council,Childrens & Education Services,Publications,03-Jul-23,5105879381,Family Links,"£1,441.50"
Manchester City Council,Adult Social Care,Equipment,03-Jul-23,5105879290,Herida Healthcare Plc,"£3,640.00"
Manchester City Council,Adult Social Care,Furniture,03-Jul-23,5105879395,Devon Homes,"£7,050.00"
Manchester City Council,Manchester Leisure,Court Fees,03-Jul-23,1908153899,Court Enforcment Services,"£1,875.49"
Manchester City Council,Chief Executives,Legal Fees,03-Jul-23,5105879368,Redacted Personal Information,"£2,856.00"
Manchester City Council,Chief Executives,Legal Fees,03-Jul-23,5105879392,Redacted Personal Information,"£1,966.25"
Manchester City Council,Chief Executives,Legal Fees,03-Jul-23,5105879397,Redacted Personal Information,"£1,725.63"
Manchester City Council,Chief Executives,Legal Fees,03-Jul-23,5105879399,Redacted Personal Information,"£1,404.00"
Manchester City Council,Adult Social Care,Bed & Breakfast Acc,03-Jul-23,5105879423,Redacted Personal Information,£560.00
Manchester City Council,Chief Executives,Agency staff provision,04-Jul-23,5105879555,Sellick Partnership (Legal) Ltd,"£20,577.95"
Manchester City Council,Adult Social Care,Agency staff provision,04-Jul-23,5105879500,Breakthrough Uk Ltd,"£19,444.70"
Manchester City Council,Chief Executives,Agency staff provision,04-Jul-23,5105879499,Ashberry Recruitment Ltd,"£1,574.64"
Manchester City Council,Chief Executives,Agency staff provision,04-Jul-23,5105879598,Buckingham Futures Limited,£732.60
Manchester City Council,Chief Executives,Agency staff provision,04-Jul-23,5105879437,NonStop Recruitment Ltd,"£11,281.86"
Manchester City Council,Chief Executives,Agency staff provision,04-Jul-23,5105879709,Isherwood Legal Limited,£720.00
Manchester City Council,Hospitality + Trading Services,Building Materials for direct delivery,04-Jul-23,5105879729,Killgerm Chemicals Ltd,"£3,616.10"
Manchester City Council,Manchester Leisure,Building Materials for direct delivery,04-Jul-23,5105879380,Tudor Environmental,£625.52
Manchester City Council,Housing General Fund,Building Works,04-Jul-23,1908153880,Redacted Personal Information,"£51,651.18"
Manchester City Council,Housing General Fund,Building Works,04-Jul-23,1908153961,Stannah Lift Services Ltd,"£3,389.00"
Manchester City Council,Housing General Fund,Building Works,04-Jul-23,1908153962,Stannah Lift Services Ltd,"£5,940.00"
Manchester City Council,Housing General Fund,Building Works,04-Jul-23,1908153963,Stannah Lift Services Ltd,"£6,009.00"
Manchester City Council,Housing General Fund,Building Works,04-Jul-23,1908153964,Stannah Lift Services Ltd,"£6,021.00"
Manchester City Council,Housing General Fund,Building Works,04-Jul-23,1908153965,Stannah Lift Services Ltd,"£7,808.00"
Manchester City Council,Housing General Fund,Building Works,04-Jul-23,1908153966,UPS Building & Maintenance Ltd,"£13,964.94"
Manchester City Council,Adult Social Care,Carer Support Payments ,04-Jul-23,5105879738,Relevant Persons Representative Svs,£650.70
Manchester City Council,Corporate Services,Compensation Payments,04-Jul-23,1908153969,Antony Hodari Holding Ltd,"£1,250.00"
Manchester City Council,Corporate Services,Compensation Payments,04-Jul-23,1908153889,Bond Turner Solicitors,"£11,000.00"
Manchester City Council,Manchester Leisure,Compensation Payments,04-Jul-23,1908153898,Taylor Rose TTKW Limited,"£7,500.00"
Manchester City Council,Corporate Services,Compensation Payments,04-Jul-23,1908153894,Emerald law,"£3,597.64"
Manchester City Council,Highways Services,Compensation Payments,04-Jul-23,1908153971,Thompsons Client Account,"£11,000.00"
Manchester City Council,Highways Services,Compensation Payments,04-Jul-23,1908154044,Thompsons No 1 Office Account,"£3,744.00"
Manchester City Council,Manchester Leisure,"Consumable items eg Toilet rolls, soap etc",04-Jul-23,1908154423,MERCHANT AND MILLS WHOLES,£588.97
Manchester City Council,Manchester Leisure,"Consumable items eg Toilet rolls, soap etc",04-Jul-23,1908154515,RHODAWN LTD T/A BOOKSP,£517.98
Manchester City Council,Childrens & Education Services,"Consumable items eg Toilet rolls, soap etc",04-Jul-23,1908154184,OAKDALE FURNISHINGS LI,£580.00
Manchester City Council,Childrens & Education Services,"Consumable items eg Toilet rolls, soap etc",04-Jul-23,1908154200,CURRYS ONLINE,£927.00
Manchester City Council,Childrens & Education Services,"Consumable items eg Toilet rolls, soap etc",04-Jul-23,1908154232,NFEE2213134M UKVI,"£1,086.20"
Manchester City Council,Childrens & Education Services,"Consumable items eg Toilet rolls, soap etc",04-Jul-23,1908154314,BRITISH DYSLEXIA ASSOC,£660.00
Manchester City Council,Childrens & Education Services,"Consumable items eg Toilet rolls, soap etc",04-Jul-23,1908154389,BRITISH DYSLEXIA ASSOC,£700.00
Manchester City Council,Regeneration Finance,External repairs and maintenance for buildings,04-Jul-23,5105879743,Quadient UK Ltd (Consumables),£517.47
Manchester City Council,Adult Social Care,External repairs and maintenance for buildings,04-Jul-23,5105879715,T F Jones Property Services Ltd,£828.52
Manchester City Council,Adult Social Care,External repairs and maintenance for buildings,04-Jul-23,5105879739,T F Jones Property Services Ltd,£946.88
Manchester City Council,Adult Social Care,External repairs and maintenance for buildings,04-Jul-23,5105879741,T F Jones Property Services Ltd,£828.52
Manchester City Council,Manchester Leisure,Goods purchased for resale in Council outlets,04-Jul-23,5105879564,Hachette UK Distribution,"£1,148.22"
Manchester City Council,Chief Executives,Grant and subscriptions awarded,04-Jul-23,5105879696,Zion Arts Centre Ltd,"£46,122.00"
Manchester City Council,Adult Social Care,Grant and subscriptions awarded,04-Jul-23,5105879582,Manchester Action On Street Health,"£6,717.00"
Manchester City Council,Chief Executives,Grant and subscriptions awarded,04-Jul-23,1908154281,ASANA.COM,"£5,694.00"
Manchester City Council,Chief Executives,I T Provision,04-Jul-23,5105879592,Insight Direct (Uk) Ltd,"£5,976.00"
Manchester City Council,Corporate Services,I T Provision,04-Jul-23,5105879714,Taranto Systems Ltd,"£3,406.80"
Manchester City Council,Chief Executives,I T Provision,04-Jul-23,5105879372,Repairtech Limited,£842.14
Manchester City Council,Manchester Leisure,Library Materials Acquisition,04-Jul-23,1908153928,Martin-Lavell Limited,"£1,212.59"
Manchester City Council,Manchester Leisure,Library Materials Acquisition,04-Jul-23,1908153946,Azhar Enterprises Ltd,"£2,025.50"
Manchester City Council,Manchester Leisure,Library Materials Acquisition,04-Jul-23,1908153947,Azhar Enterprises Ltd,"£1,017.50"
Manchester City Council,Manchester Leisure,Library Materials Acquisition,04-Jul-23,1908153955,Chorlton News,£599.27
Manchester City Council,Childrens & Education Services,Payments for services,04-Jul-23,5105879724,The Together Trust,"£1,375.00"
Manchester City Council,Childrens & Education Services,Payments for services,04-Jul-23,5105879595,Reed Employment Plc,"£12,243.00"
Manchester City Council,Adult Social Care,Payments for services,04-Jul-23,5105879663,LGBT Foundation,"£10,000.00"
Manchester City Council,Childrens & Education Services,Payments for services,04-Jul-23,5105879752,Rossendale School Priory,"£6,367.40"
Manchester City Council,Adult Social Care,Payments for services,04-Jul-23,5105879740,Brook,"£19,590.00"
Manchester City Council,Childrens & Education Services,Payments for services,04-Jul-23,5105879505,David Lewis Organisation,"£40,609.33"
Manchester City Council,Childrens & Education Services,Payments for services,04-Jul-23,5105879532,National Offender Mgt Services,"£7,368.00"
Manchester City Council,Childrens & Education Services,Payments for services,04-Jul-23,5105879533,National Offender Mgt Services,"£1,535.00"
Manchester City Council,Childrens & Education Services,Payments for services,04-Jul-23,5105879534,National Offender Mgt Services,"£25,140.00"
Manchester City Council,Childrens & Education Services,Payments for services,04-Jul-23,5105879691,Pinc College NW,"£28,836.05"
Manchester City Council,Childrens & Education Services,Payments for services,04-Jul-23,5105879682,Edstart Specialist Education Ltd,"£72,999.97"
Manchester City Council,Childrens & Education Services,Payments for services,04-Jul-23,5105879641,Sendcode CIC,"£4,845.00"
Manchester City Council,Childrens & Education Services,Payments for services,04-Jul-23,5105879660,EKC Group,"£4,626.39"
Manchester City Council,Childrens & Education Services,Payments for services,04-Jul-23,5105879674,SENsational Tutors Ltd,"£1,487.50"
Manchester City Council,Childrens & Education Services,Payments for services,04-Jul-23,5105879675,SENsational Tutors Ltd,£763.75
Manchester City Council,Manchester Leisure,Payments to Sub-Contractors,04-Jul-23,5105879545,Les Halman Nurseries Ltd,£633.72
Manchester City Council,Manchester Leisure,Payments to Sub-Contractors,04-Jul-23,5105879546,Les Halman Nurseries Ltd,"£1,318.98"
Manchester City Council,Manchester Leisure,Payments to Sub-Contractors,04-Jul-23,5105879548,Les Halman Nurseries Ltd,£672.54
Manchester City Council,Manchester Leisure,Payments to Sub-Contractors,04-Jul-23,5105879549,Les Halman Nurseries Ltd,"£1,123.68"
Manchester City Council,Manchester Leisure,Payments to Sub-Contractors,04-Jul-23,5105879550,Les Halman Nurseries Ltd,£675.44
Manchester City Council,Manchester Leisure,Payments to Sub-Contractors,04-Jul-23,5105879573,Les Halman Nurseries Ltd,£511.20
Manchester City Council,Manchester Leisure,Payments to Sub-Contractors,04-Jul-23,5105879576,Les Halman Nurseries Ltd,£765.78
Manchester City Council,Chief Executives,Payments to Sub-Contractors,04-Jul-23,5105879503,Redacted Personal Information,£736.35
Manchester City Council,Chief Executives,Payments to Sub-Contractors,04-Jul-23,5105879467,Redacted Personal Information,£933.90
Manchester City Council,Chief Executives,Payments to Sub-Contractors,04-Jul-23,5105879551,Redacted Personal Information,£595.30
Manchester City Council,Chief Executives,Payments to Sub-Contractors,04-Jul-23,5105879470,Redacted Personal Information,£682.50
Manchester City Council,Chief Executives,Payments to Sub-Contractors,04-Jul-23,5105879468,Redacted Personal Information,£622.50
Manchester City Council,Adult Social Care,Personal needs of client,04-Jul-23,5105879570,Drive Devilbiss Sidhil Ltd,"£28,000.00"
Manchester City Council,Childrens & Education Services,Personal needs of client,04-Jul-23,1908154536,RYANAIR,"£1,034.62"
Manchester City Council,Regeneration Finance,Professional fees,04-Jul-23,5105879493,Savills (UK) Ltd,"£3,750.00"
Manchester City Council,Adult Social Care,Professional fees,04-Jul-23,5105879638,George House Trust,"£5,000.00"
Manchester City Council,Childrens & Education Services,Professional fees,04-Jul-23,5105879429,Afruca,"£3,640.00"
Manchester City Council,Childrens & Education Services,Professional fees,04-Jul-23,5105879430,Afruca,"£3,445.00"
Manchester City Council,Childrens & Education Services,Professional fees,04-Jul-23,5105879461,Afruca,"£3,640.00"
Manchester City Council,Environment and Operations,Professional fees,04-Jul-23,5105879403,Smile Mediation,"£1,070.00"
Manchester City Council,Childrens & Education Services,Professional fees,04-Jul-23,5105879700,The Movez Movement,"£2,697.50"
Manchester City Council,Manchester Leisure,Professional fees,04-Jul-23,5105879673,Kofoworola Oyelele,£500.00
Manchester City Council,Regeneration Finance,Professional fees,04-Jul-23,1908150063,Bruntwood Management Services Ltd,"£24,533.33"
Manchester City Council,Regeneration Finance,Professional fees,04-Jul-23,1908150066,Bruntwood Management Services Ltd,"£2,000.00"
Manchester City Council,Manchester Leisure,Professional fees,04-Jul-23,5105879627,Redacted Personal Information,£604.50
Manchester City Council,Manchester Leisure,Professional fees,04-Jul-23,5105879456,Redacted Personal Information,"£1,000.00"
Manchester City Council,Manchester Leisure,Professional fees,04-Jul-23,5105879460,Redacted Personal Information,"£1,000.00"
Manchester City Council,Manchester Leisure,Refuse Collection,04-Jul-23,5105879599,GTS Steam Cleaners,£641.32
Manchester City Council,Regeneration Finance,Removal and Storage of Furniture,04-Jul-23,5105879567,Master Moves Ltd,£776.95
Manchester City Council,Regeneration Finance,Removal and Storage of Furniture,04-Jul-23,5105879568,Master Moves Ltd,£592.18
Manchester City Council,Regeneration Finance,Security,04-Jul-23,5105879597,Showsec International Ltd,"£17,280.18"
Manchester City Council,Corporate Services,Security,04-Jul-23,5105879713,Taranto Systems Ltd,"-£3,406.80"
Manchester City Council,Adult Social Care,Subsistence and Conference Expenses,04-Jul-23,5105879557,Thrive Manachester,"£6,250.00"
Manchester City Council,Adult Social Care,Subsistence and Conference Expenses,04-Jul-23,1908154547,WWW.LOCAL.GOV.UK,£594.00
Manchester City Council,Chief Executives,Subsistence and Conference Expenses,04-Jul-23,1908154360,PULLMAN LONDON ST PANCRAS,£676.00
Manchester City Council,Adult Social Care,Supported Accommodation,04-Jul-23,5105879559,Independent Living Alliance,"£10,878.00"
Manchester City Council,Childrens & Education Services,Third party payments to other Local Authorities,04-Jul-23,5105879723,Whitegate End,"£1,684.00"
Manchester City Council,Childrens & Education Services,Third party payments to other Local Authorities,04-Jul-23,5105879652,Firwood High School,"£5,566.25"
Manchester City Council,Manchester Leisure,Training and Development,04-Jul-23,5105879735,Future of Greater Manchester,"£1,000.00"
Manchester City Council,Corporate Services,Training and Development,04-Jul-23,1908154440,THE RETROFIT ACADEMY,"£5,000.00"
Manchester City Council,Childrens & Education Services,Transport Coach Hire,04-Jul-23,1908154108,Redacted Personal Information,£652.08
Manchester City Council,Childrens & Education Services,Transport Coach Hire,04-Jul-23,5105879694,Belle Vue Manchester,"£2,765.00"
Manchester City Council,Childrens & Education Services,Transport Taxis,04-Jul-23,5105879671,High Bee Ltd,"£3,240.00"
Manchester City Council,Chief Executives,Works and associated costs for Land and Buildings,04-Jul-23,5105879607,Buro Happold Limited,£950.00
Manchester City Council,Chief Executives,Works and associated costs for Land and Buildings,04-Jul-23,5105879610,Buro Happold Limited,"£1,083.00"
Manchester City Council,Chief Executives,Works and associated costs for Land and Buildings,04-Jul-23,5105879734,Gardiner & Theobald LLP,"£12,000.00"
Manchester City Council,Chief Executives,Counsel Costs,04-Jul-23,1908153076,Redacted Personal Information,£687.50
Manchester City Council,Adult Social Care,Counsel Costs,04-Jul-23,1908150061,Redacted Personal Information,"£1,112.50"
Manchester City Council,Regeneration Finance,Furniture,04-Jul-23,5105879699,BCL,"£1,095.03"
Manchester City Council,Adult Social Care,Water - Metered,04-Jul-23,5105879668,United Utilities Water Plc,"£2,316.09"
Manchester City Council,Manchester Leisure,Hire of Equipment,04-Jul-23,5105879578,Flowbird Smart City Uk Ltd,"£1,747.37"
Manchester City Council,Hospitality + Trading Services,Vehicle Hire Costs,04-Jul-23,5105879438,F.R.Sharrock Ltd,£667.00
Manchester City Council,Hospitality + Trading Services,Hire of Machinery,04-Jul-23,5105879584,R & M Developments Ltd,£858.80
Manchester City Council,Hospitality + Trading Services,Hire of Machinery,04-Jul-23,5105879585,R & M Developments Ltd,£858.80
Manchester City Council,Childrens & Education Services,First Home Grant,04-Jul-23,1908154132,Argos Business Solutions,£735.94
Manchester City Council,Childrens & Education Services,First Home Grant,04-Jul-23,1908154144,Argos Business Solutions,-£731.99
Manchester City Council,Chief Executives,Advertising,04-Jul-23,5105879544,Reach Publishing Services Ltd,"£3,631.42"
Manchester City Council,Childrens & Education Services,Hire of Premises,04-Jul-23,5105879711,Quaker Trading Ltd,"£4,362.08"
Manchester City Council,Chief Executives,Printing,04-Jul-23,5105879651,Wallace Printers Ltd,"£1,828.00"
Manchester City Council,Manchester Leisure,Hire of Machinery,04-Jul-23,5105879647,Bradshaw Lawnmover Engineers,"£1,041.41"
Manchester City Council,Highways Services,Legal Fees,04-Jul-23,1908149886,Department For Work & Pensions,£744.00
Manchester City Council,Highways Services,Legal Fees,04-Jul-23,1908153077,Department For Work & Pensions,"£2,739.00"
Manchester City Council,Hospitality + Trading Services,Equipment,04-Jul-23,1908154199,Stapletons Tyre Services,"£4,207.14"
Manchester City Council,Chief Executives,Postage,04-Jul-23,5105879581,Whistl North Ltd,"£6,060.38"
Manchester City Council,Adult Social Care,Rents,04-Jul-23,5105879702,Accommodation Links Ltd,"£89,463.43"
Manchester City Council,Chief Executives,Legal Fees,04-Jul-23,5105879439,Weightmans LLP Solicitors,"£3,652.00"
Manchester City Council,Chief Executives,Legal Fees,04-Jul-23,5105879440,Weightmans LLP Solicitors,"£3,567.25"
Manchester City Council,Chief Executives,Legal Fees,04-Jul-23,5105879611,Weightmans LLP Solicitors,"£1,577.00"
Manchester City Council,Chief Executives,Legal Fees,04-Jul-23,5105879612,Weightmans LLP Solicitors,"£1,103.50"
Manchester City Council,Chief Executives,Legal Fees,04-Jul-23,5105879614,Weightmans LLP Solicitors,"£2,353.00"
Manchester City Council,Childrens & Education Services,First Home Grant,04-Jul-23,1908154142,B & Q (CARD ONLY),£614.84
Manchester City Council,Corporate Services,Gym Membership,04-Jul-23,1908154058,Greenwich Leisure Limited,"£2,208.00"
Manchester City Council,Adult Social Care,Rents,04-Jul-23,5105879475,K L Properties,"£15,657.00"
Manchester City Council,Adult Social Care,Rents,04-Jul-23,5105879498,Housing Social Ltd,"£37,291.71"
Manchester City Council,Adult Social Care,Rents,04-Jul-23,5105879717,Housing Social Ltd,"£36,486.00"
Manchester City Council,Adult Social Care,Rents,04-Jul-23,5105879615,Manchester Housing Group Ltd,"£120,730.60"
Manchester City Council,Chief Executives,Counsel Costs,04-Jul-23,1908150119,Central Chambers,£500.00
Manchester City Council,Adult Social Care,Furniture,04-Jul-23,5105879655,Furniture Resource Centre Ltd,"£2,092.00"
Manchester City Council,Corporate Services,WPS Awards,04-Jul-23,5105879474,Furniture Resource Centre Ltd,£645.93
Manchester City Council,Corporate Services,WPS Awards,04-Jul-23,5105879477,Furniture Resource Centre Ltd,"£1,140.29"
Manchester City Council,Corporate Services,WPS Awards,04-Jul-23,5105879485,Furniture Resource Centre Ltd,£635.73
Manchester City Council,Corporate Services,WPS Awards,04-Jul-23,5105879486,Furniture Resource Centre Ltd,"£1,036.57"
Manchester City Council,Corporate Services,WPS Awards,04-Jul-23,5105879513,Furniture Resource Centre Ltd,£556.28
Manchester City Council,Corporate Services,WPS Awards,04-Jul-23,5105879526,Furniture Resource Centre Ltd,£720.05
Manchester City Council,Corporate Services,WPS Awards,04-Jul-23,5105879529,Furniture Resource Centre Ltd,£931.62
Manchester City Council,Corporate Services,WPS Awards,04-Jul-23,5105879604,Furniture Resource Centre Ltd,£640.37
Manchester City Council,Corporate Services,WPS Awards,04-Jul-23,5105879605,Furniture Resource Centre Ltd,"£1,328.96"
Manchester City Council,Chief Executives,Postage,04-Jul-23,5105879575,Civica Election Services,"£1,371.53"
Manchester City Council,Chief Executives,Postage,04-Jul-23,5105879606,Civica Election Services,"-£1,371.53"
Manchester City Council,Adult Social Care,Equipment,04-Jul-23,5105879596,Herida Healthcare Plc,"£1,995.38"
Manchester City Council,Adult Social Care,Rents,04-Jul-23,5105879643,M&D Residential Ltd,"£12,362.72"
Manchester City Council,Adult Social Care,Bed & Breakfast Acc,04-Jul-23,5105879650,Fairways Lodge,"£5,640.00"
Manchester City Council,Chief Executives,Counsel Costs,04-Jul-23,1908144546,DEANS COURT CHAMBERS,£960.00
Manchester City Council,Chief Executives,Counsel Costs,04-Jul-23,1908149937,DEANS COURT CHAMBERS,"£3,400.00"
Manchester City Council,Adult Social Care,Bed & Breakfast Acc,04-Jul-23,5105879670,247Hotel.Com,£875.00
Manchester City Council,Corporate Services,Car Parking Permits,04-Jul-23,5105879535,Yunex Ltd,"£18,726.38"
Manchester City Council,Adult Social Care,Rents,04-Jul-23,5105879644,NWA Housing Ltd,"£2,075.15"
Manchester City Council,Adult Social Care,Rents,04-Jul-23,5105879646,NWA Housing Ltd,"£2,193.73"
Manchester City Council,Adult Social Care,Rents,04-Jul-23,5105879591,Rtech Group Limited,"£9,150.01"
Manchester City Council,Adult Social Care,Rents,04-Jul-23,5105879658,Rtech Group Limited,"-£1,362.50"
Manchester City Council,Adult Social Care,Furniture,04-Jul-23,5105879698,Rtech Group Limited,"£1,362.50"
Manchester City Council,Adult Social Care,Rents,04-Jul-23,1908154620,Platinum Living Homes Ltd,"£1,700.00"
Manchester City Council,Regeneration Finance,Water - Metered,04-Jul-23,1908154323,Castle Water Limited,"£3,945.70"
Manchester City Council,Childrens & Education Services,Hire of Premises,04-Jul-23,1908154392,ALLPAY *L AND Q,£731.50
Manchester City Council,Manchester Leisure,Equipment,04-Jul-23,1908154109,MIDLANDS PRINTING COMPANY,"£1,964.99"
Manchester City Council,Childrens & Education Services,Equipment,04-Jul-23,1908154579,CURRYS ONLINE,£599.00
Manchester City Council,Manchester Leisure,Furniture,04-Jul-23,1908154413,WORKPLACEDEPOT.CO.UK,£796.58
Manchester City Council,Chief Executives,Stationery,04-Jul-23,1908154224,GOOGLE*CLOUD VFMVTZ,£623.86
Manchester City Council,Corporate Services,Legal Fees,04-Jul-23,1908153888,Weightmans Client Account,£875.00
Manchester City Council,Chief Executives,Counsel Costs,04-Jul-23,1908149875,Nexus Chambers,"£1,850.00"
Manchester City Council,Childrens & Education Services,Bed & Breakfast Acc,04-Jul-23,1908154175,VICTORIA PARK  RE,"£2,100.00"
Manchester City Council,Childrens & Education Services,Bed & Breakfast Acc,04-Jul-23,1908154177,ROOMS4NOW MY-PLACES,£695.67
Manchester City Council,Childrens & Education Services,Bed & Breakfast Acc,04-Jul-23,1908154207,BKG*HOTEL AT BOOKING.C,"£1,107.50"
Manchester City Council,Childrens & Education Services,Bed & Breakfast Acc,04-Jul-23,1908154239,BKG*HOTEL AT BOOKING.C,£500.50
Manchester City Council,Childrens & Education Services,Bed & Breakfast Acc,04-Jul-23,1908154260,BKG*HOTEL AT BOOKING.C,£812.25
Manchester City Council,Childrens & Education Services,Bed & Breakfast Acc,04-Jul-23,1908154316,BKG*HOTEL AT BOOKING.C,"£3,409.04"
Manchester City Council,Childrens & Education Services,Bed & Breakfast Acc,04-Jul-23,1908154361,BKG*HOTEL AT BOOKING.C,"£1,427.00"
Manchester City Council,Childrens & Education Services,Bed & Breakfast Acc,04-Jul-23,1908154394,BKG*HOTEL AT BOOKING.C,£533.00
Manchester City Council,Childrens & Education Services,Bed & Breakfast Acc,04-Jul-23,1908154409,BKG*HOTEL AT BOOKING.C,"£1,330.00"
Manchester City Council,Childrens & Education Services,Bed & Breakfast Acc,04-Jul-23,1908154422,BKG*HOTEL AT BOOKING.C,"£1,338.12"
Manchester City Council,Childrens & Education Services,Bed & Breakfast Acc,04-Jul-23,1908154446,VICTORIA PARK  RE,"£2,100.00"
Manchester City Council,Childrens & Education Services,Bed & Breakfast Acc,04-Jul-23,1908154502,BKG*HOTEL AT BOOKING.C,£784.00
Manchester City Council,Childrens & Education Services,Bed & Breakfast Acc,04-Jul-23,1908154524,REST&RECHARGE,"£4,950.00"
Manchester City Council,Childrens & Education Services,Bed & Breakfast Acc,04-Jul-23,1908154606,BKG*HOTEL AT BOOKING.C,£883.14
Manchester City Council,Manchester Leisure,Special Event,04-Jul-23,1908154530,MARTINS CRAFT BAKERY,£720.00
Manchester City Council,Childrens & Education Services,PNOR-Clothing,04-Jul-23,1908154484,MOSTON LANE APPLIANCES,£660.00
Manchester City Council,Childrens & Education Services,First Home Grant,04-Jul-23,1908154133,CAMILLA CARPETS HARPUR,£570.00
Manchester City Council,Childrens & Education Services,First Home Grant,04-Jul-23,1908154371,AO RETAIL LIMITED,£518.00
Manchester City Council,Childrens & Education Services,First Home Grant,04-Jul-23,1908154386,CAMILLA CARPETS HARPUR,£540.00
Manchester City Council,Childrens & Education Services,First Home Grant,04-Jul-23,1908154438,MILL CARPETS,£950.00
Manchester City Council,Chief Executives,Counsel Costs,04-Jul-23,1908149879,Redacted Personal Information,"£2,137.50"
Manchester City Council,Adult Social Care,Bed & Breakfast Acc,04-Jul-23,5105879649,Redacted Personal Information,"£11,376.00"
Manchester City Council,Adult Social Care,Bed & Breakfast Acc,04-Jul-23,5105879661,Redacted Personal Information,"£11,082.00"
Manchester City Council,Adult Social Care,Bed & Breakfast Acc,04-Jul-23,5105879716,Redacted Personal Information,"£6,090.00"
Manchester City Council,Chief Executives,Counsel Costs,04-Jul-23,1908150118,Redacted Personal Information,"£1,062.50"
Manchester City Council,Chief Executives,Agency staff provision,05-Jul-23,5105879814,Solace In Business Ltd,"£18,810.00"
Manchester City Council,Corporate Services,Agency staff provision,05-Jul-23,5105879844,Michael Page International,£672.00
Manchester City Council,Chief Executives,Agency staff provision,05-Jul-23,5105879787,Adecco Uk Ltd,"£1,685.40"
Manchester City Council,Chief Executives,Agency staff provision,05-Jul-23,5105879789,Adecco Uk Ltd,"£2,036.00"
Manchester City Council,Chief Executives,Agency staff provision,05-Jul-23,5105879818,Adecco Uk Ltd,"£1,685.40"
Manchester City Council,Chief Executives,Agency staff provision,05-Jul-23,5105879786,Search Consultancy Ltd,"£3,319.64"
Manchester City Council,Chief Executives,Agency staff provision,05-Jul-23,5105879815,Ashberry Recruitment Ltd,"£1,968.30"
Manchester City Council,Chief Executives,Agency staff provision,05-Jul-23,5105879816,Ashberry Recruitment Ltd,"£1,968.30"
Manchester City Council,Chief Executives,Agency staff provision,05-Jul-23,5105879819,Buckingham Futures Limited,"£1,087.80"
Manchester City Council,Chief Executives,Agency staff provision,05-Jul-23,5105879788,Tripod Partners,"£6,780.83"
Manchester City Council,Chief Executives,Agency staff provision,05-Jul-23,5105879817,Osbourne Thomas Ltd,"£6,531.25"
Manchester City Council,Childrens & Education Services,Agency staff provision,05-Jul-23,5105879953,Staff Resources Ltd,"£2,970.00"
Manchester City Council,Highways Services,Building Materials for direct delivery,05-Jul-23,5105880192,Ecomix Concrete Ltd,£675.00
Manchester City Council,Highways Services,Building Materials for direct delivery,05-Jul-23,5105880193,Ecomix Concrete Ltd,£810.00
Manchester City Council,Highways Services,Building Materials for direct delivery,05-Jul-23,5105880194,Ecomix Concrete Ltd,"£1,095.00"
Manchester City Council,Highways Services,Building Materials for direct delivery,05-Jul-23,5105880195,Ecomix Concrete Ltd,"£1,275.00"
Manchester City Council,Highways Services,Building Materials for direct delivery,05-Jul-23,5105880196,Ecomix Concrete Ltd,£832.50
Manchester City Council,Highways Services,Building Materials for direct delivery,05-Jul-23,5105880197,Ecomix Concrete Ltd,"£1,200.00"
Manchester City Council,Childrens & Education Services,Cleaning Equipment and Materials,05-Jul-23,1908157580,PHS Group,£537.88
Manchester City Council,Adult Social Care,Cleaning Equipment and Materials,05-Jul-23,1908157581,PHS Group,£790.03
Manchester City Council,Regeneration Finance,Cleaning Equipment and Materials,05-Jul-23,1908157606,PHS Group,£568.00
Manchester City Council,Corporate Services,Compensation Payments,05-Jul-23,1908154083,Sph Costing Services Ltd,£923.41
Manchester City Council,Corporate Services,Compensation Payments,05-Jul-23,1908154096,WTB Solicitors LLP,"£5,200.00"
Manchester City Council,Environment and Operations,Construction Works,05-Jul-23,5105879861,Balfour Beatty Living Places Ltd,"£10,454.60"
Manchester City Council,Regeneration Finance,Contract Cleaning External,05-Jul-23,5105879780,Halcyon Conservation Ltd,"£1,300.00"
Manchester City Council,Regeneration Finance,Contract Cleaning External,05-Jul-23,5105879795,Halcyon Conservation Ltd,"£1,110.00"
Manchester City Council,Corporate Services,Council Dwelling Fees,05-Jul-23,5105879827,Savills (UK) Ltd,"£15,000.00"
Manchester City Council,Housing Revenue Account,Council Dwelling Fees,05-Jul-23,5105879914,Life Environmental Services,"£3,600.00"
Manchester City Council,Manchester Leisure,Environmental Services,05-Jul-23,5105880207,Community Security (North West),£555.00
Manchester City Council,Chief Executives,General Office expenses,05-Jul-23,5105879746,Precise Media Monitoring Ltd,"£4,500.00"
Manchester City Council,Manchester Leisure,Goods purchased for resale in Council outlets,05-Jul-23,5105879712,Cornflower Ltd,£697.50
Manchester City Council,Adult Social Care,Grant and subscriptions awarded,05-Jul-23,5105879692,Riverside ECHG,"£42,000.00"
Manchester City Council,Adult Social Care,Grant and subscriptions awarded,05-Jul-23,5105879695,Riverside ECHG,"£93,030.50"
Manchester City Council,Adult Social Care,Grant and subscriptions awarded,05-Jul-23,5105879765,LGBT Foundation,"£10,484.33"
Manchester City Council,Adult Social Care,Grant and subscriptions awarded,05-Jul-23,5105879767,LGBT Foundation,"£10,484.33"
Manchester City Council,Adult Social Care,Grant and subscriptions awarded,05-Jul-23,5105879769,LGBT Foundation,"£10,484.37"
Manchester City Council,Childrens & Education Services,Grant Payments,05-Jul-23,1908154086,Paypoint,"£8,469.30"
Manchester City Council,Childrens & Education Services,Internal Repairs and Maintenance for buildings,05-Jul-23,5105879686,NU3PS,"£1,630.15"
Manchester City Council,Childrens & Education Services,Payments for services,05-Jul-23,5105879754,Rossendale School Priory,"£5,767.37"
Manchester City Council,Childrens & Education Services,Payments for services,05-Jul-23,5105879757,Rossendale School Priory,"£5,772.55"
Manchester City Council,Adult Social Care,Payments for services,05-Jul-23,5105879766,North West Media Ltd,"£5,000.00"
Manchester City Council,Childrens & Education Services,Payments for services,05-Jul-23,5105879942,Hopwood Hall College,"£28,332.59"
Manchester City Council,Childrens & Education Services,Payments for services,05-Jul-23,5105879800,Pinc College NW,"£8,000.00"
Manchester City Council,Childrens & Education Services,Payments for services,05-Jul-23,5105879690,Elizabeth Robertson,"-£1,200.00"
Manchester City Council,Childrens & Education Services,Payments for services,05-Jul-23,5105879903,Elizabeth Robertson,"£1,200.00"
Manchester City Council,Childrens & Education Services,Payments for services,05-Jul-23,5105879921,Elizabeth Robertson,£840.00
Manchester City Council,Childrens & Education Services,Payments for services,05-Jul-23,5105879922,Elizabeth Robertson,"£1,260.00"
Manchester City Council,Highways Services,Payments to Sub-Contractors,05-Jul-23,5105879457,Transport for Greater Manchester,"£9,356.56"
Manchester City Council,Highways Services,Payments to Sub-Contractors,05-Jul-23,5105879458,Transport for Greater Manchester,"£2,730.98"
Manchester City Council,Adult Social Care,Personal needs of client,05-Jul-23,5105879811,Schuchmann LLP,"£2,418.00"
Manchester City Council,Manchester Leisure,Professional fees,05-Jul-23,5105879941,Redacted Personal Information,£563.13
Manchester City Council,Manchester Leisure,Professional fees,05-Jul-23,5105879802,"Groundwork Manchester, Salford","£10,000.00"
Manchester City Council,Manchester Leisure,Professional fees,05-Jul-23,5105879805,"Groundwork Manchester, Salford","-£10,000.00"
Manchester City Council,Manchester Leisure,Professional fees,05-Jul-23,5105879806,"Groundwork Manchester, Salford","£10,000.00"
Manchester City Council,Adult Social Care,Professional fees,05-Jul-23,5105879933,Language Line Ltd,"£5,101.30"
Manchester City Council,Housing Revenue Account,Professional fees,05-Jul-23,5105879854,Citizens Advice Manchester,"£200,000.00"
Manchester City Council,Childrens & Education Services,Professional fees,05-Jul-23,5105879886,Afruca,"£1,820.00"
Manchester City Council,Highways Services,Professional fees,05-Jul-23,5105879865,Wilde Consultants Ltd,"£5,535.03"
Manchester City Council,Childrens & Education Services,Professional fees,05-Jul-23,5105879911,One Education Ltd,"£1,440.00"
Manchester City Council,Highways Services,Professional fees,05-Jul-23,5105879863,Causeway Technologies Ltd,"£1,125.00"
Manchester City Council,Highways Services,Professional fees,05-Jul-23,5105879864,Causeway Technologies Ltd,£750.00
Manchester City Council,Manchester Leisure,Professional fees,05-Jul-23,5105879909,Redacted Personal Information,£515.96
Manchester City Council,Childrens & Education Services,Public Transport,05-Jul-23,5105879664,Stagecoach Manchester,"£1,780.00"
Manchester City Council,Highways Services,Purchase of stores for re-distribution,05-Jul-23,5105879915,Instarmac Group Ltd,"£1,320.48"
Manchester City Council,Highways Services,Purchase of stores for re-distribution,05-Jul-23,5105879916,Instarmac Group Ltd,"£2,879.52"
Manchester City Council,Highways Services,Purchase of stores for re-distribution,05-Jul-23,5105879896,Manchester Safety Services Ltd,£549.50
Manchester City Council,Highways Services,Purchase of stores for re-distribution,05-Jul-23,5105880201,Benchmark Building Supplies Ltd,"£5,392.00"
Manchester City Council,Highways Services,Purchase of stores for re-distribution,05-Jul-23,5105880202,Benchmark Building Supplies Ltd,"£1,884.96"
Manchester City Council,Highways Services,Purchase of stores for re-distribution,05-Jul-23,5105880203,Benchmark Building Supplies Ltd,"£1,084.84"
Manchester City Council,Regeneration Finance,Security,05-Jul-23,5105879961,Showsec International Ltd,"£19,595.64"
Manchester City Council,Manchester Leisure,Security,05-Jul-23,5105880149,Community Security (North West),"£4,287.79"
Manchester City Council,Manchester Leisure,Security,05-Jul-23,5105880150,Community Security (North West),"£4,287.79"
Manchester City Council,Manchester Leisure,Security,05-Jul-23,5105880157,Community Security (North West),"£4,287.79"
Manchester City Council,Childrens & Education Services,Subsistence and Conference Expenses,05-Jul-23,5105879955,Hala Guest House,"£2,240.00"
Manchester City Council,Regeneration Finance,Subsistence and Conference Expenses,05-Jul-23,5105879866,Fellowship of Inspection Nominees,"£1,950.00"
Manchester City Council,Adult Social Care,Third party payments relating to Voluntary Organisations,05-Jul-23,5105879693,Riverside ECHG,"£155,124.00"
Manchester City Council,Adult Social Care,Third party payments relating to Voluntary Organisations,05-Jul-23,5105879728,Manchester Womens Aid,"£14,284.00"
Manchester City Council,Adult Social Care,Third party payments relating to Voluntary Organisations,05-Jul-23,5105879730,Manchester Womens Aid,"£14,284.83"
Manchester City Council,Adult Social Care,Third party payments relating to Voluntary Organisations,05-Jul-23,5105879747,Manchester Womens Aid,"£25,421.49"
Manchester City Council,Adult Social Care,Third party payments relating to Voluntary Organisations,05-Jul-23,5105879748,Manchester Womens Aid,"£25,421.41"
Manchester City Council,Regeneration Finance,Third party payments relating to Voluntary Organisations,05-Jul-23,5105879977,Impact For All,"£7,520.00"
Manchester City Council,Adult Social Care,Third party payments to Health Authority,05-Jul-23,1908149769,Newcastle upon Tyne NHS FT,£512.00
Manchester City Council,Childrens & Education Services,Third party payments to other Local Authorities,05-Jul-23,5105879951,Broomwood Primary School,£954.00
Manchester City Council,Childrens & Education Services,Third party payments to other Local Authorities,05-Jul-23,5105879959,Broomwood Primary School,"£5,020.00"
Manchester City Council,Childrens & Education Services,Third party payments to other Local Authorities,05-Jul-23,5105879962,Broomwood Primary School,"£2,105.00"
Manchester City Council,Childrens & Education Services,Third party payments to other Local Authorities,05-Jul-23,5105879804,Thomasson Memorial School,"£21,847.58"
Manchester City Council,Adult Social Care,Training and Development,05-Jul-23,5105879784,Bolton Mbc,£564.25
Manchester City Council,Regeneration Finance,Training and Development,05-Jul-23,5105879867,Ideas4learning Ltd,£960.00
Manchester City Council,Adult Social Care,Training and Development,05-Jul-23,5105879938,Kirwin Maclean Associates LTD,£500.00
Manchester City Council,Childrens & Education Services,Training and Development,05-Jul-23,1908067934,Institute For Change,"£52,000.00"
Manchester City Council,Childrens & Education Services,Transport Coach Hire,05-Jul-23,5105879687,School Transport Solutions,"£12,276.00"
Manchester City Council,Corporate Services,Transport Taxis,05-Jul-23,1908157615,Street Cars,"£5,000.00"
Manchester City Council,Corporate Services,Transport Taxis,05-Jul-23,1908157617,Street Cars,"£5,000.00"
Manchester City Council,Corporate Services,Transport Taxis,05-Jul-23,1908157618,Street Cars,"£11,963.00"
Manchester City Council,Corporate Services,Works and associated costs for Land and Buildings,05-Jul-23,5105879594,Apex Self Storage Ltd,"£1,331.02"
Manchester City Council,Chief Executives,Works and associated costs for Land and Buildings,05-Jul-23,5105879974,Pierre Angulaire Limited,"£18,720.00"
Manchester City Council,Chief Executives,Works and associated costs for Land and Buildings,05-Jul-23,5105879975,Pierre Angulaire Limited,"£9,720.00"
Manchester City Council,Chief Executives,Works and associated costs for Land and Buildings,05-Jul-23,5105879758,LDA Design,"£5,000.00"
Manchester City Council,Chief Executives,Works and associated costs for Land and Buildings,05-Jul-23,5105879759,LDA Design,"£5,000.00"
Manchester City Council,Corporate Services,Works and associated costs for Land and Buildings,05-Jul-23,5105879580,Bam Nuttall Ltd,"£376,940.84"
Manchester City Council,Chief Executives,Works and associated costs for Land and Buildings,05-Jul-23,1908060366,Studio Egret West,"£10,000.00"
Manchester City Council,Corporate Services,Postage,05-Jul-23,5105879764,Royal Mail Group Plc,"£10,713.70"
Manchester City Council,Corporate Services,Postage,05-Jul-23,5105879768,Royal Mail Group Plc,"£9,687.36"
Manchester City Council,Chief Executives,Postage,05-Jul-23,5105879832,Royal Mail Group Plc,"£3,360.00"
Manchester City Council,Corporate Services,Bank Charges,05-Jul-23,1908154094,Capita Business Services Ltd,"£10,989.59"
Manchester City Council,Hospitality + Trading Services,Hire of Machinery,05-Jul-23,5105880199,H & C Plant Hire Ltd,"£2,022.00"
Manchester City Council,Adult Social Care,Rents,05-Jul-23,5105879781,Amco Management,"£39,220.65"
Manchester City Council,Adult Social Care,Rents,05-Jul-23,5105879782,Amco Management,"£38,008.84"
Manchester City Council,Hospitality + Trading Services,Vehicle Hire Costs,05-Jul-23,5105879822,Enterprise Flex-E-Rent,"£1,773.46"
Manchester City Council,Chief Executives,Postage,05-Jul-23,5105879934,Whistl North Ltd,"£8,437.85"
Manchester City Council,Adult Social Care,Rents,05-Jul-23,5105879857,Accommodation Links Ltd,"£89,349.14"
Manchester City Council,Chief Executives,Legal Fees,05-Jul-23,5105879807,Weightmans LLP Solicitors,"£1,025.75"
Manchester City Council,Chief Executives,Legal Fees,05-Jul-23,5105879829,Weightmans LLP Solicitors,£605.75
Manchester City Council,Chief Executives,Legal Fees,05-Jul-23,5105879830,Weightmans LLP Solicitors,£701.75
Manchester City Council,Chief Executives,Legal Fees,05-Jul-23,5105879831,Weightmans LLP Solicitors,"£3,164.35"
Manchester City Council,Chief Executives,Legal Fees,05-Jul-23,5105879834,Weightmans LLP Solicitors,"£4,541.75"
Manchester City Council,Chief Executives,Legal Fees,05-Jul-23,5105879835,Weightmans LLP Solicitors,"£1,879.50"
Manchester City Council,Chief Executives,Legal Fees,05-Jul-23,5105879836,Weightmans LLP Solicitors,£822.50
Manchester City Council,Chief Executives,Legal Fees,05-Jul-23,5105879838,Weightmans LLP Solicitors,"£1,411.50"
Manchester City Council,Chief Executives,Legal Fees,05-Jul-23,5105879840,Weightmans LLP Solicitors,£942.25
Manchester City Council,Chief Executives,Legal Fees,05-Jul-23,5105879852,Weightmans LLP Solicitors,"£6,431.92"
Manchester City Council,Chief Executives,Legal Fees,05-Jul-23,5105879945,Weightmans LLP Solicitors,"£1,257.50"
Manchester City Council,Chief Executives,Legal Fees,05-Jul-23,5105879946,Weightmans LLP Solicitors,"£2,112.75"
Manchester City Council,Chief Executives,Legal Fees,05-Jul-23,5105879947,Weightmans LLP Solicitors,"£3,335.92"
Manchester City Council,Chief Executives,Legal Fees,05-Jul-23,5105879949,Weightmans LLP Solicitors,"£1,658.75"
Manchester City Council,Chief Executives,Legal Fees,05-Jul-23,5105879950,Weightmans LLP Solicitors,"£2,778.25"
Manchester City Council,Adult Social Care,Equipment,05-Jul-23,5105879684,Aidapt Bathrooms Ltd,£882.00
Manchester City Council,Adult Social Care,Equipment,05-Jul-23,5105879893,Aidapt Bathrooms Ltd,"£1,701.00"
Manchester City Council,Adult Social Care,Rents,05-Jul-23,5105879855,United Property Management Ltd,"£25,324.71"
Manchester City Council,Hospitality + Trading Services,Vehicle Hire Costs,05-Jul-23,5105879823,Peter Douglass Platforms,£666.00
Manchester City Council,Hospitality + Trading Services,Vehicle Hire Costs,05-Jul-23,5105879824,Peter Douglass Platforms,"£1,702.00"
Manchester City Council,Adult Social Care,Furniture,05-Jul-23,5105880145,Banner Group Limited,"£1,292.28"
Manchester City Council,Adult Social Care,Rents,05-Jul-23,5105879892,Housing Social Ltd,£550.00
Manchester City Council,Adult Social Care,Rents,05-Jul-23,5105879756,Eeven Homes Ltd.,"£18,218.57"
Manchester City Council,Hospitality + Trading Services,Vehicle Fuel Costs,05-Jul-23,5105879801,Standard Fuels Oils,"£10,933.38"
Manchester City Council,Adult Social Care,Rents,05-Jul-23,5105879688,Houses4Homes 4U Ltd,"£9,026.00"
Manchester City Council,Adult Social Care,Rents,05-Jul-23,5105879939,Houses4Homes 4U Ltd,"£9,026.00"
Manchester City Council,Adult Social Care,Rents,05-Jul-23,5105879944,M&D Residential Ltd,"£12,583.00"
Manchester City Council,Childrens & Education Services,Bed & Breakfast Acc,05-Jul-23,5105879960,Trafford Domestic Abuse Services,"£1,914.85"
Manchester City Council,Adult Social Care,Rents,05-Jul-23,5105879760,Rtech Group Limited,"£1,475.00"
Manchester City Council,Chief Executives,Examination Fees,05-Jul-23,5105879891,Toxicology UK Ltd,"£3,925.00"
Manchester City Council,Adult Social Care,Bed & Breakfast Acc,05-Jul-23,5105879897,Redacted Personal Information,£560.00
Manchester City Council,Chief Executives,Printing,05-Jul-23,5105879952,t/a R.C.D.,£875.00
Manchester City Council,Chief Executives,Agency staff provision,06-Jul-23,5105880267,Solace In Business Ltd,"£10,800.00"
Manchester City Council,Chief Executives,Agency staff provision,06-Jul-23,5105880268,Solace In Business Ltd,"£10,800.00"
Manchester City Council,Chief Executives,Agency staff provision,06-Jul-23,5105880269,Solace In Business Ltd,"£11,700.00"
Manchester City Council,Chief Executives,Agency staff provision,06-Jul-23,5105880270,Solace In Business Ltd,"£25,080.00"
Manchester City Council,Chief Executives,Agency staff provision,06-Jul-23,5105879812,Adecco Uk Ltd,"£2,036.00"
Manchester City Council,Chief Executives,Agency staff provision,06-Jul-23,5105879813,Adecco Uk Ltd,"£1,685.40"
Manchester City Council,Hospitality + Trading Services,Building Materials for direct delivery,06-Jul-23,1908158893,Arco Group Ltd,£545.78
Manchester City Council,Manchester Leisure,Building Materials for direct delivery,06-Jul-23,5105880297,Plantscape,£687.80
Manchester City Council,Hospitality + Trading Services,Building Materials for direct delivery,06-Jul-23,1908158338,SQ *NORTHERNARB TREE SERV,"£1,500.00"
Manchester City Council,Hospitality + Trading Services,Building Materials for direct delivery,06-Jul-23,1908158341,SQ *NORTHERNARB TREE SERV,"£1,500.00"
Manchester City Council,Hospitality + Trading Services,Building Materials for direct delivery,06-Jul-23,1908158516,SQ *NORTHERNARB TREE SERV,"£1,400.00"
Manchester City Council,Hospitality + Trading Services,Building Materials for direct delivery,06-Jul-23,1908158540,SQ *NORTHERNARB TREE SERV,"£1,400.00"
Manchester City Council,Hospitality + Trading Services,Building Materials for direct delivery,06-Jul-23,1908158563,SQ *NORTHERNARB TREE SERV,"£1,400.00"
Manchester City Council,Hospitality + Trading Services,Building Materials for direct delivery,06-Jul-23,1908159004,GEORGE HILL OLDHAM OLDHAM,"£5,721.93"
Manchester City Council,Hospitality + Trading Services,Building Materials for direct delivery,06-Jul-23,1908159045,PLASTICFURNITURECOMPANY.C,£548.35
Manchester City Council,Hospitality + Trading Services,Building Materials for direct delivery,06-Jul-23,1908159053,KINGFISHER DIRECT LTD,£943.08
Manchester City Council,Childrens Services,Building Works,06-Jul-23,5105880098,Co-op Academy Belle Vue,"£30,844.26"
Manchester City Council,Adult Social Care,Carer Support Payments ,06-Jul-23,5105880093,Talbot House Support Centre,"£7,788.55"
Manchester City Council,Adult Social Care,Carer Support Payments ,06-Jul-23,5105880094,Talbot House Support Centre,"£7,788.75"
Manchester City Council,Adult Social Care,Carer Support Payments ,06-Jul-23,5105880095,Talbot House Support Centre,"£7,788.75"
Manchester City Council,Adult Social Care,Cleaning Equipment and Materials,06-Jul-23,5105880315,Arrow County Supplies,"£2,985.00"
Manchester City Council,Environment and Operations,Construction Works,06-Jul-23,5105880067,Wilde Consultants Ltd,"-£3,722.04"
Manchester City Council,Environment and Operations,Construction Works,06-Jul-23,5105880069,Wilde Consultants Ltd,"£3,722.04"
Manchester City Council,Environment and Operations,Construction Works,06-Jul-23,5105880070,Wilde Consultants Ltd,"£4,070.50"
Manchester City Council,Environment and Operations,Construction Works,06-Jul-23,5105880071,Wilde Consultants Ltd,"£3,167.00"
Manchester City Council,Environment and Operations,Construction Works,06-Jul-23,5105880073,Wilde Consultants Ltd,"£1,583.50"
Manchester City Council,Environment and Operations,Construction Works,06-Jul-23,5105880075,Wilde Consultants Ltd,"£5,066.74"
Manchester City Council,Environment and Operations,Construction Works,06-Jul-23,5105880076,Wilde Consultants Ltd,"-£5,066.74"
Manchester City Council,Environment and Operations,Construction Works,06-Jul-23,5105880077,Wilde Consultants Ltd,"£6,234.37"
Manchester City Council,Environment and Operations,Construction Works,06-Jul-23,5105880078,Wilde Consultants Ltd,"-£6,234.37"
Manchester City Council,Environment and Operations,Construction Works,06-Jul-23,5105880079,Wilde Consultants Ltd,"£9,339.75"
Manchester City Council,Environment and Operations,Construction Works,06-Jul-23,5105880081,Wilde Consultants Ltd,"-£9,339.75"
Manchester City Council,Environment and Operations,Construction Works,06-Jul-23,5105880084,Wilde Consultants Ltd,"-£10,043.30"
Manchester City Council,Environment and Operations,Construction Works,06-Jul-23,5105880085,Wilde Consultants Ltd,"£10,043.30"
Manchester City Council,Environment and Operations,Construction Works,06-Jul-23,5105880086,Wilde Consultants Ltd,"£10,357.37"
Manchester City Council,Environment and Operations,Construction Works,06-Jul-23,5105880087,Wilde Consultants Ltd,"£10,820.25"
Manchester City Council,Environment and Operations,Construction Works,06-Jul-23,5105880088,Wilde Consultants Ltd,"£12,231.38"
Manchester City Council,Environment and Operations,Construction Works,06-Jul-23,5105880101,Wilde Consultants Ltd,"£3,215.95"
Manchester City Council,Environment and Operations,Construction Works,06-Jul-23,5105880102,Wilde Consultants Ltd,"£4,094.75"
Manchester City Council,Environment and Operations,Construction Works,06-Jul-23,5105880103,Wilde Consultants Ltd,"£3,521.07"
Manchester City Council,Environment and Operations,Construction Works,06-Jul-23,5105880091,Balfour Beatty Living Places Ltd,"£2,316.09"
Manchester City Council,Adult Social Care,"Consumable items eg Toilet rolls, soap etc",06-Jul-23,1908158140,Screwfix Direct T/A Trade UK,£846.53
Manchester City Council,Childrens & Education Services,"Consumable items eg Toilet rolls, soap etc",06-Jul-23,1908159054,Argos Business Solutions,£701.45
Manchester City Council,Childrens & Education Services,"Consumable items eg Toilet rolls, soap etc",06-Jul-23,1908159060,Argos Business Solutions,£645.93
Manchester City Council,Adult Social Care,"Consumable items eg Toilet rolls, soap etc",06-Jul-23,1908158763,Amazon Co.Uk,£819.80
Manchester City Council,Adult Social Care,"Consumable items eg Toilet rolls, soap etc",06-Jul-23,1908158345,PAYPAL (UK) P CARD ONLY,"£3,789.96"
Manchester City Council,Manchester Leisure,"Consumable items eg Toilet rolls, soap etc",06-Jul-23,1908158191,THE FUN EXPERTS,"£1,194.00"
Manchester City Council,Manchester Leisure,"Consumable items eg Toilet rolls, soap etc",06-Jul-23,1908158509,ROYAL MAIL ONLINE SHOP,£750.00
Manchester City Council,Manchester Leisure,"Consumable items eg Toilet rolls, soap etc",06-Jul-23,1908159029,ROYAL MAIL ONLINE SHOP,£750.00
Manchester City Council,Childrens & Education Services,"Consumable items eg Toilet rolls, soap etc",06-Jul-23,1908158917,FAMILY LINKS,£630.60
Manchester City Council,Childrens & Education Services,"Consumable items eg Toilet rolls, soap etc",06-Jul-23,1908159050,APPNTECH OUTLET,£743.88
Manchester City Council,Adult Social Care,"Consumable items eg Toilet rolls, soap etc",06-Jul-23,1908158216,REALTY,£528.00
Manchester City Council,Adult Social Care,"Consumable items eg Toilet rolls, soap etc",06-Jul-23,1908158268,CROWN HOMES,"£2,036.15"
Manchester City Council,Adult Social Care,"Consumable items eg Toilet rolls, soap etc",06-Jul-23,1908158276,STORAGE WORLD,£685.36
Manchester City Council,Adult Social Care,"Consumable items eg Toilet rolls, soap etc",06-Jul-23,1908158282,CROWN HOMES,"£2,850.00"
Manchester City Council,Adult Social Care,"Consumable items eg Toilet rolls, soap etc",06-Jul-23,1908158290,CROWN HOMES,"£2,475.00"
Manchester City Council,Adult Social Care,"Consumable items eg Toilet rolls, soap etc",06-Jul-23,1908158383,BRITISH GAS OTP,"£1,079.44"
Manchester City Council,Adult Social Care,"Consumable items eg Toilet rolls, soap etc",06-Jul-23,1908158461,JRS LUXURY CARS,"£1,550.00"
Manchester City Council,Adult Social Care,"Consumable items eg Toilet rolls, soap etc",06-Jul-23,1908158465,SURVEYMONKEYCORE,£900.00
Manchester City Council,Adult Social Care,"Consumable items eg Toilet rolls, soap etc",06-Jul-23,1908158494,BRITISH GAS ONLINE,£679.42
Manchester City Council,Adult Social Care,"Consumable items eg Toilet rolls, soap etc",06-Jul-23,1908158564,BRITISH GAS ONLINE,£845.26
Manchester City Council,Adult Social Care,"Consumable items eg Toilet rolls, soap etc",06-Jul-23,1908158678,S AND S SALES MCR LTD,"£2,700.00"
Manchester City Council,Adult Social Care,"Consumable items eg Toilet rolls, soap etc",06-Jul-23,1908158873,CRAVERN PROPERTIES,"£2,651.16"
Manchester City Council,Adult Social Care,"Consumable items eg Toilet rolls, soap etc",06-Jul-23,1908158879,CRAVERN PROPERTIES,"£3,000.00"
Manchester City Council,Adult Social Care,"Consumable items eg Toilet rolls, soap etc",06-Jul-23,1908158911,CRAVERN PROPERTIES,"£3,000.00"
Manchester City Council,Adult Social Care,"Consumable items eg Toilet rolls, soap etc",06-Jul-23,1908158949,UK MINIBUS HIRE,"£1,650.00"
Manchester City Council,Manchester Leisure,Contract Cleaning External,06-Jul-23,5105879777,Clearview Event Services Limited,"£14,530.00"
Manchester City Council,Regeneration Finance,Contract Cleaning External,06-Jul-23,5105880298,Halcyon Conservation Ltd,"£1,720.00"
Manchester City Council,Housing Revenue Account,Council Dwelling Adaptations,06-Jul-23,5105880229,Stannah Lift Services Ltd,"£6,111.00"
Manchester City Council,Housing Revenue Account,Council Dwelling Fees,06-Jul-23,5105880272,Life Environmental Services,"£2,850.00"
Manchester City Council,Regeneration Finance,External repairs and maintenance for buildings,06-Jul-23,5105880257,Access UK Ltd,£696.16
Manchester City Council,Childrens & Education Services,General Office expenses,06-Jul-23,1908158589,EE / Orange,£789.95
Manchester City Council,Manchester Leisure,General Office expenses,06-Jul-23,5105880006,Eldercare (UK) Ltd,"£1,521.12"
Manchester City Council,Chief Executives,General Office expenses,06-Jul-23,1908159233,WWW.APLPACKAGING.CO.UK,£699.96
Manchester City Council,Chief Executives,General Office expenses,06-Jul-23,1908159258,HIGH STREET VOUCHERS,"£7,400.00"
Manchester City Council,Adult Social Care,Grant and subscriptions awarded,06-Jul-23,5105879928,Caritas Diocese of Salford,"£63,123.50"
Manchester City Council,Adult Social Care,Grant and subscriptions awarded,06-Jul-23,5105879984,The Booth Centre,"£10,121.08"
Manchester City Council,Manchester Leisure,Grant and subscriptions awarded,06-Jul-23,5105879885,Whalley Range Youth Opps Asc WHIZ,"£20,000.00"
Manchester City Council,Manchester Leisure,Grant and subscriptions awarded,06-Jul-23,5105880186,Parochial Church of St Nicholas,£500.00
Manchester City Council,Adult Social Care,Grant and subscriptions awarded,06-Jul-23,5105880096,Divrse Ltd,"£57,195.00"
Manchester City Council,Adult Social Care,Grant Payments,06-Jul-23,5105880295,Twinkl,"£2,049.90"
Manchester City Council,Corporate Services,I T Provision,06-Jul-23,5105880215,Insight Direct (Uk) Ltd,"£1,602.20"
Manchester City Council,Chief Executives,I T Provision,06-Jul-23,5105880281,Insight Direct (Uk) Ltd,£538.05
Manchester City Council,Manchester Leisure,I T Provision,06-Jul-23,5105879927,Eldercare (UK) Ltd,"£1,365.63"
Manchester City Council,Manchester Leisure,I T Provision,06-Jul-23,5105879930,Eldercare (UK) Ltd,"£1,321.56"
Manchester City Council,Manchester Leisure,I T Provision,06-Jul-23,5105880001,Eldercare (UK) Ltd,"£1,365.63"
Manchester City Council,Manchester Leisure,I T Provision,06-Jul-23,5105880002,Eldercare (UK) Ltd,"£1,545.04"
Manchester City Council,Hospitality + Trading Services,Internal Repairs and Maintenance for buildings,06-Jul-23,5105879727,Event Technical Support,£896.00
Manchester City Council,Manchester Leisure,Library Materials Acquisition,06-Jul-23,1908158078,HACHETTE UK DISTRIBUTI,"£1,623.37"
Manchester City Council,Manchester Leisure,Library Materials Acquisition,06-Jul-23,1908158080,HACHETTE UK DISTRIBUTI,"£1,623.37"
Manchester City Council,Regeneration Finance,Licences Purchase,06-Jul-23,5105879995,AVOIRA Limited,£737.50
Manchester City Council,Childrens & Education Services,Licences Purchase,06-Jul-23,5105880048,Insight Direct (Uk) Ltd,£501.04
Manchester City Council,Adult Social Care,Payments for services,06-Jul-23,5105880260,ADFERIAD RECOVERY,"£9,450.00"
Manchester City Council,Adult Social Care,Payments for services,06-Jul-23,5105880271,ADFERIAD RECOVERY,"£9,450.00"
Manchester City Council,Adult Social Care,Payments for services,06-Jul-23,5105879978,ACORN Recovery Projects,"£3,000.00"
Manchester City Council,Adult Social Care,Payments for services,06-Jul-23,5105879991,Mosscare St Vincent's Housing,£517.36
Manchester City Council,Adult Social Care,Payments for services,06-Jul-23,5105879992,Creative Support Ltd,"£3,216.80"
Manchester City Council,Childrens & Education Services,Payments for services,06-Jul-23,5105880061,Teenage Kicks Ltd,"£9,210.53"
Manchester City Council,Highways Services,Payments to Sub-Contractors,06-Jul-23,5105879889,Egerton Recovery Ltd,£880.00
Manchester City Council,Highways Services,Payments to Sub-Contractors,06-Jul-23,5105880089,Wilde Consultants Ltd,"-£16,854.48"
Manchester City Council,Highways Services,Payments to Sub-Contractors,06-Jul-23,5105879998,Steer Davies & Geave Limited,"£1,265.01"
Manchester City Council,Manchester Leisure,Payments to Sub-Contractors,06-Jul-23,5105879845,Scrutiny Cleaning Services,"£7,506.34"
Manchester City Council,Manchester Leisure,Payments to Sub-Contractors,06-Jul-23,5105880292,Scrutiny Cleaning Services,£592.48
Manchester City Council,Chief Executives,Payments to Sub-Contractors,06-Jul-23,5105879501,Redacted Personal Information,£709.50
Manchester City Council,Highways Services,Professional fees,06-Jul-23,5105879856,Mace Ltd,"£12,315.60"
Manchester City Council,Adult Social Care,Professional fees,06-Jul-23,5105880252,Riverside ECHG,"£5,836.17"
Manchester City Council,Childrens & Education Services,Professional fees,06-Jul-23,1908158649,Amazon Co.Uk,"£1,154.49"
Manchester City Council,Manchester Leisure,Professional fees,06-Jul-23,5105880264,Manchester Central,"£1,250.00"
Manchester City Council,Highways Services,Professional fees,06-Jul-23,5105880104,Wilde Consultants Ltd,"£8,983.75"
Manchester City Council,Childrens & Education Services,Professional fees,06-Jul-23,5105880316,One Education Ltd,"£6,675.00"
Manchester City Council,Childrens & Education Services,Professional fees,06-Jul-23,5105880317,One Education Ltd,"£15,500.00"
Manchester City Council,Childrens & Education Services,Professional fees,06-Jul-23,5105880273,Smoothwall Ltd,"£5,000.00"
Manchester City Council,Adult Social Care,Professional fees,06-Jul-23,5105880224,Home - Start Manchester South,"£7,500.00"
Manchester City Council,Childrens & Education Services,Professional fees,06-Jul-23,5105880017,UK Language Solutions Ltd,"£1,027.50"
Manchester City Council,Manchester Leisure,Professional fees,06-Jul-23,5105880255,Eville & Jones Commercial Services,"£6,330.86"
Manchester City Council,Corporate Services,Professional fees,06-Jul-23,5105880038,NE1 Procurement Services Limited,"-£7,692.31"
Manchester City Council,Corporate Services,Professional fees,06-Jul-23,5105880039,NE1 Procurement Services Limited,"£7,692.31"
Manchester City Council,Manchester Leisure,Refuse Collection,06-Jul-23,5105880214,GTS Steam Cleaners,"£2,443.11"
Manchester City Council,Manchester Leisure,Refuse Collection,06-Jul-23,5105880280,Redgate Holdings Ltd,"£4,889.78"
Manchester City Council,Manchester Leisure,Refuse Collection,06-Jul-23,5105880291,Redgate Holdings Ltd,"£5,434.97"
Manchester City Council,Manchester Leisure,Responsive Repairs Work,06-Jul-23,5105879491,EQUANS Regeneration Limited,"£200,626.92"
Manchester City Council,Manchester Leisure,Responsive Repairs Work,06-Jul-23,5105880029,EQUANS Regeneration Limited,"-£200,626.92"
Manchester City Council,Adult Social Care,Supported Accommodation,06-Jul-23,5105880289,Reed Employment Plc,"£1,479.26"
Manchester City Council,Adult Social Care,Third party payments relating to Voluntary Organisations,06-Jul-23,5105880042,The Shaw Centre,"£16,967.36"
Manchester City Council,Adult Social Care,Third party payments relating to Voluntary Organisations,06-Jul-23,5105880238,Gaddum Centre,"£128,480.00"
Manchester City Council,Adult Social Care,Third party payments relating to Voluntary Organisations,06-Jul-23,5105880300,Places for People Living +,£781.25
Manchester City Council,Childrens & Education Services,Third party payments relating to Voluntary Organisations,06-Jul-23,5105879987,Talbot House Support Centre,"£7,500.00"
Manchester City Council,Childrens & Education Services,Third party payments relating to Voluntary Organisations,06-Jul-23,5105879989,Talbot House Support Centre,"-£7,500.00"
Manchester City Council,Adult Social Care,Third party payments relating to Voluntary Organisations,06-Jul-23,5105879860,LMCP Care Link,"£10,000.00"
Manchester City Council,Adult Social Care,Third party payments relating to Voluntary Organisations,06-Jul-23,5105880045,Manchester Womens Aid,"£14,284.83"
Manchester City Council,Adult Social Care,Third party payments relating to Voluntary Organisations,06-Jul-23,5105880046,Manchester Womens Aid,"£25,421.41"
Manchester City Council,Adult Social Care,Third party payments relating to Voluntary Organisations,06-Jul-23,5105880047,Manchester Womens Aid,"£6,340.66"
Manchester City Council,Regeneration Finance,Third party payments relating to Voluntary Organisations,06-Jul-23,5105880024,Sow the City,"£1,920.00"
Manchester City Council,Regeneration Finance,Third party payments relating to Voluntary Organisations,06-Jul-23,5105879980,Reform Radio CIC,"£27,976.00"
Manchester City Council,Regeneration Finance,Training and Development,06-Jul-23,5105880253,QA Ltd,"£2,745.00"
Manchester City Council,Childrens & Education Services,Transport Taxis,06-Jul-23,5105879319,MCR Blackcab Ltd,"£8,406.29"
Manchester City Council,Childrens & Education Services,Transport Taxis,06-Jul-23,5105880209,Bury Council,"£4,070.69"
Manchester City Council,Childrens & Education Services,Transport Taxis,06-Jul-23,5105880210,Redacted Personal Information,"£1,676.80"
Manchester City Council,Hospitality + Trading Services,Vehicle Repairs,06-Jul-23,5105880030,LDS Motor Bodies Ltd,"£2,477.04"
Manchester City Council,Childrens Services,Works and associated costs for Land and Buildings,06-Jul-23,5105879749,PLP Construction Ltd,"£70,935.94"
Manchester City Council,Housing Revenue Account,Works and associated costs for Land and Buildings,06-Jul-23,5105880236,Faithful & Gould Ltd,"£24,070.20"
Manchester City Council,Housing Revenue Account,Works and associated costs for Land and Buildings,06-Jul-23,5105880241,Faithful & Gould Ltd,"£9,860.40"
Manchester City Council,Adult Social Care,Equipment,06-Jul-23,5105879985,Prism Medical UK Carefree Division,"£5,990.00"
Manchester City Council,Manchester Leisure,Electricity,06-Jul-23,1700152954,Scottish & Southern Energy Plc,-£592.27
Manchester City Council,Manchester Leisure,Electricity,06-Jul-23,1700152966,Scottish & Southern Energy Plc,-£592.27
Manchester City Council,Manchester Leisure,Electricity,06-Jul-23,1700152968,Scottish & Southern Energy Plc,-£500.03
Manchester City Council,Manchester Leisure,Electricity,06-Jul-23,1700152984,Scottish & Southern Energy Plc,"-£2,469.04"
Manchester City Council,Manchester Leisure,Electricity,06-Jul-23,1700152995,Scottish & Southern Energy Plc,"-£2,282.99"
Manchester City Council,Manchester Leisure,Electricity,06-Jul-23,1700152999,Scottish & Southern Energy Plc,"-£2,127.06"
Manchester City Council,Manchester Leisure,Electricity,06-Jul-23,1700153015,Scottish & Southern Energy Plc,"-£2,575.14"
Manchester City Council,Manchester Leisure,Electricity,06-Jul-23,1700153016,Scottish & Southern Energy Plc,"-£3,187.04"
Manchester City Council,Manchester Leisure,Electricity,06-Jul-23,1700153017,Scottish & Southern Energy Plc,-£879.11
Manchester City Council,Manchester Leisure,Electricity,06-Jul-23,1700153024,Scottish & Southern Energy Plc,-£682.58
Manchester City Council,Manchester Leisure,Electricity,06-Jul-23,1700153038,Scottish & Southern Energy Plc,"-£3,075.81"
Manchester City Council,Manchester Leisure,Electricity,06-Jul-23,1700153062,Scottish & Southern Energy Plc,"-£1,141.88"
Manchester City Council,Manchester Leisure,Electricity,06-Jul-23,1908159331,Scottish & Southern Energy Plc,£538.06
Manchester City Council,Manchester Leisure,Electricity,06-Jul-23,1908159348,Scottish & Southern Energy Plc,£596.77
Manchester City Council,Manchester Leisure,Electricity,06-Jul-23,1908159353,Scottish & Southern Energy Plc,£950.74
Manchester City Council,Manchester Leisure,Electricity,06-Jul-23,1908159354,Scottish & Southern Energy Plc,"£1,733.95"
Manchester City Council,Manchester Leisure,Electricity,06-Jul-23,1908159362,Scottish & Southern Energy Plc,£560.30
Manchester City Council,Manchester Leisure,Electricity,06-Jul-23,1908159381,Scottish & Southern Energy Plc,£527.45
Manchester City Council,Manchester Leisure,Electricity,06-Jul-23,1908159393,Scottish & Southern Energy Plc,£538.06
Manchester City Council,Manchester Leisure,Electricity,06-Jul-23,1908159405,Scottish & Southern Energy Plc,£613.61
Manchester City Council,Manchester Leisure,Electricity,06-Jul-23,1908159407,Scottish & Southern Energy Plc,£939.34
Manchester City Council,Manchester Leisure,Electricity,06-Jul-23,1908159408,Scottish & Southern Energy Plc,£674.24
Manchester City Council,Manchester Leisure,Electricity,06-Jul-23,1908159412,Scottish & Southern Energy Plc,£798.87
Manchester City Council,Manchester Leisure,Electricity,06-Jul-23,1908159415,Scottish & Southern Energy Plc,"£1,081.08"
Manchester City Council,Manchester Leisure,Electricity,06-Jul-23,1908159424,Scottish & Southern Energy Plc,£538.06
Manchester City Council,Manchester Leisure,Electricity,06-Jul-23,1908159431,Scottish & Southern Energy Plc,£516.94
Manchester City Council,Manchester Leisure,Electricity,06-Jul-23,1908159433,Scottish & Southern Energy Plc,£545.40
Manchester City Council,Manchester Leisure,Electricity,06-Jul-23,1908159456,Scottish & Southern Energy Plc,£660.53
Manchester City Council,Manchester Leisure,Electricity,06-Jul-23,1908159457,Scottish & Southern Energy Plc,£939.34
Manchester City Council,Manchester Leisure,Electricity,06-Jul-23,1908159458,Scottish & Southern Energy Plc,£678.39
Manchester City Council,Manchester Leisure,Electricity,06-Jul-23,1908159482,Scottish & Southern Energy Plc,£538.06
Manchester City Council,Manchester Leisure,Electricity,06-Jul-23,1908159491,Scottish & Southern Energy Plc,£674.24
Manchester City Council,Manchester Leisure,Electricity,06-Jul-23,1908159526,Scottish & Southern Energy Plc,£661.28
Manchester City Council,Manchester Leisure,Electricity,06-Jul-23,1908159566,Scottish & Southern Energy Plc,£555.66
Manchester City Council,Manchester Leisure,Electricity,06-Jul-23,1908159582,Scottish & Southern Energy Plc,£757.77
Manchester City Council,Manchester Leisure,Electricity,06-Jul-23,1908159583,Scottish & Southern Energy Plc,£707.09
Manchester City Council,Manchester Leisure,Electricity,06-Jul-23,1908159584,Scottish & Southern Energy Plc,£797.08
Manchester City Council,Manchester Leisure,Electricity,06-Jul-23,1908159585,Scottish & Southern Energy Plc,£534.31
Manchester City Council,Manchester Leisure,Electricity,06-Jul-23,1908159586,Scottish & Southern Energy Plc,£682.71
Manchester City Council,Manchester Leisure,Electricity,06-Jul-23,1908159760,Scottish & Southern Energy Plc,£674.24
Manchester City Council,Hospitality + Trading Services,Electricity,06-Jul-23,1700152987,Scottish & Southern Energy Plc,"-£6,081.54"
Manchester City Council,Hospitality + Trading Services,Electricity,06-Jul-23,1700152988,Scottish & Southern Energy Plc,"-£5,341.92"
Manchester City Council,Hospitality + Trading Services,Electricity,06-Jul-23,1700153045,Scottish & Southern Energy Plc,-£984.37
Manchester City Council,Childrens & Education Services,Electricity,06-Jul-23,1908159494,Scottish & Southern Energy Plc,£729.84
Manchester City Council,Childrens & Education Services,Electricity,06-Jul-23,1908159495,Scottish & Southern Energy Plc,£783.15
Manchester City Council,Childrens & Education Services,Electricity,06-Jul-23,1908159496,Scottish & Southern Energy Plc,£770.48
Manchester City Council,Childrens & Education Services,Electricity,06-Jul-23,1908159497,Scottish & Southern Energy Plc,£639.33
Manchester City Council,Childrens & Education Services,Electricity,06-Jul-23,1908159498,Scottish & Southern Energy Plc,£740.24
Manchester City Council,Childrens & Education Services,Electricity,06-Jul-23,1908159501,Scottish & Southern Energy Plc,£534.12
Manchester City Council,Childrens & Education Services,Electricity,06-Jul-23,1908159597,Scottish & Southern Energy Plc,"£4,680.17"
Manchester City Council,Childrens & Education Services,Electricity,06-Jul-23,1908159603,Scottish & Southern Energy Plc,"£1,984.29"
Manchester City Council,Adult Social Care,Electricity,06-Jul-23,1700152979,Scottish & Southern Energy Plc,"-£1,085.17"
Manchester City Council,Adult Social Care,Electricity,06-Jul-23,1700152980,Scottish & Southern Energy Plc,-£500.74
Manchester City Council,Adult Social Care,Electricity,06-Jul-23,1700152985,Scottish & Southern Energy Plc,-£768.82
Manchester City Council,Adult Social Care,Electricity,06-Jul-23,1700152989,Scottish & Southern Energy Plc,-£592.78
Manchester City Council,Adult Social Care,Electricity,06-Jul-23,1700153001,Scottish & Southern Energy Plc,"-£8,851.16"
Manchester City Council,Adult Social Care,Electricity,06-Jul-23,1700153002,Scottish & Southern Energy Plc,"-£1,056.24"
Manchester City Council,Adult Social Care,Electricity,06-Jul-23,1700153004,Scottish & Southern Energy Plc,"-£2,468.53"
Manchester City Council,Adult Social Care,Electricity,06-Jul-23,1700153014,Scottish & Southern Energy Plc,-£847.43
Manchester City Council,Adult Social Care,Electricity,06-Jul-23,1700153064,Scottish & Southern Energy Plc,"-£1,253.85"
Manchester City Council,Adult Social Care,Electricity,06-Jul-23,1700153080,Scottish & Southern Energy Plc,-£686.88
Manchester City Council,Adult Social Care,Electricity,06-Jul-23,1700153083,Scottish & Southern Energy Plc,-£522.78
Manchester City Council,Adult Social Care,Electricity,06-Jul-23,1700153084,Scottish & Southern Energy Plc,-£501.89
Manchester City Council,Adult Social Care,Electricity,06-Jul-23,1908159342,Scottish & Southern Energy Plc,£677.23
Manchester City Council,Adult Social Care,Electricity,06-Jul-23,1908159347,Scottish & Southern Energy Plc,£547.29
Manchester City Council,Adult Social Care,Electricity,06-Jul-23,1908159349,Scottish & Southern Energy Plc,"£1,440.25"
Manchester City Council,Adult Social Care,Electricity,06-Jul-23,1908159359,Scottish & Southern Energy Plc,"£1,723.06"
Manchester City Council,Adult Social Care,Electricity,06-Jul-23,1908159386,Scottish & Southern Energy Plc,"£1,440.25"
Manchester City Council,Adult Social Care,Electricity,06-Jul-23,1908159470,Scottish & Southern Energy Plc,£538.06
Manchester City Council,Adult Social Care,Electricity,06-Jul-23,1908159476,Scottish & Southern Energy Plc,£595.68
Manchester City Council,Adult Social Care,Electricity,06-Jul-23,1908159477,Scottish & Southern Energy Plc,£680.86
Manchester City Council,Adult Social Care,Electricity,06-Jul-23,1908159478,Scottish & Southern Energy Plc,£698.20
Manchester City Council,Adult Social Care,Electricity,06-Jul-23,1908159479,Scottish & Southern Energy Plc,£644.24
Manchester City Council,Adult Social Care,Electricity,06-Jul-23,1908159480,Scottish & Southern Energy Plc,£709.58
Manchester City Council,Adult Social Care,Electricity,06-Jul-23,1908159503,Scottish & Southern Energy Plc,"£1,112.19"
Manchester City Council,Adult Social Care,Electricity,06-Jul-23,1908159504,Scottish & Southern Energy Plc,£578.27
Manchester City Council,Adult Social Care,Electricity,06-Jul-23,1908159505,Scottish & Southern Energy Plc,£558.24
Manchester City Council,Adult Social Care,Electricity,06-Jul-23,1908159506,Scottish & Southern Energy Plc,"£2,258.34"
Manchester City Council,Adult Social Care,Electricity,06-Jul-23,1908159508,Scottish & Southern Energy Plc,£803.12
Manchester City Council,Adult Social Care,Electricity,06-Jul-23,1908159509,Scottish & Southern Energy Plc,"£1,235.62"
Manchester City Council,Adult Social Care,Electricity,06-Jul-23,1908159510,Scottish & Southern Energy Plc,"£3,344.43"
Manchester City Council,Adult Social Care,Electricity,06-Jul-23,1908159511,Scottish & Southern Energy Plc,"£1,606.27"
Manchester City Council,Adult Social Care,Electricity,06-Jul-23,1908159512,Scottish & Southern Energy Plc,£786.44
Manchester City Council,Adult Social Care,Electricity,06-Jul-23,1908159516,Scottish & Southern Energy Plc,£568.84
Manchester City Council,Adult Social Care,Electricity,06-Jul-23,1908159517,Scottish & Southern Energy Plc,"£1,728.33"
Manchester City Council,Adult Social Care,Electricity,06-Jul-23,1908159519,Scottish & Southern Energy Plc,"£1,248.37"
Manchester City Council,Adult Social Care,Electricity,06-Jul-23,1908159560,Scottish & Southern Energy Plc,"£1,306.08"
Manchester City Council,Adult Social Care,Electricity,06-Jul-23,1908159561,Scottish & Southern Energy Plc,"£2,440.39"
Manchester City Council,Adult Social Care,Electricity,06-Jul-23,1908159562,Scottish & Southern Energy Plc,"£1,665.70"
Manchester City Council,Adult Social Care,Electricity,06-Jul-23,1908159563,Scottish & Southern Energy Plc,"£3,769.87"
Manchester City Council,Adult Social Care,Electricity,06-Jul-23,1908159564,Scottish & Southern Energy Plc,"£3,261.98"
Manchester City Council,Adult Social Care,Electricity,06-Jul-23,1908159596,Scottish & Southern Energy Plc,"£2,422.62"
Manchester City Council,Adult Social Care,Electricity,06-Jul-23,1908159611,Scottish & Southern Energy Plc,£934.94
Manchester City Council,Adult Social Care,Electricity,06-Jul-23,1908159767,Scottish & Southern Energy Plc,£533.39
Manchester City Council,Adult Social Care,Electricity,06-Jul-23,1908159768,Scottish & Southern Energy Plc,£565.83
Manchester City Council,Adult Social Care,Electricity,06-Jul-23,1908159771,Scottish & Southern Energy Plc,£643.43
Manchester City Council,Adult Social Care,Electricity,06-Jul-23,1908159776,Scottish & Southern Energy Plc,£878.97
Manchester City Council,Adult Social Care,Electricity,06-Jul-23,1908159780,Scottish & Southern Energy Plc,£967.51
Manchester City Council,Adult Social Care,Electricity,06-Jul-23,1908159782,Scottish & Southern Energy Plc,£710.96
Manchester City Council,Adult Social Care,Electricity,06-Jul-23,1908159784,Scottish & Southern Energy Plc,"£1,449.49"
Manchester City Council,Adult Social Care,Electricity,06-Jul-23,1908159787,Scottish & Southern Energy Plc,£540.29
Manchester City Council,Adult Social Care,Electricity,06-Jul-23,1908159789,Scottish & Southern Energy Plc,£997.57
Manchester City Council,Adult Social Care,Electricity,06-Jul-23,1908159791,Scottish & Southern Energy Plc,£985.38
Manchester City Council,Adult Social Care,Electricity,06-Jul-23,1908159807,Scottish & Southern Energy Plc,£771.71
Manchester City Council,Adult Social Care,Electricity,06-Jul-23,1908159840,Scottish & Southern Energy Plc,£866.60
Manchester City Council,Housing Revenue Account,Electricity,06-Jul-23,1908159620,Scottish & Southern Energy Plc,£859.14
Manchester City Council,Regeneration Finance,Electricity,06-Jul-23,1700153005,Scottish & Southern Energy Plc,"-£1,243.12"
Manchester City Council,Regeneration Finance,Electricity,06-Jul-23,1700153022,Scottish & Southern Energy Plc,"-£1,718.56"
Manchester City Council,Regeneration Finance,Electricity,06-Jul-23,1700153029,Scottish & Southern Energy Plc,"-£3,864.94"
Manchester City Council,Regeneration Finance,Electricity,06-Jul-23,1700153030,Scottish & Southern Energy Plc,"-£2,468.49"
Manchester City Council,Regeneration Finance,Electricity,06-Jul-23,1700153031,Scottish & Southern Energy Plc,"-£2,105.39"
Manchester City Council,Regeneration Finance,Electricity,06-Jul-23,1700153033,Scottish & Southern Energy Plc,"-£1,014.50"
Manchester City Council,Regeneration Finance,Electricity,06-Jul-23,1700153034,Scottish & Southern Energy Plc,-£629.47
Manchester City Council,Regeneration Finance,Electricity,06-Jul-23,1700153052,Scottish & Southern Energy Plc,"-£4,079.60"
Manchester City Council,Regeneration Finance,Electricity,06-Jul-23,1700153065,Scottish & Southern Energy Plc,"-£1,235.34"
Manchester City Council,Regeneration Finance,Electricity,06-Jul-23,1700153086,Scottish & Southern Energy Plc,"-£2,563.33"
Manchester City Council,Regeneration Finance,Electricity,06-Jul-23,1908159323,Scottish & Southern Energy Plc,"£1,770.48"
Manchester City Council,Regeneration Finance,Electricity,06-Jul-23,1908159500,Scottish & Southern Energy Plc,£620.27
Manchester City Council,Regeneration Finance,Electricity,06-Jul-23,1908159543,Scottish & Southern Energy Plc,"£1,863.87"
Manchester City Council,Regeneration Finance,Electricity,06-Jul-23,1908159547,Scottish & Southern Energy Plc,£521.40
Manchester City Council,Regeneration Finance,Electricity,06-Jul-23,1908159548,Scottish & Southern Energy Plc,£586.00
Manchester City Council,Regeneration Finance,Electricity,06-Jul-23,1908159549,Scottish & Southern Energy Plc,£583.88
Manchester City Council,Regeneration Finance,Electricity,06-Jul-23,1908159550,Scottish & Southern Energy Plc,£570.32
Manchester City Council,Regeneration Finance,Electricity,06-Jul-23,1908159551,Scottish & Southern Energy Plc,£601.26
Manchester City Council,Regeneration Finance,Electricity,06-Jul-23,1908159599,Scottish & Southern Energy Plc,"£1,545.02"
Manchester City Council,Regeneration Finance,Electricity,06-Jul-23,1908159601,Scottish & Southern Energy Plc,£599.20
Manchester City Council,Regeneration Finance,Electricity,06-Jul-23,1908159604,Scottish & Southern Energy Plc,£811.65
Manchester City Council,Regeneration Finance,Electricity,06-Jul-23,1908159665,Scottish & Southern Energy Plc,£658.86
Manchester City Council,Regeneration Finance,Electricity,06-Jul-23,1908159684,Scottish & Southern Energy Plc,"£1,026.15"
Manchester City Council,Regeneration Finance,Electricity,06-Jul-23,1908159691,Scottish & Southern Energy Plc,"£1,138.16"
Manchester City Council,Regeneration Finance,Electricity,06-Jul-23,1908159692,Scottish & Southern Energy Plc,"£1,073.00"
Manchester City Council,Regeneration Finance,Electricity,06-Jul-23,1908159697,Scottish & Southern Energy Plc,£977.94
Manchester City Council,Regeneration Finance,Electricity,06-Jul-23,1908159703,Scottish & Southern Energy Plc,£820.03
Manchester City Council,Regeneration Finance,Electricity,06-Jul-23,1908159705,Scottish & Southern Energy Plc,"£1,286.62"
Manchester City Council,Regeneration Finance,Electricity,06-Jul-23,1908159708,Scottish & Southern Energy Plc,"£1,136.71"
Manchester City Council,Regeneration Finance,Electricity,06-Jul-23,1908159713,Scottish & Southern Energy Plc,"£1,078.19"
Manchester City Council,Regeneration Finance,Electricity,06-Jul-23,1908159720,Scottish & Southern Energy Plc,£543.98
Manchester City Council,Regeneration Finance,Electricity,06-Jul-23,1908159727,Scottish & Southern Energy Plc,"£4,479.29"
Manchester City Council,Regeneration Finance,Electricity,06-Jul-23,1908159729,Scottish & Southern Energy Plc,£938.71
Manchester City Council,Highways Services,Electricity,06-Jul-23,1908159612,Scottish & Southern Energy Plc,£693.68
Manchester City Council,Highways Services,Electricity,06-Jul-23,1908159751,Scottish & Southern Energy Plc,£545.75
Manchester City Council,Regeneration Finance,Rents,06-Jul-23,1908147124,Knight Frank LLP,"£220,382.00"
Manchester City Council,Corporate Services,Hire of Equipment,06-Jul-23,5105880108,Flowbird Smart City Uk Ltd,"£13,479.57"
Manchester City Council,Corporate Services,Hire of Equipment,06-Jul-23,5105880109,Flowbird Smart City Uk Ltd,"£13,479.57"
Manchester City Council,Corporate Services,Hire of Equipment,06-Jul-23,5105880110,Flowbird Smart City Uk Ltd,"£13,479.57"
Manchester City Council,Corporate Services,Hire of Equipment,06-Jul-23,5105880211,Flowbird Smart City Uk Ltd,"£13,479.57"
Manchester City Council,Manchester Leisure,Stationery,06-Jul-23,1908158325,Ikea Business Accounts,£634.00
Manchester City Council,Hospitality + Trading Services,Hire of Machinery,06-Jul-23,5105880021,R & M Developments Ltd,"£1,073.50"
Manchester City Council,Hospitality + Trading Services,Hire of Machinery,06-Jul-23,5105880026,R & M Developments Ltd,"£1,073.50"
Manchester City Council,Chief Executives,Paper & Envelopes,06-Jul-23,5105879990,Premier Paper Group Ltd,£869.23
Manchester City Council,Adult Social Care,Catering Provisions,06-Jul-23,1908159285,Brake Bros Foodservice Ltd,£532.73
Manchester City Council,Childrens & Education Services,Hire of Premises,06-Jul-23,5105880226,The St Thomas Centre Ltd,£743.75
Manchester City Council,Manchester Leisure,Hire of Premises,06-Jul-23,5105880259,The Mechanics Centre Ltd,£592.33
Manchester City Council,Manchester Leisure,Electricity,06-Jul-23,1700153099,Npower,"-£9,553.98"
Manchester City Council,Manchester Leisure,Electricity,06-Jul-23,1700153100,Npower,"-£12,501.61"
Manchester City Council,Manchester Leisure,Electricity,06-Jul-23,1700153101,Npower,"-£10,598.76"
Manchester City Council,Manchester Leisure,Electricity,06-Jul-23,1700153102,Npower,"-£10,245.94"
Manchester City Council,Manchester Leisure,Electricity,06-Jul-23,1700153104,Npower,"-£1,640.07"
Manchester City Council,Manchester Leisure,Electricity,06-Jul-23,1700153105,Npower,"-£1,581.99"
Manchester City Council,Manchester Leisure,Electricity,06-Jul-23,1700153106,Npower,"-£1,629.76"
Manchester City Council,Manchester Leisure,Electricity,06-Jul-23,1908160266,Npower,"£10,211.20"
Manchester City Council,Manchester Leisure,Electricity,06-Jul-23,1908160267,Npower,"£2,507.83"
Manchester City Council,Manchester Leisure,Electricity,06-Jul-23,1908160272,Npower,"£10,693.05"
Manchester City Council,Manchester Leisure,Electricity,06-Jul-23,1908160273,Npower,"£3,032.90"
Manchester City Council,Manchester Leisure,Electricity,06-Jul-23,1908160274,Npower,"£1,483.26"
Manchester City Council,Manchester Leisure,Electricity,06-Jul-23,1908160275,Npower,"£3,367.93"
Manchester City Council,Manchester Leisure,Electricity,06-Jul-23,1908160276,Npower,"£3,064.98"
Manchester City Council,Manchester Leisure,Electricity,06-Jul-23,1908160277,Npower,"£5,042.21"
Manchester City Council,Manchester Leisure,Electricity,06-Jul-23,1908160278,Npower,"£1,474.28"
Manchester City Council,Manchester Leisure,Electricity,06-Jul-23,1908160279,Npower,"£36,873.44"
Manchester City Council,Manchester Leisure,Electricity,06-Jul-23,1908160280,Npower,"£2,793.08"
Manchester City Council,Manchester Leisure,Electricity,06-Jul-23,1908160283,Npower,"£2,136.85"
Manchester City Council,Manchester Leisure,Electricity,06-Jul-23,1908160288,Npower,"£4,407.75"
Manchester City Council,Manchester Leisure,Electricity,06-Jul-23,1908160289,Npower,"£1,432.04"
Manchester City Council,Hospitality + Trading Services,Electricity,06-Jul-23,1908160265,Npower,"£5,797.13"
Manchester City Council,Hospitality + Trading Services,Electricity,06-Jul-23,1908160270,Npower,"£36,861.06"
Manchester City Council,Regeneration Finance,Electricity,06-Jul-23,1700153090,Npower,"-£15,365.09"
Manchester City Council,Regeneration Finance,Electricity,06-Jul-23,1700153091,Npower,"-£14,621.43"
Manchester City Council,Regeneration Finance,Electricity,06-Jul-23,1700153092,Npower,"-£11,902.96"
Manchester City Council,Regeneration Finance,Electricity,06-Jul-23,1700153093,Npower,"-£12,436.48"
Manchester City Council,Regeneration Finance,Electricity,06-Jul-23,1700153094,Npower,"-£10,765.95"
Manchester City Council,Regeneration Finance,Electricity,06-Jul-23,1700153095,Npower,"-£12,395.40"
Manchester City Council,Regeneration Finance,Electricity,06-Jul-23,1700153096,Npower,"-£11,120.90"
Manchester City Council,Regeneration Finance,Electricity,06-Jul-23,1700153097,Npower,"-£3,749.96"
Manchester City Council,Regeneration Finance,Electricity,06-Jul-23,1700153098,Npower,"-£4,667.18"
Manchester City Council,Regeneration Finance,Electricity,06-Jul-23,1700153103,Npower,-£869.07
Manchester City Council,Regeneration Finance,Electricity,06-Jul-23,1908160269,Npower,£909.74
Manchester City Council,Regeneration Finance,Electricity,06-Jul-23,1908160271,Npower,£853.95
Manchester City Council,Regeneration Finance,Electricity,06-Jul-23,1908160281,Npower,"£35,740.82"
Manchester City Council,Regeneration Finance,Electricity,06-Jul-23,1908160284,Npower,"£1,972.39"
Manchester City Council,Regeneration Finance,Electricity,06-Jul-23,1908160285,Npower,£730.44
Manchester City Council,Regeneration Finance,Electricity,06-Jul-23,1908160290,Npower,£614.64
Manchester City Council,Highways Services,Electricity,06-Jul-23,1908160268,Npower,"£5,223.16"
Manchester City Council,Highways Services,Electricity,06-Jul-23,1908160282,Npower,"£2,286.32"
Manchester City Council,Corporate Services,Legal Fees,06-Jul-23,1908159310,HMCTS (Manchester),"£3,000.00"
Manchester City Council,Manchester Leisure,Gas,06-Jul-23,1700153088,Corona Energy Ltd,-£556.62
Manchester City Council,Manchester Leisure,Gas,06-Jul-23,1700153089,Corona Energy Ltd,-£627.71
Manchester City Council,Manchester Leisure,Gas,06-Jul-23,1908159872,Corona Energy Ltd,£825.13
Manchester City Council,Manchester Leisure,Gas,06-Jul-23,1908159873,Corona Energy Ltd,"£1,314.77"
Manchester City Council,Manchester Leisure,Gas,06-Jul-23,1908159890,Corona Energy Ltd,"£9,608.06"
Manchester City Council,Manchester Leisure,Gas,06-Jul-23,1908159891,Corona Energy Ltd,"£9,466.13"
Manchester City Council,Manchester Leisure,Gas,06-Jul-23,1908159893,Corona Energy Ltd,£674.44
Manchester City Council,Manchester Leisure,Gas,06-Jul-23,1908159908,Corona Energy Ltd,"£1,856.73"
Manchester City Council,Manchester Leisure,Gas,06-Jul-23,1908159909,Corona Energy Ltd,"£2,830.01"
Manchester City Council,Manchester Leisure,Gas,06-Jul-23,1908159910,Corona Energy Ltd,"£2,162.56"
Manchester City Council,Manchester Leisure,Gas,06-Jul-23,1908159911,Corona Energy Ltd,£979.86
Manchester City Council,Manchester Leisure,Gas,06-Jul-23,1908159912,Corona Energy Ltd,£891.97
Manchester City Council,Manchester Leisure,Gas,06-Jul-23,1908159913,Corona Energy Ltd,"£1,187.93"
Manchester City Council,Manchester Leisure,Gas,06-Jul-23,1908159928,Corona Energy Ltd,"£4,286.67"
Manchester City Council,Manchester Leisure,Gas,06-Jul-23,1908159929,Corona Energy Ltd,"£5,135.85"
Manchester City Council,Manchester Leisure,Gas,06-Jul-23,1908159937,Corona Energy Ltd,£826.10
Manchester City Council,Manchester Leisure,Gas,06-Jul-23,1908159963,Corona Energy Ltd,£917.53
Manchester City Council,Manchester Leisure,Gas,06-Jul-23,1908159973,Corona Energy Ltd,"£7,097.02"
Manchester City Council,Manchester Leisure,Gas,06-Jul-23,1908159974,Corona Energy Ltd,"£6,691.65"
Manchester City Council,Manchester Leisure,Gas,06-Jul-23,1908160068,Corona Energy Ltd,"£5,802.00"
Manchester City Council,Manchester Leisure,Gas,06-Jul-23,1908160069,Corona Energy Ltd,"£2,113.30"
Manchester City Council,Manchester Leisure,Gas,06-Jul-23,1908160070,Corona Energy Ltd,"£6,467.75"
Manchester City Council,Manchester Leisure,Gas,06-Jul-23,1908160071,Corona Energy Ltd,"£1,904.90"
Manchester City Council,Manchester Leisure,Gas,06-Jul-23,1908160088,Corona Energy Ltd,"£17,835.93"
Manchester City Council,Manchester Leisure,Gas,06-Jul-23,1908160089,Corona Energy Ltd,"£7,566.84"
Manchester City Council,Manchester Leisure,Gas,06-Jul-23,1908160096,Corona Energy Ltd,"£2,106.19"
Manchester City Council,Manchester Leisure,Gas,06-Jul-23,1908160097,Corona Energy Ltd,"£3,058.98"
Manchester City Council,Manchester Leisure,Gas,06-Jul-23,1908160100,Corona Energy Ltd,"£2,831.05"
Manchester City Council,Manchester Leisure,Gas,06-Jul-23,1908160101,Corona Energy Ltd,"£2,036.60"
Manchester City Council,Manchester Leisure,Gas,06-Jul-23,1908160114,Corona Energy Ltd,"£4,110.09"
Manchester City Council,Manchester Leisure,Gas,06-Jul-23,1908160115,Corona Energy Ltd,"£1,341.85"
Manchester City Council,Manchester Leisure,Gas,06-Jul-23,1908160116,Corona Energy Ltd,"£4,835.30"
Manchester City Council,Manchester Leisure,Gas,06-Jul-23,1908160117,Corona Energy Ltd,"£1,196.99"
Manchester City Council,Manchester Leisure,Gas,06-Jul-23,1908160125,Corona Energy Ltd,£596.34
Manchester City Council,Manchester Leisure,Gas,06-Jul-23,1908160128,Corona Energy Ltd,"£8,142.74"
Manchester City Council,Manchester Leisure,Gas,06-Jul-23,1908160130,Corona Energy Ltd,£556.62
Manchester City Council,Manchester Leisure,Gas,06-Jul-23,1908160131,Corona Energy Ltd,£627.71
Manchester City Council,Manchester Leisure,Gas,06-Jul-23,1908160132,Corona Energy Ltd,"£1,629.72"
Manchester City Council,Manchester Leisure,Gas,06-Jul-23,1908160133,Corona Energy Ltd,"£2,916.58"
Manchester City Council,Manchester Leisure,Gas,06-Jul-23,1908160140,Corona Energy Ltd,"£5,846.03"
Manchester City Council,Manchester Leisure,Gas,06-Jul-23,1908160141,Corona Energy Ltd,"£5,073.82"
Manchester City Council,Manchester Leisure,Gas,06-Jul-23,1908160218,Corona Energy Ltd,£762.86
Manchester City Council,Manchester Leisure,Gas,06-Jul-23,1908160219,Corona Energy Ltd,"£1,069.01"
Manchester City Council,Manchester Leisure,Gas,06-Jul-23,1908160240,Corona Energy Ltd,"£1,178.77"
Manchester City Council,Manchester Leisure,Gas,06-Jul-23,1908160241,Corona Energy Ltd,£928.48
Manchester City Council,Hospitality + Trading Services,Gas,06-Jul-23,1908159896,Corona Energy Ltd,"£1,167.75"
Manchester City Council,Hospitality + Trading Services,Gas,06-Jul-23,1908159897,Corona Energy Ltd,"£1,284.46"
Manchester City Council,Hospitality + Trading Services,Gas,06-Jul-23,1908159918,Corona Energy Ltd,"£5,159.48"
Manchester City Council,Hospitality + Trading Services,Gas,06-Jul-23,1908159919,Corona Energy Ltd,"£6,347.24"
Manchester City Council,Hospitality + Trading Services,Gas,06-Jul-23,1908160006,Corona Energy Ltd,£935.53
Manchester City Council,Hospitality + Trading Services,Gas,06-Jul-23,1908160007,Corona Energy Ltd,£979.44
Manchester City Council,Hospitality + Trading Services,Gas,06-Jul-23,1908160196,Corona Energy Ltd,£765.15
Manchester City Council,Childrens & Education Services,Gas,06-Jul-23,1908159901,Corona Energy Ltd,£610.94
Manchester City Council,Childrens & Education Services,Gas,06-Jul-23,1908159914,Corona Energy Ltd,£599.55
Manchester City Council,Childrens & Education Services,Gas,06-Jul-23,1908159915,Corona Energy Ltd,£708.97
Manchester City Council,Childrens & Education Services,Gas,06-Jul-23,1908160065,Corona Energy Ltd,£537.46
Manchester City Council,Childrens & Education Services,Gas,06-Jul-23,1908160121,Corona Energy Ltd,"£1,202.46"
Manchester City Council,Childrens & Education Services,Gas,06-Jul-23,1908160122,Corona Energy Ltd,£601.06
Manchester City Council,Childrens & Education Services,Gas,06-Jul-23,1908160123,Corona Energy Ltd,"£1,102.30"
Manchester City Council,Childrens & Education Services,Gas,06-Jul-23,1908160124,Corona Energy Ltd,£803.12
Manchester City Council,Childrens & Education Services,Gas,06-Jul-23,1908160160,Corona Energy Ltd,£626.02
Manchester City Council,Childrens & Education Services,Gas,06-Jul-23,1908160192,Corona Energy Ltd,£601.84
Manchester City Council,Childrens & Education Services,Gas,06-Jul-23,1908160193,Corona Energy Ltd,£711.68
Manchester City Council,Childrens & Education Services,Gas,06-Jul-23,1908160254,Corona Energy Ltd,£624.23
Manchester City Council,Adult Social Care,Gas,06-Jul-23,1700153087,Corona Energy Ltd,"-£1,893.18"
Manchester City Council,Adult Social Care,Gas,06-Jul-23,1908159846,Corona Energy Ltd,£512.32
Manchester City Council,Adult Social Care,Gas,06-Jul-23,1908159847,Corona Energy Ltd,£693.98
Manchester City Council,Adult Social Care,Gas,06-Jul-23,1908159848,Corona Energy Ltd,£541.78
Manchester City Council,Adult Social Care,Gas,06-Jul-23,1908159859,Corona Energy Ltd,£500.46
Manchester City Council,Adult Social Care,Gas,06-Jul-23,1908159924,Corona Energy Ltd,£501.14
Manchester City Council,Adult Social Care,Gas,06-Jul-23,1908159930,Corona Energy Ltd,£598.72
Manchester City Council,Adult Social Care,Gas,06-Jul-23,1908159931,Corona Energy Ltd,"£2,186.85"
Manchester City Council,Adult Social Care,Gas,06-Jul-23,1908159943,Corona Energy Ltd,£589.75
Manchester City Council,Adult Social Care,Gas,06-Jul-23,1908159985,Corona Energy Ltd,"£2,810.03"
Manchester City Council,Adult Social Care,Gas,06-Jul-23,1908159986,Corona Energy Ltd,"£2,088.25"
Manchester City Council,Adult Social Care,Gas,06-Jul-23,1908160016,Corona Energy Ltd,£523.36
Manchester City Council,Adult Social Care,Gas,06-Jul-23,1908160080,Corona Energy Ltd,"£1,605.53"
Manchester City Council,Adult Social Care,Gas,06-Jul-23,1908160081,Corona Energy Ltd,"£1,974.84"
Manchester City Council,Adult Social Care,Gas,06-Jul-23,1908160142,Corona Energy Ltd,£750.73
Manchester City Council,Adult Social Care,Gas,06-Jul-23,1908160143,Corona Energy Ltd,£513.88
Manchester City Council,Adult Social Care,Gas,06-Jul-23,1908160149,Corona Energy Ltd,£556.70
Manchester City Council,Adult Social Care,Gas,06-Jul-23,1908160158,Corona Energy Ltd,"£1,282.81"
Manchester City Council,Adult Social Care,Gas,06-Jul-23,1908160159,Corona Energy Ltd,£976.57
Manchester City Council,Adult Social Care,Gas,06-Jul-23,1908160180,Corona Energy Ltd,£546.68
Manchester City Council,Adult Social Care,Gas,06-Jul-23,1908160181,Corona Energy Ltd,£694.66
Manchester City Council,Adult Social Care,Gas,06-Jul-23,1908160239,Corona Energy Ltd,£502.04
Manchester City Council,Adult Social Care,Gas,06-Jul-23,1908160246,Corona Energy Ltd,"£1,064.35"
Manchester City Council,Adult Social Care,Gas,06-Jul-23,1908160247,Corona Energy Ltd,£803.19
Manchester City Council,Adult Social Care,Gas,06-Jul-23,1908160255,Corona Energy Ltd,"£1,461.81"
Manchester City Council,Housing Revenue Account,Gas,06-Jul-23,1908159886,Corona Energy Ltd,"£2,408.85"
Manchester City Council,Housing Revenue Account,Gas,06-Jul-23,1908159887,Corona Energy Ltd,"£2,158.93"
Manchester City Council,Housing Revenue Account,Gas,06-Jul-23,1908159888,Corona Energy Ltd,"£1,388.01"
Manchester City Council,Housing Revenue Account,Gas,06-Jul-23,1908159889,Corona Energy Ltd,"£1,618.93"
Manchester City Council,Housing Revenue Account,Gas,06-Jul-23,1908159922,Corona Energy Ltd,"£2,137.40"
Manchester City Council,Housing Revenue Account,Gas,06-Jul-23,1908159923,Corona Energy Ltd,"£1,875.50"
Manchester City Council,Housing Revenue Account,Gas,06-Jul-23,1908159961,Corona Energy Ltd,"£12,065.52"
Manchester City Council,Housing Revenue Account,Gas,06-Jul-23,1908159962,Corona Energy Ltd,"£13,265.58"
Manchester City Council,Housing Revenue Account,Gas,06-Jul-23,1908159972,Corona Energy Ltd,£595.80
Manchester City Council,Housing Revenue Account,Gas,06-Jul-23,1908159977,Corona Energy Ltd,"£1,312.97"
Manchester City Council,Housing Revenue Account,Gas,06-Jul-23,1908159978,Corona Energy Ltd,"£1,621.84"
Manchester City Council,Housing Revenue Account,Gas,06-Jul-23,1908160002,Corona Energy Ltd,£821.72
Manchester City Council,Housing Revenue Account,Gas,06-Jul-23,1908160003,Corona Energy Ltd,£763.85
Manchester City Council,Housing Revenue Account,Gas,06-Jul-23,1908160038,Corona Energy Ltd,"£2,467.97"
Manchester City Council,Housing Revenue Account,Gas,06-Jul-23,1908160039,Corona Energy Ltd,"£2,150.59"
Manchester City Council,Housing Revenue Account,Gas,06-Jul-23,1908160040,Corona Energy Ltd,"£2,084.16"
Manchester City Council,Housing Revenue Account,Gas,06-Jul-23,1908160041,Corona Energy Ltd,"£2,386.56"
Manchester City Council,Housing Revenue Account,Gas,06-Jul-23,1908160072,Corona Energy Ltd,"£1,903.48"
Manchester City Council,Housing Revenue Account,Gas,06-Jul-23,1908160073,Corona Energy Ltd,"£1,778.73"
Manchester City Council,Housing Revenue Account,Gas,06-Jul-23,1908160166,Corona Energy Ltd,£664.63
Manchester City Council,Housing Revenue Account,Gas,06-Jul-23,1908160167,Corona Energy Ltd,£697.58
Manchester City Council,Housing Revenue Account,Gas,06-Jul-23,1908160172,Corona Energy Ltd,"£1,622.81"
Manchester City Council,Housing Revenue Account,Gas,06-Jul-23,1908160173,Corona Energy Ltd,"£2,131.07"
Manchester City Council,Housing Revenue Account,Gas,06-Jul-23,1908160176,Corona Energy Ltd,"£1,353.75"
Manchester City Council,Housing Revenue Account,Gas,06-Jul-23,1908160177,Corona Energy Ltd,"£1,155.26"
Manchester City Council,Housing Revenue Account,Gas,06-Jul-23,1908160184,Corona Energy Ltd,"£2,037.99"
Manchester City Council,Housing Revenue Account,Gas,06-Jul-23,1908160185,Corona Energy Ltd,"£1,598.22"
Manchester City Council,Housing Revenue Account,Gas,06-Jul-23,1908160188,Corona Energy Ltd,"£1,929.07"
Manchester City Council,Housing Revenue Account,Gas,06-Jul-23,1908160189,Corona Energy Ltd,"£1,583.10"
Manchester City Council,Housing Revenue Account,Gas,06-Jul-23,1908160226,Corona Energy Ltd,"£17,845.83"
Manchester City Council,Housing Revenue Account,Gas,06-Jul-23,1908160227,Corona Energy Ltd,"£14,275.04"
Manchester City Council,Housing Revenue Account,Gas,06-Jul-23,1908160228,Corona Energy Ltd,"£11,815.14"
Manchester City Council,Housing Revenue Account,Gas,06-Jul-23,1908160229,Corona Energy Ltd,"£13,930.18"
Manchester City Council,Regeneration Finance,Gas,06-Jul-23,1908159865,Corona Energy Ltd,"£5,173.19"
Manchester City Council,Regeneration Finance,Gas,06-Jul-23,1908159866,Corona Energy Ltd,"£3,996.93"
Manchester City Council,Regeneration Finance,Gas,06-Jul-23,1908159867,Corona Energy Ltd,"£1,196.98"
Manchester City Council,Regeneration Finance,Gas,06-Jul-23,1908159869,Corona Energy Ltd,£547.75
Manchester City Council,Regeneration Finance,Gas,06-Jul-23,1908159876,Corona Energy Ltd,"£1,095.75"
Manchester City Council,Regeneration Finance,Gas,06-Jul-23,1908159877,Corona Energy Ltd,"£1,045.59"
Manchester City Council,Regeneration Finance,Gas,06-Jul-23,1908159939,Corona Energy Ltd,£557.47
Manchester City Council,Regeneration Finance,Gas,06-Jul-23,1908159940,Corona Energy Ltd,£630.06
Manchester City Council,Regeneration Finance,Gas,06-Jul-23,1908159941,Corona Energy Ltd,"£1,250.20"
Manchester City Council,Regeneration Finance,Gas,06-Jul-23,1908159942,Corona Energy Ltd,"£1,011.51"
Manchester City Council,Regeneration Finance,Gas,06-Jul-23,1908159965,Corona Energy Ltd,"£1,671.62"
Manchester City Council,Regeneration Finance,Gas,06-Jul-23,1908159966,Corona Energy Ltd,£960.77
Manchester City Council,Regeneration Finance,Gas,06-Jul-23,1908159990,Corona Energy Ltd,"£1,364.96"
Manchester City Council,Regeneration Finance,Gas,06-Jul-23,1908159991,Corona Energy Ltd,£961.99
Manchester City Council,Regeneration Finance,Gas,06-Jul-23,1908160000,Corona Energy Ltd,"£1,163.59"
Manchester City Council,Regeneration Finance,Gas,06-Jul-23,1908160001,Corona Energy Ltd,"£1,537.45"
Manchester City Council,Regeneration Finance,Gas,06-Jul-23,1908160008,Corona Energy Ltd,"£2,096.47"
Manchester City Council,Regeneration Finance,Gas,06-Jul-23,1908160009,Corona Energy Ltd,"£1,094.26"
Manchester City Council,Regeneration Finance,Gas,06-Jul-23,1908160010,Corona Energy Ltd,"£1,991.24"
Manchester City Council,Regeneration Finance,Gas,06-Jul-23,1908160011,Corona Energy Ltd,"£1,037.75"
Manchester City Council,Regeneration Finance,Gas,06-Jul-23,1908160012,Corona Energy Ltd,"£1,544.51"
Manchester City Council,Regeneration Finance,Gas,06-Jul-23,1908160013,Corona Energy Ltd,"£1,431.80"
Manchester City Council,Regeneration Finance,Gas,06-Jul-23,1908160020,Corona Energy Ltd,"£1,629.75"
Manchester City Council,Regeneration Finance,Gas,06-Jul-23,1908160021,Corona Energy Ltd,£974.02
Manchester City Council,Regeneration Finance,Gas,06-Jul-23,1908160023,Corona Energy Ltd,£617.65
Manchester City Council,Regeneration Finance,Gas,06-Jul-23,1908160024,Corona Energy Ltd,£684.94
Manchester City Council,Regeneration Finance,Gas,06-Jul-23,1908160025,Corona Energy Ltd,£706.56
Manchester City Council,Regeneration Finance,Gas,06-Jul-23,1908160028,Corona Energy Ltd,"£1,628.48"
Manchester City Council,Regeneration Finance,Gas,06-Jul-23,1908160029,Corona Energy Ltd,"£2,636.59"
Manchester City Council,Regeneration Finance,Gas,06-Jul-23,1908160030,Corona Energy Ltd,"£2,482.13"
Manchester City Council,Regeneration Finance,Gas,06-Jul-23,1908160031,Corona Energy Ltd,"£2,811.17"
Manchester City Council,Regeneration Finance,Gas,06-Jul-23,1908160036,Corona Energy Ltd,"£1,851.28"
Manchester City Council,Regeneration Finance,Gas,06-Jul-23,1908160037,Corona Energy Ltd,"£1,594.17"
Manchester City Council,Regeneration Finance,Gas,06-Jul-23,1908160044,Corona Energy Ltd,£616.34
Manchester City Council,Regeneration Finance,Gas,06-Jul-23,1908160045,Corona Energy Ltd,"£1,038.78"
Manchester City Council,Regeneration Finance,Gas,06-Jul-23,1908160046,Corona Energy Ltd,"£1,357.34"
Manchester City Council,Regeneration Finance,Gas,06-Jul-23,1908160047,Corona Energy Ltd,"£1,830.47"
Manchester City Council,Regeneration Finance,Gas,06-Jul-23,1908160057,Corona Energy Ltd,£555.98
Manchester City Council,Regeneration Finance,Gas,06-Jul-23,1908160060,Corona Energy Ltd,"£1,034.29"
Manchester City Council,Regeneration Finance,Gas,06-Jul-23,1908160061,Corona Energy Ltd,"£1,186.11"
Manchester City Council,Regeneration Finance,Gas,06-Jul-23,1908160062,Corona Energy Ltd,"£3,356.09"
Manchester City Council,Regeneration Finance,Gas,06-Jul-23,1908160063,Corona Energy Ltd,"£1,945.94"
Manchester City Council,Regeneration Finance,Gas,06-Jul-23,1908160066,Corona Energy Ltd,"£1,237.26"
Manchester City Council,Regeneration Finance,Gas,06-Jul-23,1908160067,Corona Energy Ltd,"£2,173.06"
Manchester City Council,Regeneration Finance,Gas,06-Jul-23,1908160078,Corona Energy Ltd,£974.69
Manchester City Council,Regeneration Finance,Gas,06-Jul-23,1908160086,Corona Energy Ltd,£653.56
Manchester City Council,Regeneration Finance,Gas,06-Jul-23,1908160094,Corona Energy Ltd,£528.82
Manchester City Council,Regeneration Finance,Gas,06-Jul-23,1908160118,Corona Energy Ltd,£988.86
Manchester City Council,Regeneration Finance,Gas,06-Jul-23,1908160119,Corona Energy Ltd,£703.72
Manchester City Council,Regeneration Finance,Gas,06-Jul-23,1908160139,Corona Energy Ltd,£630.59
Manchester City Council,Regeneration Finance,Gas,06-Jul-23,1908160146,Corona Energy Ltd,£860.22
Manchester City Council,Regeneration Finance,Gas,06-Jul-23,1908160147,Corona Energy Ltd,£658.60
Manchester City Council,Regeneration Finance,Gas,06-Jul-23,1908160154,Corona Energy Ltd,"£1,091.48"
Manchester City Council,Regeneration Finance,Gas,06-Jul-23,1908160164,Corona Energy Ltd,"£1,321.25"
Manchester City Council,Regeneration Finance,Gas,06-Jul-23,1908160165,Corona Energy Ltd,£827.75
Manchester City Council,Regeneration Finance,Gas,06-Jul-23,1908160170,Corona Energy Ltd,"£1,612.00"
Manchester City Council,Regeneration Finance,Gas,06-Jul-23,1908160171,Corona Energy Ltd,"£1,340.18"
Manchester City Council,Regeneration Finance,Gas,06-Jul-23,1908160179,Corona Energy Ltd,£764.29
Manchester City Council,Regeneration Finance,Gas,06-Jul-23,1908160182,Corona Energy Ltd,£656.70
Manchester City Council,Regeneration Finance,Gas,06-Jul-23,1908160183,Corona Energy Ltd,£766.54
Manchester City Council,Regeneration Finance,Gas,06-Jul-23,1908160204,Corona Energy Ltd,£769.05
Manchester City Council,Regeneration Finance,Gas,06-Jul-23,1908160214,Corona Energy Ltd,£520.54
Manchester City Council,Regeneration Finance,Gas,06-Jul-23,1908160215,Corona Energy Ltd,£615.79
Manchester City Council,Regeneration Finance,Gas,06-Jul-23,1908160220,Corona Energy Ltd,£933.89
Manchester City Council,Regeneration Finance,Gas,06-Jul-23,1908160221,Corona Energy Ltd,£763.82
Manchester City Council,Regeneration Finance,Gas,06-Jul-23,1908160222,Corona Energy Ltd,"£2,498.48"
Manchester City Council,Regeneration Finance,Gas,06-Jul-23,1908160223,Corona Energy Ltd,"£1,383.18"
Manchester City Council,Regeneration Finance,Gas,06-Jul-23,1908160224,Corona Energy Ltd,"£40,608.86"
Manchester City Council,Regeneration Finance,Gas,06-Jul-23,1908160225,Corona Energy Ltd,"£54,660.68"
Manchester City Council,Regeneration Finance,Gas,06-Jul-23,1908160249,Corona Energy Ltd,£635.97
Manchester City Council,Regeneration Finance,Gas,06-Jul-23,1908160251,Corona Energy Ltd,"£1,293.79"
Manchester City Council,Regeneration Finance,Gas,06-Jul-23,1908160252,Corona Energy Ltd,£777.83
Manchester City Council,Corporate Services,Travel Season TLS,06-Jul-23,5105879917,First Bus,£636.50
Manchester City Council,Manchester Leisure,Special Event,06-Jul-23,5105879666,St John Ambulance,"£4,596.80"
Manchester City Council,Highways Services,Grounds Maintenance,06-Jul-23,5105880266,Manchester Central,£600.00
Manchester City Council,Chief Executives,Catering,06-Jul-23,5105880133,Manchester Central,£652.00
Manchester City Council,Chief Executives,Catering,06-Jul-23,5105880134,Manchester Central,£632.50
Manchester City Council,Chief Executives,Catering,06-Jul-23,5105880263,Manchester Central,£981.88
Manchester City Council,Manchester Leisure,Special Event,06-Jul-23,5105880132,Manchester Central,£975.00
Manchester City Council,Chief Executives,Legal Fees,06-Jul-23,5105879981,Weightmans LLP Solicitors,£620.00
Manchester City Council,Chief Executives,Legal Fees,06-Jul-23,5105880213,Weightmans LLP Solicitors,"£4,568.50"
Manchester City Council,Adult Social Care,Equipment,06-Jul-23,5105879685,Aidapt Bathrooms Ltd,"£1,836.00"
Manchester City Council,Manchester Leisure,Special Event,06-Jul-23,5105879733,MK Illuminations UK Ltd,"£49,898.80"
Manchester City Council,Childrens & Education Services,Foster Payments,06-Jul-23,5105879925,Foster Talk,"£3,300.00"
Manchester City Council,Childrens & Education Services,Foster Payments,06-Jul-23,5105879926,Foster Talk,"£3,300.00"
Manchester City Council,Childrens & Education Services,Foster Payments,06-Jul-23,5105880231,Foster Talk,"£3,300.00"
Manchester City Council,Regeneration Finance,Water - Unmetered,06-Jul-23,1908159842,Water Plus Limited,"£4,790.87"
Manchester City Council,Adult Social Care,Rents,06-Jul-23,5105879983,District Homes Cic,"£9,271.43"
Manchester City Council,Chief Executives,Printing,06-Jul-23,5105879957,Impression (Bolton) Ltd,£574.00
Manchester City Council,Chief Executives,Printing,06-Jul-23,5105879958,Impression (Bolton) Ltd,£993.00
Manchester City Council,Adult Social Care,Equipment,06-Jul-23,5105880294,Direct Healthcare Group Ltd,£647.35
Manchester City Council,Chief Executives,Counsel Costs,06-Jul-23,1908157474,Central Chambers,£600.00
Manchester City Council,Adult Social Care,Bed & Breakfast Acc,06-Jul-23,1908158125,TRAVELODGE P CARD ONLY,£948.52
Manchester City Council,Adult Social Care,Bed & Breakfast Acc,06-Jul-23,1908158203,TRAVELODGE P CARD ONLY,"£1,364.62"
Manchester City Council,Adult Social Care,Bed & Breakfast Acc,06-Jul-23,1908158708,TRAVELODGE P CARD ONLY,£505.84
Manchester City Council,Adult Social Care,Bed & Breakfast Acc,06-Jul-23,1908158718,TRAVELODGE P CARD ONLY,"£1,170.81"
Manchester City Council,Adult Social Care,Bed & Breakfast Acc,06-Jul-23,1908158747,TRAVELODGE P CARD ONLY,£541.54
Manchester City Council,Adult Social Care,Bed & Breakfast Acc,06-Jul-23,1908158088,HOLIDAY INN P CARD ONLY,"£1,416.80"
Manchester City Council,Adult Social Care,Bed & Breakfast Acc,06-Jul-23,1908158201,HOLIDAY INN P CARD ONLY,"£31,485.00"
Manchester City Council,Adult Social Care,Bed & Breakfast Acc,06-Jul-23,1908158204,HOLIDAY INN P CARD ONLY,"£4,554.00"
Manchester City Council,Adult Social Care,Bed & Breakfast Acc,06-Jul-23,1908158390,HOLIDAY INN P CARD ONLY,"£9,816.40"
Manchester City Council,Adult Social Care,Bed & Breakfast Acc,06-Jul-23,1908158409,HOLIDAY INN P CARD ONLY,"£9,512.80"
Manchester City Council,Adult Social Care,Bed & Breakfast Acc,06-Jul-23,1908158425,HOLIDAY INN P CARD ONLY,"£1,415.60"
Manchester City Council,Adult Social Care,Bed & Breakfast Acc,06-Jul-23,1908158429,HOLIDAY INN P CARD ONLY,"£2,631.20"
Manchester City Council,Adult Social Care,Bed & Breakfast Acc,06-Jul-23,1908158614,HOLIDAY INN P CARD ONLY,"£1,214.40"
Manchester City Council,Adult Social Care,Bed & Breakfast Acc,06-Jul-23,1908158782,HOLIDAY INN P CARD ONLY,£708.40
Manchester City Council,Adult Social Care,Bed & Breakfast Acc,06-Jul-23,1908158794,HOLIDAY INN P CARD ONLY,£708.40
Manchester City Council,Adult Social Care,Bed & Breakfast Acc,06-Jul-23,1908158869,HOLIDAY INN P CARD ONLY,£708.40
Manchester City Council,Adult Social Care,Bed & Breakfast Acc,06-Jul-23,1908158892,HOLIDAY INN P CARD ONLY,"£1,416.80"
Manchester City Council,Adult Social Care,Bed & Breakfast Acc,06-Jul-23,1908158894,HOLIDAY INN P CARD ONLY,"£8,500.80"
Manchester City Council,Adult Social Care,Bed & Breakfast Acc,06-Jul-23,1908158902,HOLIDAY INN P CARD ONLY,£506.00
Manchester City Council,Adult Social Care,Bed & Breakfast Acc,06-Jul-23,1908158914,HOLIDAY INN P CARD ONLY,"£2,631.20"
Manchester City Council,Highways Services,Vehicle Fuel Costs,06-Jul-23,5105880223,Standard Fuels Oils,£729.14
Manchester City Council,Adult Social Care,Bed & Breakfast Acc,06-Jul-23,5105880019,Hala Guest House,"£2,350.00"
Manchester City Council,Chief Executives,Printing,06-Jul-23,5105879912,Wex Photographic,"£6,265.86"
Manchester City Council,Adult Social Care,Equipment,06-Jul-23,5105880014,Herida Healthcare Plc,"£3,150.60"
Manchester City Council,Adult Social Care,Bed & Breakfast Acc,06-Jul-23,5105880319,247Hotel.Com,£875.00
Manchester City Council,Childrens & Education Services,Childminding Fee Pay,06-Jul-23,5105880018,Over The Rainbow Day Care,£865.30
Manchester City Council,Childrens & Education Services,Equipment,06-Jul-23,1908158162,BKG*HOTEL AT BOOKING.C,"£1,228.50"
Manchester City Council,Childrens & Education Services,Equipment,06-Jul-23,1908159032,SYKES COTTAGES,"£2,686.00"
Manchester City Council,Chief Executives,Equipment,06-Jul-23,1908158100,SHEEN MOBILITY,£560.00
Manchester City Council,Chief Executives,Equipment,06-Jul-23,1908158675,ZOOM.US 888-799-9666,£813.78
Manchester City Council,Corporate Services,Catering,06-Jul-23,1908149888,VUR Trading No. 1 Limited,£850.00
Manchester City Council,Chief Executives,Legal Fees,06-Jul-23,1908158815,WWW.ICO.ORG.UK,"£2,900.00"
Manchester City Council,Chief Executives,Legal Fees,06-Jul-23,1908159043,WWW.JUSTICE.GOV.UK,"£1,500.00"
Manchester City Council,Chief Executives,Legal Fees,06-Jul-23,1908159076,WWW.JUSTICE.GOV.UK,"£1,500.00"
Manchester City Council,Chief Executives,Advertising,06-Jul-23,1908158857,FACEBK HFXMNN3W92,£700.00
Manchester City Council,Chief Executives,Advertising,06-Jul-23,1908159132,FACEBK HHSNAPPV92,£700.00
Manchester City Council,Childrens & Education Services,Bed & Breakfast Acc,06-Jul-23,1908158119,WWW.LUXINN.CO.UK,£950.00
Manchester City Council,Adult Social Care,Bed & Breakfast Acc,06-Jul-23,1908158090,QUICKSPACES,"£1,650.00"
Manchester City Council,Adult Social Care,Bed & Breakfast Acc,06-Jul-23,1908158094,BEST WESTERN HOTEL 99,"£1,330.00"
Manchester City Council,Adult Social Care,Bed & Breakfast Acc,06-Jul-23,1908158097,SQ *AM7 GROUP LTD,"£1,960.00"
Manchester City Council,Adult Social Care,Bed & Breakfast Acc,06-Jul-23,1908158105,MOTEL ONE COM MAN ROYA,"£1,240.00"
Manchester City Council,Adult Social Care,Bed & Breakfast Acc,06-Jul-23,1908158107,QUICKSPACES,"£1,963.10"
Manchester City Council,Adult Social Care,Bed & Breakfast Acc,06-Jul-23,1908158120,BKG*HOTEL AT BOOKING.C,£919.33
Manchester City Council,Adult Social Care,Bed & Breakfast Acc,06-Jul-23,1908158122,BEST WESTERN HOTEL 99,"£2,380.00"
Manchester City Council,Adult Social Care,Bed & Breakfast Acc,06-Jul-23,1908158128,BKG*HOTEL AT BOOKING.C,£703.00
Manchester City Council,Adult Social Care,Bed & Breakfast Acc,06-Jul-23,1908158130,BKG*HOTEL AT BOOKING.C,"£1,146.00"
Manchester City Council,Adult Social Care,Bed & Breakfast Acc,06-Jul-23,1908158133,BKG*HOTEL AT BOOKING.C,£783.00
Manchester City Council,Adult Social Care,Bed & Breakfast Acc,06-Jul-23,1908158154,SQ *AM7 GROUP LTD,"£1,200.00"
Manchester City Council,Adult Social Care,Bed & Breakfast Acc,06-Jul-23,1908158159,PARK VIEW RESIDENCE,"£1,540.00"
Manchester City Council,Adult Social Care,Bed & Breakfast Acc,06-Jul-23,1908158179,QUICKSPACES,"£4,985.00"
Manchester City Council,Adult Social Care,Bed & Breakfast Acc,06-Jul-23,1908158211,MOTEL ONE COM MAN ROYA,"£1,260.00"
Manchester City Council,Adult Social Care,Bed & Breakfast Acc,06-Jul-23,1908158212,PARK CITY SUITES HOTEL,"£1,540.00"
Manchester City Council,Adult Social Care,Bed & Breakfast Acc,06-Jul-23,1908158220,PARK CITY SUITES HOTEL,"£1,540.00"
Manchester City Council,Adult Social Care,Bed & Breakfast Acc,06-Jul-23,1908158280,SQ *AM7 GROUP LTD,"£4,760.00"
Manchester City Council,Adult Social Care,Bed & Breakfast Acc,06-Jul-23,1908158295,VICTORIA PARK  RE,"£1,960.00"
Manchester City Council,Adult Social Care,Bed & Breakfast Acc,06-Jul-23,1908158304,VICTORIA PARK  RE,£980.00
Manchester City Council,Adult Social Care,Bed & Breakfast Acc,06-Jul-23,1908158314,MOTEL ONE COM MAN ROYA,"£1,260.00"
Manchester City Council,Adult Social Care,Bed & Breakfast Acc,06-Jul-23,1908158340,PARK CITY SUITES HOTEL,£750.00
Manchester City Council,Adult Social Care,Bed & Breakfast Acc,06-Jul-23,1908158346,MOTEL ONE MANCHESTER ROYA,"£1,260.00"
Manchester City Council,Adult Social Care,Bed & Breakfast Acc,06-Jul-23,1908158349,BEST WESTERN HOTEL 99,"£1,330.00"
Manchester City Council,Adult Social Care,Bed & Breakfast Acc,06-Jul-23,1908158353,PARK CITY SUITES HOTEL,£700.00
Manchester City Council,Adult Social Care,Bed & Breakfast Acc,06-Jul-23,1908158356,MOTEL ONE MANCHESTER ROYA,"£1,260.00"
Manchester City Council,Adult Social Care,Bed & Breakfast Acc,06-Jul-23,1908158366,MOTEL ONE MANCHESTER ROYA,"£1,260.00"
Manchester City Council,Adult Social Care,Bed & Breakfast Acc,06-Jul-23,1908158374,PARK CITY SUITES HOTEL,£700.00
Manchester City Council,Adult Social Care,Bed & Breakfast Acc,06-Jul-23,1908158375,VICTORIA PARK  RE,"£2,940.00"
Manchester City Council,Adult Social Care,Bed & Breakfast Acc,06-Jul-23,1908158377,QUICKSPACES,"£1,938.50"
Manchester City Council,Adult Social Care,Bed & Breakfast Acc,06-Jul-23,1908158378,MOTEL ONE MANCHESTER ROYA,"£1,260.00"
Manchester City Council,Adult Social Care,Bed & Breakfast Acc,06-Jul-23,1908158398,PARK CITY SUITES HOTEL,£700.00
Manchester City Council,Adult Social Care,Bed & Breakfast Acc,06-Jul-23,1908158407,MOTEL ONE COM MAN ROYA,"£1,260.00"
Manchester City Council,Adult Social Care,Bed & Breakfast Acc,06-Jul-23,1908158413,PARK CITY SUITES HOTEL,£700.00
Manchester City Council,Adult Social Care,Bed & Breakfast Acc,06-Jul-23,1908158434,WWW.IDEALLODGINGS.CO.U,"£3,259.95"
Manchester City Council,Adult Social Care,Bed & Breakfast Acc,06-Jul-23,1908158436,PARK CITY SUITES HOTEL,£700.00
Manchester City Council,Adult Social Care,Bed & Breakfast Acc,06-Jul-23,1908158438,MOTEL ONE COM MAN ROYA,"£1,540.00"
Manchester City Council,Adult Social Care,Bed & Breakfast Acc,06-Jul-23,1908158443,BKG*HOTEL AT BOOKING.C,£817.00
Manchester City Council,Adult Social Care,Bed & Breakfast Acc,06-Jul-23,1908158468,MOTEL ONE COM MAN ROYA,"£1,260.00"
Manchester City Council,Adult Social Care,Bed & Breakfast Acc,06-Jul-23,1908158472,BKG*HOTEL AT BOOKING.C,£828.00
Manchester City Council,Adult Social Care,Bed & Breakfast Acc,06-Jul-23,1908158473,VICTORIA PARK  RE,£980.00
Manchester City Council,Adult Social Care,Bed & Breakfast Acc,06-Jul-23,1908158489,VICTORIA PARK  RE,"£2,940.00"
Manchester City Council,Adult Social Care,Bed & Breakfast Acc,06-Jul-23,1908158506,MOTEL ONE COM MAN ROYA,"£1,260.00"
Manchester City Council,Adult Social Care,Bed & Breakfast Acc,06-Jul-23,1908158517,VICTORIA PARK  RE,£980.00
Manchester City Council,Adult Social Care,Bed & Breakfast Acc,06-Jul-23,1908158519,VICTORIA PARK  RE,£980.00
Manchester City Council,Adult Social Care,Bed & Breakfast Acc,06-Jul-23,1908158535,VICTORIA PARK  RE,£980.00
Manchester City Council,Adult Social Care,Bed & Breakfast Acc,06-Jul-23,1908158542,VICTORIA PARK  RE,£980.00
Manchester City Council,Adult Social Care,Bed & Breakfast Acc,06-Jul-23,1908158550,VICTORIA PARK  RE,"£1,400.00"
Manchester City Council,Adult Social Care,Bed & Breakfast Acc,06-Jul-23,1908158569,VICTORIA PARK  RE,£980.00
Manchester City Council,Adult Social Care,Bed & Breakfast Acc,06-Jul-23,1908158616,SQ *AM7 GROUP LTD,"£5,180.00"
Manchester City Council,Adult Social Care,Bed & Breakfast Acc,06-Jul-23,1908158617,MOTEL ONE COM MAN ROYA,"£1,260.00"
Manchester City Council,Adult Social Care,Bed & Breakfast Acc,06-Jul-23,1908158630,BKG*HOTEL AT BOOKING.C,"£1,678.74"
Manchester City Council,Adult Social Care,Bed & Breakfast Acc,06-Jul-23,1908158638,MOTEL ONE COM MAN ROYA,"£1,260.00"
Manchester City Council,Adult Social Care,Bed & Breakfast Acc,06-Jul-23,1908158688,SQ *AM7 GROUP LTD,£980.00
Manchester City Council,Adult Social Care,Bed & Breakfast Acc,06-Jul-23,1908158709,QUICKSPACES,"£1,085.00"
Manchester City Council,Adult Social Care,Bed & Breakfast Acc,06-Jul-23,1908158716,BKG*HOTEL AT BOOKING.C,£645.00
Manchester City Council,Adult Social Care,Bed & Breakfast Acc,06-Jul-23,1908158726,MOTEL ONE COM MAN ROYA,-£990.00
Manchester City Council,Adult Social Care,Bed & Breakfast Acc,06-Jul-23,1908158728,MOTEL ONE COM MAN ROYA,"£1,260.00"
Manchester City Council,Adult Social Care,Bed & Breakfast Acc,06-Jul-23,1908158735,SQ *AM7 GROUP LTD,"£1,400.00"
Manchester City Council,Adult Social Care,Bed & Breakfast Acc,06-Jul-23,1908158737,BKG*HOTEL AT BOOKING.C,"£1,485.00"
Manchester City Council,Adult Social Care,Bed & Breakfast Acc,06-Jul-23,1908158757,BKG*HOTEL AT BOOKING.C,£642.00
Manchester City Council,Adult Social Care,Bed & Breakfast Acc,06-Jul-23,1908158762,VICTORIA PARK  RE,"£3,360.00"
Manchester City Council,Adult Social Care,Bed & Breakfast Acc,06-Jul-23,1908158769,SQ *AM7 GROUP LTD,£980.00
Manchester City Council,Adult Social Care,Bed & Breakfast Acc,06-Jul-23,1908158770,PARK CITY SUITES HOTEL,"£1,540.00"
Manchester City Council,Adult Social Care,Bed & Breakfast Acc,06-Jul-23,1908158783,PARK CITY SUITES HOTEL,"£1,540.00"
Manchester City Council,Adult Social Care,Bed & Breakfast Acc,06-Jul-23,1908158788,PARK CITY SUITES HOTEL,"£1,540.00"
Manchester City Council,Adult Social Care,Bed & Breakfast Acc,06-Jul-23,1908158823,TRIVELLES ECCLES HOTEL,"£1,680.00"
Manchester City Council,Adult Social Care,Bed & Breakfast Acc,06-Jul-23,1908158826,TRIVELLES ECCLES HOTEL,"£1,400.00"
Manchester City Council,Adult Social Care,Bed & Breakfast Acc,06-Jul-23,1908158828,TRIVELLES ECCLES HOTEL,"£1,400.00"
Manchester City Council,Adult Social Care,Bed & Breakfast Acc,06-Jul-23,1908158834,MOTEL ONE COM MAN ROYA,"£1,240.00"
Manchester City Council,Adult Social Care,Bed & Breakfast Acc,06-Jul-23,1908158838,TRIVELLES ECCLES HOTEL,"£1,540.00"
Manchester City Council,Adult Social Care,Bed & Breakfast Acc,06-Jul-23,1908158842,TRIVELLES ECCLES HOTEL,"£1,400.00"
Manchester City Council,Adult Social Care,Bed & Breakfast Acc,06-Jul-23,1908158843,TRIVELLES ECCLES HOTEL,"£1,540.00"
Manchester City Council,Adult Social Care,Bed & Breakfast Acc,06-Jul-23,1908158849,QUICKSPACES,"£1,451.10"
Manchester City Council,Adult Social Care,Bed & Breakfast Acc,06-Jul-23,1908158851,TRIVELLES ECCLES HOTEL,"£1,400.00"
Manchester City Council,Adult Social Care,Bed & Breakfast Acc,06-Jul-23,1908158859,TRIVELLES ECCLES HOTEL,"£4,150.00"
Manchester City Council,Adult Social Care,Bed & Breakfast Acc,06-Jul-23,1908158863,TRIVELLES ECCLES HOTEL,"£1,400.00"
Manchester City Council,Adult Social Care,Bed & Breakfast Acc,06-Jul-23,1908158864,KENNEDY WRIGHT ASSETS LTD,"£1,540.00"
Manchester City Council,Adult Social Care,Bed & Breakfast Acc,06-Jul-23,1908158865,KENNEDY WRIGHT ASSETS LTD,"£1,540.00"
Manchester City Council,Adult Social Care,Bed & Breakfast Acc,06-Jul-23,1908158867,PARK CITY SUITES HOTEL,"£1,540.00"
Manchester City Council,Adult Social Care,Bed & Breakfast Acc,06-Jul-23,1908158874,PARK CITY SUITES HOTEL,"£1,540.00"
Manchester City Council,Adult Social Care,Bed & Breakfast Acc,06-Jul-23,1908158875,KENNEDY WRIGHT ASSETS LTD,"£1,540.00"
Manchester City Council,Adult Social Care,Bed & Breakfast Acc,06-Jul-23,1908158885,MOTEL ONE COM MAN ROYA,"£1,230.00"
Manchester City Council,Adult Social Care,Bed & Breakfast Acc,06-Jul-23,1908158889,KENNEDY WRIGHT ASSETS LTD,"£1,540.00"
Manchester City Council,Adult Social Care,Bed & Breakfast Acc,06-Jul-23,1908158897,KENNEDY WRIGHT ASSETS LTD,"£1,540.00"
Manchester City Council,Adult Social Care,Bed & Breakfast Acc,06-Jul-23,1908158900,MOTEL ONE COM MAN ROYA,"£1,230.00"
Manchester City Council,Adult Social Care,Bed & Breakfast Acc,06-Jul-23,1908158901,KENNEDY WRIGHT ASSETS LTD,"£1,540.00"
Manchester City Council,Adult Social Care,Bed & Breakfast Acc,06-Jul-23,1908158903,PARK CITY SUITES HOTEL,"£1,540.00"
Manchester City Council,Adult Social Care,Bed & Breakfast Acc,06-Jul-23,1908158904,MOTEL ONE COM MAN ROYA,"£1,230.00"
Manchester City Council,Adult Social Care,Bed & Breakfast Acc,06-Jul-23,1908158908,KENNEDY WRIGHT ASSETS LTD,"£1,540.00"
Manchester City Council,Adult Social Care,Bed & Breakfast Acc,06-Jul-23,1908158910,MOTEL ONE COM MAN ROYA,"£1,230.00"
Manchester City Council,Adult Social Care,Bed & Breakfast Acc,06-Jul-23,1908158912,KENNEDY WRIGHT ASSETS LTD,"£1,540.00"
Manchester City Council,Adult Social Care,Bed & Breakfast Acc,06-Jul-23,1908158913,KENNEDY WRIGHT ASSETS LTD,"£1,540.00"
Manchester City Council,Adult Social Care,Bed & Breakfast Acc,06-Jul-23,1908158916,KENNEDY WRIGHT ASSETS LTD,"£1,540.00"
Manchester City Council,Adult Social Care,Bed & Breakfast Acc,06-Jul-23,1908158920,KENNEDY WRIGHT ASSETS LTD,"£1,540.00"
Manchester City Council,Adult Social Care,Bed & Breakfast Acc,06-Jul-23,1908158953,QUICKSPACES,"£1,985.00"
Manchester City Council,Adult Social Care,Bed & Breakfast Acc,06-Jul-23,1908158977,PARK CITY SUITES HOTEL,"£1,540.00"
Manchester City Council,Adult Social Care,Bed & Breakfast Acc,06-Jul-23,1908158979,SQ *AM7 GROUP LTD,£980.00
Manchester City Council,Adult Social Care,Bed & Breakfast Acc,06-Jul-23,1908158985,PARK CITY SUITES HOTEL,"£1,540.00"
Manchester City Council,Adult Social Care,Bed & Breakfast Acc,06-Jul-23,1908158993,MOTEL ONE COM MAN ROYA,£630.00
Manchester City Council,Adult Social Care,Bed & Breakfast Acc,06-Jul-23,1908159000,PARK CITY SUITES HOTEL,"£1,540.00"
Manchester City Council,Adult Social Care,Bed & Breakfast Acc,06-Jul-23,1908159011,PARK CITY SUITES HOTEL,"£1,540.00"
Manchester City Council,Adult Social Care,Bed & Breakfast Acc,06-Jul-23,1908159033,BKG*HOTEL AT BOOKING.C,£665.00
Manchester City Council,Adult Social Care,Bed & Breakfast Acc,06-Jul-23,1908159047,MOTEL ONE COM MAN ROYA,£580.00
Manchester City Council,Adult Social Care,Bed & Breakfast Acc,06-Jul-23,1908159074,QUICKSPACES,"£1,338.85"
Manchester City Council,Adult Social Care,Bed & Breakfast Acc,06-Jul-23,1908159086,SQ *AM7 GROUP LTD,£980.00
Manchester City Council,Adult Social Care,Bed & Breakfast Acc,06-Jul-23,1908159100,MOTEL ONE COM MAN ROYA,"£1,200.00"
Manchester City Council,Adult Social Care,Bed & Breakfast Acc,06-Jul-23,1908159126,MOTEL ONE COM MAN ROYA,"£1,480.00"
Manchester City Council,Adult Social Care,Bed & Breakfast Acc,06-Jul-23,1908159169,QUICKSPACES,"£1,425.00"
Manchester City Council,Adult Social Care,Bed & Breakfast Acc,06-Jul-23,1908159170,VICTORIA PARK  RE,"£3,920.00"
Manchester City Council,Adult Social Care,Bed & Breakfast Acc,06-Jul-23,1908159190,VICTORIA PARK  RE,"£1,400.00"
Manchester City Council,Adult Social Care,Bed & Breakfast Acc,06-Jul-23,1908159202,VICTORIA PARK  RE,"£2,380.00"
Manchester City Council,Adult Social Care,Bed & Breakfast Acc,06-Jul-23,1908159208,VICTORIA PARK  RE,"£8,260.00"
Manchester City Council,Adult Social Care,Bed & Breakfast Acc,06-Jul-23,1908159220,VICTORIA PARK  RE,£980.00
Manchester City Council,Adult Social Care,Bed & Breakfast Acc,06-Jul-23,5105880036,Redacted Personal Information,"£4,630.00"
Manchester City Council,Chief Executives,Counsel Costs,06-Jul-23,1908157476,Redacted Personal Information,"£1,729.17"
Manchester City Council,Corporate Services,Agency staff provision,07-Jul-23,5105880305,Michael Page International,£672.00
Manchester City Council,Corporate Services,Agency staff provision,07-Jul-23,5105880308,Michael Page International,£672.00
Manchester City Council,Corporate Services,Agency staff provision,07-Jul-23,5105880309,Michael Page International,£672.00
Manchester City Council,Manchester Leisure,Building Materials for direct delivery,07-Jul-23,5105880333,One Green World,"£1,995.00"
Manchester City Council,Highways Services,Compensation Payments,07-Jul-23,1908158063,Virgin Media,"£1,394.34"
Manchester City Council,Adult Social Care,"Consumable items eg Toilet rolls, soap etc",07-Jul-23,5105880057,Redacted Personal Information,"£2,480.00"
Manchester City Council,Housing Revenue Account,Council Dwelling Adaptations,07-Jul-23,5105880080,Hoist & Shower Chair Company,"£2,141.50"
Manchester City Council,Adult Social Care,External repairs and maintenance for buildings,07-Jul-23,5105880378,T F Jones Property Services Ltd,£570.50
Manchester City Council,Adult Social Care,External repairs and maintenance for buildings,07-Jul-23,5105880399,T F Jones Property Services Ltd,"£15,869.00"
Manchester City Council,Regeneration Finance,External repairs and maintenance for buildings,07-Jul-23,5105880310,Redacted Personal Information,"£2,333.62"
Manchester City Council,Corporate Services,Fees,07-Jul-23,5105880366,Pannone Corporate LLP,"£7,800.00"
Manchester City Council,Adult Social Care,Grant and subscriptions awarded,07-Jul-23,5105880344,LGBT Foundation,"£4,795.25"
Manchester City Council,Adult Social Care,Grant and subscriptions awarded,07-Jul-23,5105880299,The Mustard Tree,"£3,011.75"
Manchester City Council,Hospitality + Trading Services,Machinery and equipment repairs,07-Jul-23,5105880424,Fast Hire UK,"£2,319.01"
Manchester City Council,Hospitality + Trading Services,Machinery and equipment repairs,07-Jul-23,5105880425,Fast Hire UK,"£1,035.80"
Manchester City Council,Childrens & Education Services,Payments for services,07-Jul-23,5105880345,Sense,£605.44
Manchester City Council,Childrens & Education Services,Payments for services,07-Jul-23,5105880407,Reed Employment Plc,"£9,696.28"
Manchester City Council,Childrens & Education Services,Payments for services,07-Jul-23,5105880409,Reed Employment Plc,"£11,650.21"
Manchester City Council,Adult Social Care,Payments for services,07-Jul-23,5105880384,Morelife (UK) Ltd,"£3,791.04"
Manchester City Council,Highways Services,Payments to Sub-Contractors,07-Jul-23,5105880373,Utilities Design & Planning Ltd,"£2,000.00"
Manchester City Council,Highways Services,Payments to Sub-Contractors,07-Jul-23,5105880374,Utilities Design & Planning Ltd,"£2,000.00"
Manchester City Council,Manchester Leisure,Payments to Sub-Contractors,07-Jul-23,5105880403,Arboricultural Services Treework,"£1,440.00"
Manchester City Council,Manchester Leisure,Payments to Sub-Contractors,07-Jul-23,5105880404,Arboricultural Services Treework,"£10,750.00"
Manchester City Council,Highways Services,Payments to Sub-Contractors,07-Jul-23,5105879997,Steer Davies & Geave Limited,"£3,176.25"
Manchester City Council,Manchester Leisure,Payments to Sub-Contractors,07-Jul-23,5105879636,E Smith & Son (Nurserymen),"£2,232.30"
Manchester City Council,Regeneration Finance,Professional fees,07-Jul-23,5105880381,Mott Macdonald Uk Limited,"£2,390.00"
Manchester City Council,Manchester Leisure,Professional fees,07-Jul-23,5105880324,International Press Cutting Bureau,"£1,200.00"
Manchester City Council,Corporate Services,Professional fees,07-Jul-23,5105879577,Ernst & Young Llp,"£101,850.00"
Manchester City Council,Childrens & Education Services,Professional fees,07-Jul-23,5105880322,Cellmark,"£1,297.00"
Manchester City Council,Childrens & Education Services,Professional fees,07-Jul-23,5105880337,Afruca,"£2,730.00"
Manchester City Council,Childrens & Education Services,Professional fees,07-Jul-23,5105880338,Afruca,"£3,330.98"
Manchester City Council,Childrens & Education Services,Professional fees,07-Jul-23,5105880339,Afruca,"£2,680.98"
Manchester City Council,Manchester Leisure,Professional fees,07-Jul-23,5105880342,R H Environmental Ltd,"£1,932.23"
Manchester City Council,Manchester Leisure,Professional fees,07-Jul-23,5105880396,County Scientific Services,"£3,120.00"
Manchester City Council,Childrens & Education Services,Professional fees,07-Jul-23,5105880400,Angela Westington Consulting Ltd,"£1,425.00"
Manchester City Council,Manchester Leisure,Professional fees,07-Jul-23,5105880392,Customer First Venue Services,"£8,128.50"
Manchester City Council,Manchester Leisure,Responsive Repairs Work,07-Jul-23,5105880353,EQUANS Regeneration Limited,"£8,079.02"
Manchester City Council,Adult Social Care,Supported Accommodation,07-Jul-23,5105879435,Reed Employment Plc,"£1,479.26"
Manchester City Council,Adult Social Care,Supported Accommodation,07-Jul-23,5105880288,Reed Employment Plc,"-£1,479.26"
Manchester City Council,Adult Social Care,Supported Accommodation,07-Jul-23,5105880398,Mediline Supported Living,"£13,097.98"
Manchester City Council,Adult Social Care,Supported Accommodation,07-Jul-23,5105880402,Independent Living Alliance,"£10,664.85"
Manchester City Council,Regeneration Finance,Third party payments relating to Voluntary Organisations,07-Jul-23,5105880367,Back On Track,"£21,976.00"
Manchester City Council,Adult Social Care,Training and Development,07-Jul-23,5105880401,DCC Interactive Ltd,£845.00
Manchester City Council,Housing Revenue Account,Vehicle Plant Furniture and Equipment,07-Jul-23,5105880361,Insight Direct (Uk) Ltd,£534.50
Manchester City Council,Corporate Services,Works and associated costs for Land and Buildings,07-Jul-23,1908161804,BROWNE JACOBSON LLP,"£229,895.09"
Manchester City Council,Corporate Services,Legal Fees,07-Jul-23,5105880412,Eversheds Llp,"£6,135.90"
Manchester City Council,Adult Social Care,Equipment,07-Jul-23,5105880416,Drive Devilbiss Sidhil Ltd,"£1,727.00"
Manchester City Council,Adult Social Care,Equipment,07-Jul-23,5105880416,Drive Devilbiss Sidhil Ltd,"£3,283.00"
Manchester City Council,Hospitality + Trading Services,Hire of Machinery,07-Jul-23,5105880356,Fast Hire UK,"£8,999.48"
Manchester City Council,Hospitality + Trading Services,Hire of Machinery,07-Jul-23,5105880423,Fast Hire UK,"£8,479.67"
Manchester City Council,Adult Social Care,Equipment,07-Jul-23,5105880405,Bentley Fielden Ltd,"£2,610.00"
Manchester City Council,Regeneration Finance,Legal Fees,07-Jul-23,5105880410,Pinsent Masons LLP,"£3,994.89"
Manchester City Council,Adult Social Care,Equipment,07-Jul-23,5105880397,Drive Devilbiss Healthcare Ltd,"£3,496.32"
Manchester City Council,Corporate Services,Collection Commision,07-Jul-23,5105880375,Verrus (UK) T/A paybyphone,"-£20,721.10"
Manchester City Council,Corporate Services,Collection Commision,07-Jul-23,5105880376,Verrus (UK) T/A paybyphone,"£20,721.10"
Manchester City Council,Regeneration Finance,Grounds Maintenance,07-Jul-23,5105880068,Biffa Municipal Limited,"£4,437.47"
Manchester City Council,Adult Social Care,Rents,07-Jul-23,5105880284,AJD Property Limited,"£10,628.57"
Manchester City Council,Chief Executives,Postage,07-Jul-23,5105880326,Civica Election Services,"£1,371.53"
Manchester City Council,Chief Executives,Postage,07-Jul-23,5105880382,Civica Election Services,"-£1,371.53"
Manchester City Council,Childrens & Education Services,Schools Exp (non py),07-Jul-23,5105880408,The Parochial Church Council,"£5,600.00"
Manchester City Council,Adult Social Care,Rents,07-Jul-23,1908161799,Newswift Management Ltd,"£1,528.42"
Manchester City Council,Adult Social Care,Rents,07-Jul-23,1908161801,Newswift Management Ltd,"£1,491.38"
Manchester City Council,Insurance Fund,Legal Fees,07-Jul-23,5105880415,Redacted Personal Information,£700.00
Manchester City Council,Adult Social Care,Bed & Breakfast Acc,07-Jul-23,5105880334,Redacted Personal Information,"£10,190.00"
Manchester City Council,Adult Social Care,Bed & Breakfast Acc,07-Jul-23,5105880335,Redacted Personal Information,"£4,636.00"
Manchester City Council,Adult Social Care,Legal Fees,07-Jul-23,5105880413,Redacted Personal Information,£500.00
Manchester City Council,Highways Services,Building Materials for direct delivery,08-Jul-23,5105880475,Ecomix Concrete Ltd,"£3,135.00"
Manchester City Council,Manchester Leisure,General Office expenses,08-Jul-23,1700153305,CK ARCHITECTURAL,-£624.00
Manchester City Council,Manchester Leisure,General Office expenses,08-Jul-23,1908158446,CK ARCHITECTURAL,£624.00
Manchester City Council,Manchester Leisure,Payments to Sub-Contractors,08-Jul-23,5105880478,Community Security (North West),"£4,931.22"
Manchester City Council,Manchester Leisure,Professional fees,08-Jul-23,5105880438,Daly Drains Ltd,"£12,173.15"
Manchester City Council,Childrens & Education Services,Transport Coach Hire,08-Jul-23,5105880481,Street Cars,"£20,000.00"
Manchester City Council,Childrens & Education Services,Transport Coach Hire,08-Jul-23,5105880482,Street Cars,"£10,000.00"
Manchester City Council,Childrens & Education Services,Transport Coach Hire,08-Jul-23,5105880483,Street Cars,"£8,885.00"
Manchester City Council,Corporate Services,Transport Taxis,08-Jul-23,1908162342,Street Cars,"£5,000.00"
Manchester City Council,Corporate Services,Transport Taxis,08-Jul-23,1908162343,Street Cars,"£11,442.10"
Manchester City Council,Corporate Services,Transport Taxis,08-Jul-23,1908162344,City Car Club Ltd,"£2,656.61"
Manchester City Council,Manchester Leisure,Vehicle contract hire and leases,08-Jul-23,5105880476,T.H. Horn Ltd,£625.00
Manchester City Council,Hospitality + Trading Services,Vehicle Repairs,08-Jul-23,5105880446,Manchester Van Hire Ltd,"£1,867.50"
Manchester City Council,Childrens & Education Services,Furniture,08-Jul-23,5105880495,Eps Supplies Ltd,£760.31
Manchester City Council,Childrens & Education Services,Furniture,08-Jul-23,5105880496,Eps Supplies Ltd,£551.33
Manchester City Council,Childrens & Education Services,Furniture,08-Jul-23,5105880497,Eps Supplies Ltd,£700.77
Manchester City Council,Hospitality + Trading Services,Vehicle Hire Costs,08-Jul-23,5105880449,Manchester Van Hire Ltd,"£40,193.10"
Manchester City Council,Chief Executives,Agency staff provision,10-Jul-23,5105879842,Venn Group Ltd,"£10,855.08"
Manchester City Council,Chief Executives,Agency staff provision,10-Jul-23,5105879843,Triad Resourcing,"£16,800.00"
Manchester City Council,Chief Executives,Agency staff provision,10-Jul-23,5105879820,G2V Recruitment Grp t/a Vivid Resou,"£7,500.00"
Manchester City Council,Chief Executives,Agency staff provision,10-Jul-23,5105879841,G2V Recruitment Grp t/a Vivid Resou,"£7,676.25"
Manchester City Council,Manchester Leisure,Building Materials for direct delivery,10-Jul-23,5105880453,CPD Property Services,£625.00
Manchester City Council,Manchester Leisure,Building Materials for direct delivery,10-Jul-23,5105880457,CPD Property Services,£500.00
Manchester City Council,Childrens & Education Services,Carer Support Payments ,10-Jul-23,5105880581,Amore Complex Care,"£32,272.69"
Manchester City Council,Highways Services,Compensation Payments,10-Jul-23,1908160542,Redacted Personal Information,"£1,000.00"
Manchester City Council,Corporate Services,Compensation Payments,10-Jul-23,1908161794,Barnes Solicitors LLP Client Accoun,£637.83
Manchester City Council,Corporate Services,Compensation Payments,10-Jul-23,1908161808,Robert Bingham Limited - Client Acc,"£6,750.00"
Manchester City Council,Manchester Leisure,"Consumable items eg Toilet rolls, soap etc",10-Jul-23,5105880062,Biffa Municipal Limited,"£7,500.00"
Manchester City Council,Manchester Leisure,"Consumable items eg Toilet rolls, soap etc",10-Jul-23,1700153322,SAFETYSIGNSUP.COUK,"-£1,379.52"
Manchester City Council,Manchester Leisure,"Consumable items eg Toilet rolls, soap etc",10-Jul-23,1908159113,SAFETYSIGNSUP.COUK,"£1,379.52"
Manchester City Council,Chief Executives,CRB Fees,10-Jul-23,5105880506,Disclosure & Barring Service,"£21,936.00"
Manchester City Council,Regeneration Finance,CRB Fees,10-Jul-23,5105880434,Complete Background Screening Ltd,£756.00
Manchester City Council,Corporate Services,Fees,10-Jul-23,1908149762,Newlyn Plc,"£9,579.60"
Manchester City Council,Chief Executives,Funeral and coroner related services,10-Jul-23,5105880427,Redacted Personal Information,"£1,107.60"
Manchester City Council,Manchester Leisure,Grant and subscriptions awarded,10-Jul-23,5105880555,Royal Exchange Theatre Co Ltd,£500.00
Manchester City Council,Manchester Leisure,Grant and subscriptions awarded,10-Jul-23,5105879336,NEPHRA residents Association,£685.00
Manchester City Council,Adult Social Care,Grant and subscriptions awarded,10-Jul-23,5105880573,Manchester Womens Aid,"£3,333.33"
Manchester City Council,Manchester Leisure,Grant and subscriptions awarded,10-Jul-23,5105880550,North Manchester Community,£500.00
Manchester City Council,Manchester Leisure,I T Provision,10-Jul-23,5105880586,Civica UK Ltd,£625.00
Manchester City Council,Chief Executives,I T Provision,10-Jul-23,5105880542,Insight Direct (Uk) Ltd,"£1,412.10"
Manchester City Council,Regeneration Finance,I T Provision,10-Jul-23,1908163247,AFD Software Limited,"£4,128.00"
Manchester City Council,Insurance Fund,Insurance,10-Jul-23,1908148714,Redacted Personal Information,"£3,244.04"
Manchester City Council,Chief Executives,Licences Purchase,10-Jul-23,5105880531,ESRI (Uk) Ltd,"£3,640.00"
Manchester City Council,Hospitality + Trading Services,Machinery and equipment repairs,10-Jul-23,5105880198,Fast Hire UK,"£1,035.80"
Manchester City Council,Hospitality + Trading Services,Machinery and equipment repairs,10-Jul-23,5105880358,Fast Hire UK,"-£1,035.80"
Manchester City Council,Hospitality + Trading Services,Machinery and equipment repairs,10-Jul-23,5105880360,Fast Hire UK,"£1,035.80"
Manchester City Council,Hospitality + Trading Services,Machinery and equipment repairs,10-Jul-23,5105880422,Fast Hire UK,"-£1,035.80"
Manchester City Council,Adult Social Care,Payments for services,10-Jul-23,5105880530,ADFERIAD RECOVERY,"£3,375.00"
Manchester City Council,Adult Social Care,Payments for services,10-Jul-23,5105880551,ADFERIAD RECOVERY,"£3,375.00"
Manchester City Council,Adult Social Care,Payments for services,10-Jul-23,5105880433,Experian Limited,"£15,532.00"
Manchester City Council,Childrens & Education Services,Payments for services,10-Jul-23,1908149996,The Birtenshaw Group,"£3,306.76"
Manchester City Council,Highways Services,Payments to Sub-Contractors,10-Jul-23,5105879888,Egerton Recovery Ltd,£900.00
Manchester City Council,Manchester Leisure,Payments to Sub-Contractors,10-Jul-23,5105880379,Groundwork & Leisure Services Ltd,"£1,200.00"
Manchester City Council,Chief Executives,Payments to Sub-Contractors,10-Jul-23,5105880509,Redacted Personal Information,£673.50
Manchester City Council,Chief Executives,Payments to Sub-Contractors,10-Jul-23,5105880521,Redacted Personal Information,£651.00
Manchester City Council,Chief Executives,Payments to Sub-Contractors,10-Jul-23,5105880522,Redacted Personal Information,£690.00
Manchester City Council,Highways Services,Private Finance and Public Private partnership initiatives,10-Jul-23,5105880099,Amey Highways Lighting (Manchester),"£757,123.56"
Manchester City Council,Highways Services,Professional fees,10-Jul-23,5105879497,Ove Arup & Partners Ltd,"£27,010.00"
Manchester City Council,Corporate Services,Professional fees,10-Jul-23,5105880352,Mace Ltd,"-£6,397.00"
Manchester City Council,Highways Services,Professional fees,10-Jul-23,5105880418,AECOM Limited,"£17,090.39"
Manchester City Council,Regeneration Finance,Professional fees,10-Jul-23,5105880538,Jacobs UK Ltd,"£1,950.40"
Manchester City Council,Childrens & Education Services,Professional fees,10-Jul-23,1908098488,Civil Costs Specialist Ltd,"£1,744.00"
Manchester City Council,Childrens & Education Services,Professional fees,10-Jul-23,1908106498,Civil Costs Specialist Ltd,"£1,650.00"
Manchester City Council,Regeneration Finance,Professional fees,10-Jul-23,5105880040,Colliers International,"£182,000.00"
Manchester City Council,Manchester Leisure,Professional fees,10-Jul-23,5105879706,Manchester Active,"£39,550.00"
Manchester City Council,Manchester Leisure,Refuse Collection,10-Jul-23,5105880064,Biffa Municipal Limited,"£4,383.00"
Manchester City Council,Manchester Leisure,Refuse Collection,10-Jul-23,5105880066,Biffa Municipal Limited,"£15,000.00"
Manchester City Council,Manchester Leisure,Responsive Repairs Work,10-Jul-23,1908160541,Redacted Personal Information,"£6,007.69"
Manchester City Council,Manchester Leisure,Responsive Repairs Work,10-Jul-23,5105879463,EQUANS Regeneration Limited,"£91,677.06"
Manchester City Council,Manchester Leisure,Responsive Repairs Work,10-Jul-23,5105879464,EQUANS Regeneration Limited,"£125,284.33"
Manchester City Council,Manchester Leisure,Responsive Repairs Work,10-Jul-23,5105879466,EQUANS Regeneration Limited,"£39,798.73"
Manchester City Council,Manchester Leisure,Responsive Repairs Work,10-Jul-23,5105879492,EQUANS Regeneration Limited,"£74,191.68"
Manchester City Council,Adult Social Care,Security,10-Jul-23,5105880545,UNIQUE SPECIALIST SERVICES,"£5,616.00"
Manchester City Council,Chief Executives,Third party payments relating to Voluntary Organisations,10-Jul-23,5105879333,HOME,"£105,699.50"
Manchester City Council,Adult Social Care,Third party payments relating to Voluntary Organisations,10-Jul-23,5105880442,The Depaul Trust,"£10,603.50"
Manchester City Council,Regeneration Finance,Third party payments relating to Voluntary Organisations,10-Jul-23,5105880501,Migrant Support,"£6,285.00"
Manchester City Council,Adult Social Care,Third party payments to Health Authority,10-Jul-23,1908157482,Chelsea & Westminster Hosp NHSFT,"£4,078.86"
Manchester City Council,Adult Social Care,Third party payments to Health Authority,10-Jul-23,1908157551,Guy's and St Thomas' NHS FT,"£1,729.15"
Manchester City Council,Childrens & Education Services,Transport Taxis,10-Jul-23,1908161416,Redacted Personal Information,£887.50
Manchester City Council,Corporate Services,Vehicle Costs,10-Jul-23,1908161813,Cyclescheme Ltd,"£4,376.32"
Manchester City Council,Corporate Services,Vehicle Costs,10-Jul-23,1908161815,Cyclescheme Ltd,"£5,414.98"
Manchester City Council,Chief Executives,Vehicle Plant Furniture and Equipment,10-Jul-23,5105880524,The Networking People (TNP) Ltd,"£7,959.37"
Manchester City Council,Childrens Services,Works and associated costs for Land and Buildings,10-Jul-23,5105879618,J Greenwood (Builders) Limited,"£14,064.68"
Manchester City Council,Corporate Services,Works and associated costs for Land and Buildings,10-Jul-23,5105880572,Rider Levett Bucknall UK Ltd,"£16,940.00"
Manchester City Council,Manchester Leisure,Works and associated costs for Land and Buildings,10-Jul-23,5105880380,Groundwork & Leisure Services Ltd,"£2,816.00"
Manchester City Council,Corporate Services,Works and associated costs for Land and Buildings,10-Jul-23,5105879436,BMS Software (Northern) Ltd,£675.00
Manchester City Council,Adult Social Care,Rents,10-Jul-23,1908163244,Redacted Personal Information,"£1,800.00"
Manchester City Council,Adult Social Care,Equipment,10-Jul-23,5105880432,Sarabec Limited,£767.20
Manchester City Council,Adult Social Care,Catering,10-Jul-23,5105880393,Quaker Trading Ltd,£545.00
Manchester City Council,Highways Services,Legal Fees,10-Jul-23,1908161769,Department For Work & Pensions,£744.00
Manchester City Council,Hospitality + Trading Services,Hire of Machinery,10-Jul-23,5105880200,Fast Hire UK,"£8,479.67"
Manchester City Council,Hospitality + Trading Services,Hire of Machinery,10-Jul-23,5105880357,Fast Hire UK,"-£8,479.67"
Manchester City Council,Hospitality + Trading Services,Hire of Machinery,10-Jul-23,5105880359,Fast Hire UK,"£8,479.67"
Manchester City Council,Hospitality + Trading Services,Hire of Machinery,10-Jul-23,5105880421,Fast Hire UK,"-£8,479.67"
Manchester City Council,Corporate Services,Off Street car parki,10-Jul-23,1908149762,Newlyn Plc,"-£9,579.60"
Manchester City Council,Adult Social Care,Equipment,10-Jul-23,5105880406,Drive Devilbiss Healthcare Ltd,"£6,568.71"
Manchester City Council,Childrens & Education Services,Legal Fees,10-Jul-23,1908073803,Civil Costs Specialist Ltd,£950.00
Manchester City Council,Manchester Leisure,Equipment,10-Jul-23,5105880528,Cromwell Polythene Limited,"£10,883.60"
Manchester City Council,Adult Social Care,Rents,10-Jul-23,5105880534,K L Properties,"£16,325.92"
Manchester City Council,Chief Executives,Counsel Costs,10-Jul-23,1908160305,Central Chambers,£800.00
Manchester City Council,Childrens & Education Services,Radio Charges,10-Jul-23,5105880571,TextLocal Limited,£600.00
Manchester City Council,Manchester Leisure,Printing,10-Jul-23,5105880500,Carbon Creative Limited,£560.00
Manchester City Council,Regeneration Finance,Gas,10-Jul-23,1908160557,M\cr Heat Network Supply Co Ltd,"£11,203.36"
Manchester City Council,Regeneration Finance,Gas,10-Jul-23,1908160559,M\cr Heat Network Supply Co Ltd,"£13,584.48"
Manchester City Council,Regeneration Finance,Electricity,10-Jul-23,1908160560,M\cr Heat Network Supply Co Ltd,"£98,334.18"
Manchester City Council,Adult Social Care,Rents,10-Jul-23,5105880499,R&S Properties Ltd,"£4,320.00"
Manchester City Council,Adult Social Care,Rents,10-Jul-23,1908163243,Lets Live,"£2,400.00"
Manchester City Council,Adult Social Care,Rents,10-Jul-23,1908163245,Newswift Management Ltd,"£5,980.00"
Manchester City Council,Adult Social Care,Rents,10-Jul-23,1908163245,Newswift Management Ltd,"£8,492.00"
Manchester City Council,Adult Social Care,Bed & Breakfast Acc,10-Jul-23,5105880517,Redacted Personal Information,"£10,920.00"
Manchester City Council,Chief Executives,Agency staff provision,11-Jul-23,5105880641,NES UK Limited,"£29,506.80"
Manchester City Council,Chief Executives,Agency staff provision,11-Jul-23,5105880982,Search Consultancy Ltd,"-£2,661.84"
Manchester City Council,Highways Services,Building Materials for direct delivery,11-Jul-23,5105880677,Broxap Ltd,£692.00
Manchester City Council,Manchester Leisure,Building Materials for direct delivery,11-Jul-23,5105880458,Biffa Municipal Limited,"£9,452.25"
Manchester City Council,Housing General Fund,Building Works,11-Jul-23,1908163322,Pollock Lifts Ltd,"£15,453.00"
Manchester City Council,Housing General Fund,Building Works,11-Jul-23,1908163316,Stannah Lift Services Ltd,"£2,789.00"
Manchester City Council,Housing General Fund,Building Works,11-Jul-23,1908163323,Stannah Lift Services Ltd,"£4,357.00"
Manchester City Council,Housing General Fund,Building Works,11-Jul-23,1908163324,Stannah Lift Services Ltd,"£6,839.00"
Manchester City Council,Housing General Fund,Building Works,11-Jul-23,1908163325,Stannah Lift Services Ltd,"£6,040.00"
Manchester City Council,Housing General Fund,Building Works,11-Jul-23,1908163327,Stannah Lift Services Ltd,"£6,848.00"
Manchester City Council,Housing General Fund,Building Works,11-Jul-23,1908163319,Hoist & Shower Chair Company,"£3,028.00"
Manchester City Council,Housing General Fund,Building Works,11-Jul-23,1908163326,Hoist & Shower Chair Company,"£2,913.00"
Manchester City Council,Housing General Fund,Building Works,11-Jul-23,1908163318,Hoist & Shower Chair Company,"£2,698.00"
Manchester City Council,Housing General Fund,Building Works,11-Jul-23,5105879520,One Manchester Limited,"£162,169.71"
Manchester City Council,Housing General Fund,Building Works,11-Jul-23,1908163317,UPS Building & Maintenance Ltd,"£18,388.21"
Manchester City Council,Housing General Fund,Building Works,11-Jul-23,1908163320,UPS Building & Maintenance Ltd,£527.80
Manchester City Council,Housing General Fund,Building Works,11-Jul-23,1908163321,UPS Building & Maintenance Ltd,"£14,323.67"
Manchester City Council,Childrens Services,Building Works,11-Jul-23,5105880747,GJS (Education) Investments Limited,"£547,989.16"
Manchester City Council,Corporate Services,Cash Collection,11-Jul-23,5105880619,NSL Ltd,"£5,593.77"
Manchester City Council,Manchester Leisure,Compensation Payments,11-Jul-23,1908163497,Antony Hodari Holding Ltd,"£18,000.00"
Manchester City Council,Manchester Leisure,Compensation Payments,11-Jul-23,1908163315,Bond Turner Solicitors,"£6,700.00"
Manchester City Council,Manchester Leisure,Compensation Payments,11-Jul-23,1908163512,Bond Turner Solicitors,"£6,250.00"
Manchester City Council,Manchester Leisure,Compensation Payments,11-Jul-23,1908163513,Bond Turner Solicitors,"£1,777.13"
Manchester City Council,Manchester Leisure,Compensation Payments,11-Jul-23,1908163257,Five Paper,£750.00
Manchester City Council,Manchester Leisure,Compensation Payments,11-Jul-23,1908163521,Driscoll Kingston,"£7,500.00"
Manchester City Council,Corporate Services,Compensation Payments,11-Jul-23,1908163258,Clear Law LLP,"£11,502.00"
Manchester City Council,Highways Services,Compensation Payments,11-Jul-23,1908163523,Alkers Solicitors Limited,"£12,588.00"
Manchester City Council,Environment and Operations,Construction Works,11-Jul-23,5105880574,OCU Services Limited,"£18,440.09"
Manchester City Council,Environment and Operations,Construction Works,11-Jul-23,5105880649,OCU Services Limited,"-£18,440.09"
Manchester City Council,Regeneration Finance,Contract Cleaning External,11-Jul-23,5105880629,Yorkshire Purchasing,£513.65
Manchester City Council,Housing Revenue Account,Council Dwelling Adaptations,11-Jul-23,5105880702,Seddon Construction Ltd,"£11,613.33"
Manchester City Council,Housing Revenue Account,Council Dwelling Adaptations,11-Jul-23,5105880802,Knowsley Lift Services Limited,"£28,676.36"
Manchester City Council,Housing Revenue Account,Council Dwelling Fees,11-Jul-23,5105880804,Life Environmental Services,"£1,995.00"
Manchester City Council,Housing Revenue Account,Council Dwelling Fees,11-Jul-23,5105880805,Life Environmental Services,"£2,041.00"
Manchester City Council,Manchester Leisure,External repairs and maintenance for buildings,11-Jul-23,5105880033,Laing O'Rourke Construction Ltd,"£14,843.10"
Manchester City Council,Regeneration Finance,External repairs and maintenance for buildings,11-Jul-23,5105880810,Passivsystems Ltd,"£16,350.80"
Manchester City Council,Adult Social Care,Grant and subscriptions awarded,11-Jul-23,5105880646,Manchester Womens Aid,"£88,179.00"
Manchester City Council,Manchester Leisure,Grant and subscriptions awarded,11-Jul-23,5105880665,North Manchester Community,£700.00
Manchester City Council,Adult Social Care,Grant and subscriptions awarded,11-Jul-23,5105880821,Supporting People In Need,"-£22,000.00"
Manchester City Council,Adult Social Care,Grant and subscriptions awarded,11-Jul-23,5105880825,Supporting People In Need,"£22,000.00"
Manchester City Council,Adult Social Care,Grant and subscriptions awarded,11-Jul-23,5105880777,Lightime CIC,"£7,500.00"
Manchester City Council,Chief Executives,Grant Payments,11-Jul-23,5105880706,Precise Media Monitoring Ltd,"£11,754.96"
Manchester City Council,Childrens & Education Services,Grant Payments,11-Jul-23,1908163517,Paypoint,"£9,186.17"
Manchester City Council,Chief Executives,I T Provision,11-Jul-23,5105880636,Insight Direct (Uk) Ltd,"£4,571.00"
Manchester City Council,Chief Executives,I T Provision,11-Jul-23,5105880656,Insight Direct (Uk) Ltd,"£75,117.00"
Manchester City Council,Corporate Services,I T Provision,11-Jul-23,5105880670,ThinkProject UK Limited,"£2,250.00"
Manchester City Council,Manchester Leisure,Library Materials Acquisition,11-Jul-23,1908163271,Askews and Holts,"£1,046.04"
Manchester City Council,Manchester Leisure,Library Materials Acquisition,11-Jul-23,1908163282,Askews and Holts,£543.97
Manchester City Council,Manchester Leisure,Library Materials Acquisition,11-Jul-23,1908163291,Azhar Enterprises Ltd,£655.50
Manchester City Council,Manchester Leisure,Library Materials Acquisition,11-Jul-23,1908163292,Azhar Enterprises Ltd,£670.00
Manchester City Council,Manchester Leisure,Library Materials Acquisition,11-Jul-23,1908163313,Riley Dunn & Wilson Ltd,"£1,863.18"
Manchester City Council,Childrens & Education Services,Payments for services,11-Jul-23,5105880647,Thompsons Academy Ltd,"£33,610.98"
Manchester City Council,Chief Executives,Payments to Sub-Contractors,11-Jul-23,5105880823,Redacted Personal Information,£547.23
Manchester City Council,Adult Social Care,Personal needs of client,11-Jul-23,5105880773,Prism Medical UK Carefree Division,"£1,053.09"
Manchester City Council,Corporate Services,Professional fees,11-Jul-23,1908158073,Redacted Personal Information,£650.00
Manchester City Council,Corporate Services,Professional fees,11-Jul-23,1908158074,Redacted Personal Information,£550.00
Manchester City Council,Chief Executives,Professional fees,11-Jul-23,1908161814,Redacted Personal Information,£681.64
Manchester City Council,Adult Social Care,Professional fees,11-Jul-23,5105880833,Action First iPeople Ltd,"£1,400.00"
Manchester City Council,Adult Social Care,Professional fees,11-Jul-23,5105880834,Action First iPeople Ltd,£500.00
Manchester City Council,Adult Social Care,Professional fees,11-Jul-23,5105880839,Action First iPeople Ltd,£700.00
Manchester City Council,Adult Social Care,Professional fees,11-Jul-23,5105880840,Action First iPeople Ltd,£500.00
Manchester City Council,Adult Social Care,Professional fees,11-Jul-23,5105880852,Action First iPeople Ltd,£700.00
Manchester City Council,Adult Social Care,Professional fees,11-Jul-23,5105880856,Action First iPeople Ltd,"£1,000.00"
Manchester City Council,Corporate Services,Professional fees,11-Jul-23,5105880721,Institute Of Chartered Accountants,£595.00
Manchester City Council,Childrens & Education Services,Professional fees,11-Jul-23,5105880731,Teaching Personnel Ltd,£714.88
Manchester City Council,Childrens & Education Services,Professional fees,11-Jul-23,5105880733,Teaching Personnel Ltd,£893.60
Manchester City Council,Childrens & Education Services,Professional fees,11-Jul-23,5105880739,Teaching Personnel Ltd,£893.60
Manchester City Council,Childrens & Education Services,Professional fees,11-Jul-23,5105880751,Teaching Personnel Ltd,£893.60
Manchester City Council,Childrens & Education Services,Professional fees,11-Jul-23,5105880752,Teaching Personnel Ltd,£804.24
Manchester City Council,Childrens & Education Services,Professional fees,11-Jul-23,5105880753,Teaching Personnel Ltd,£714.88
Manchester City Council,Childrens & Education Services,Professional fees,11-Jul-23,5105880755,Teaching Personnel Ltd,"£1,161.68"
Manchester City Council,Childrens & Education Services,Professional fees,11-Jul-23,5105880757,Teaching Personnel Ltd,£893.60
Manchester City Council,Childrens & Education Services,Professional fees,11-Jul-23,5105880759,Teaching Personnel Ltd,£893.60
Manchester City Council,Chief Executives,Professional fees,11-Jul-23,1908163393,Applied Psychology Services,£618.68
Manchester City Council,Regeneration Finance,Professional fees,11-Jul-23,5105880620,Freshrb CIC,"£2,000.00"
Manchester City Council,Childrens & Education Services,Professional fees,11-Jul-23,5105880843,Prospero Teaching,£500.00
Manchester City Council,Regeneration Finance,Professional fees,11-Jul-23,5105880625,OPen  (Optimised Environments Ltd),"£5,352.30"
Manchester City Council,Childrens & Education Services,Professional fees,11-Jul-23,5105880667,Pennine School Improvement Ltd,"£1,425.00"
Manchester City Council,Chief Executives,Professional fees,11-Jul-23,5105880576,OTB Engineering Limited,"£57,150.00"
Manchester City Council,Chief Executives,Professional fees,11-Jul-23,5105880577,OTB Engineering Limited,"-£57,150.00"
Manchester City Council,Childrens & Education Services,Professional fees,11-Jul-23,5105880772,The Movez Movement,"£2,697.50"
Manchester City Council,Manchester Leisure,Professional fees,11-Jul-23,1908157690,SK Real Estate,£650.00
Manchester City Council,Manchester Leisure,Professional fees,11-Jul-23,1908157691,SK Real Estate,£650.00
Manchester City Council,Corporate Services,Professional fees,11-Jul-23,1908158071,SK Real Estates,£650.00
Manchester City Council,Chief Executives,Professional fees,11-Jul-23,1908159098,Expert Psychology Consultancy Ltd,£793.60
Manchester City Council,Chief Executives,Professional fees,11-Jul-23,1908161805,CY4OR Legal Ltd,£884.88
Manchester City Council,Corporate Services,Professional fees,11-Jul-23,1908144538,Redacted Personal Information,"£1,000.00"
Manchester City Council,Adult Social Care,Professional fees,11-Jul-23,5105880678,Redacted Personal Information,"£39,617.36"
Manchester City Council,Regeneration Finance,Refuse Collection,11-Jul-23,5105880664,Restore Datashred Limited,"£4,918.61"
Manchester City Council,Childrens & Education Services,Refuse Collection,11-Jul-23,5105880662,Biffa Municipal Limited,"£1,012.50"
Manchester City Council,Regeneration Finance,Removal and Storage of Furniture,11-Jul-23,5105880663,Restore PLC,£657.34
Manchester City Council,Adult Social Care,Security,11-Jul-23,5105880624,UNIQUE SPECIALIST SERVICES,"£1,404.00"
Manchester City Council,Manchester Leisure,Subsistence and Conference Expenses,11-Jul-23,5105880626,Local Government Association,"£1,667.70"
Manchester City Council,Adult Social Care,Subsistence and Conference Expenses,11-Jul-23,5105880803,English Unlocked,"£1,200.00"
Manchester City Council,Manchester Leisure,Supporting People Payments,11-Jul-23,5105880736,The Children'S Society Services Ltd,"£82,027.83"
Manchester City Council,Manchester Leisure,Supporting People Payments,11-Jul-23,5105880742,The Children'S Society Services Ltd,"-£38,500.00"
Manchester City Council,Adult Social Care,Supporting People Payments,11-Jul-23,5105880738,"TLC: Talk, Listen, Change","£38,500.00"
Manchester City Council,Adult Social Care,Third party payments relating to Voluntary Organisations,11-Jul-23,5105880583,LGBT Foundation,"£12,500.00"
Manchester City Council,Childrens & Education Services,Third party payments relating to Voluntary Organisations,11-Jul-23,5105880705,Central Mcr Uni Hospital t/a,"£117,568.24"
Manchester City Council,Adult Social Care,Third party payments relating to Voluntary Organisations,11-Jul-23,5105880645,Manchester Womens Aid,"£41,666.70"
Manchester City Council,Childrens & Education Services,Third party payments relating to Voluntary Organisations,11-Jul-23,5105880651,Healthy Body Healthy Mind CIC,£892.50
Manchester City Council,Regeneration Finance,Third party payments relating to Voluntary Organisations,11-Jul-23,5105880807,Agent Marketing Limited,"£4,981.00"
Manchester City Council,Adult Social Care,Third party payments relating to Voluntary Organisations,11-Jul-23,1908144189,Royal Voluntary Service,"£21,250.00"
Manchester City Council,Adult Social Care,Third party payments to Health Authority,11-Jul-23,5105880028,Northenden Group Practice,"£22,500.00"
Manchester City Council,Childrens & Education Services,Third party payments to other Local Authorities,11-Jul-23,5105880758,St. Anne's CE Primary School,"£1,937.00"
Manchester City Council,Childrens & Education Services,Third party payments to other Local Authorities,11-Jul-23,5105880712,The Orchards School,"£7,110.00"
Manchester City Council,Regeneration Finance,Training and Development,11-Jul-23,5105880708,Trinity College London,£615.00
Manchester City Council,Childrens & Education Services,Training and Development,11-Jul-23,5105880598,Ascension Church Hulme,"£1,092.50"
Manchester City Council,Housing Revenue Account,Vehicle Plant Furniture and Equipment,11-Jul-23,5105880635,Insight Direct (Uk) Ltd,"£6,888.25"
Manchester City Council,Housing Revenue Account,Vehicle Plant Furniture and Equipment,11-Jul-23,5105880657,Insight Direct (Uk) Ltd,"£5,528.47"
Manchester City Council,Manchester Leisure,Works and associated costs for Land and Buildings,11-Jul-23,5105880614,Kompan Ltd,"£10,008.34"
Manchester City Council,Manchester Leisure,Works and associated costs for Land and Buildings,11-Jul-23,5105880033,Laing O'Rourke Construction Ltd,"£638,030.08"
Manchester City Council,Environment and Operations,Works and associated costs for Land and Buildings,11-Jul-23,1908127416,Kings Chambers,"£1,500.00"
Manchester City Council,Housing Revenue Account,Works and associated costs for Land and Buildings,11-Jul-23,1908163593,Northern Gateway (FEC) No.10 Limite,"£13,534.61"
Manchester City Council,Housing Revenue Account,Works and associated costs for Land and Buildings,11-Jul-23,1908163593,Northern Gateway (FEC) No.10 Limite,"£676,730.60"
Manchester City Council,Chief Executives,Counsel Costs,11-Jul-23,1908157689,Redacted Personal Information,"£11,050.00"
Manchester City Council,Chief Executives,Counsel Costs,11-Jul-23,1908161773,Redacted Personal Information,£725.00
Manchester City Council,Chief Executives,Counsel Costs,11-Jul-23,1908161811,Redacted Personal Information,£733.33
Manchester City Council,Chief Executives,Counsel Costs,11-Jul-23,1908161795,Redacted Personal Information,£500.00
Manchester City Council,Manchester Leisure,Special Event,11-Jul-23,5105880537,Showmed,£865.00
Manchester City Council,Chief Executives,Publications,11-Jul-23,5105880717,Lexis Nexis Uk,"£2,697.00"
Manchester City Council,Chief Executives,Publications,11-Jul-23,5105880717,Lexis Nexis Uk,"£2,697.00"
Manchester City Council,Adult Social Care,Rents,11-Jul-23,5105880749,B & A Properties,"£47,091.56"
Manchester City Council,Corporate Services,Mobilephone Charges,11-Jul-23,5105880638,EE/T-Mobile,"-£1,139.37"
Manchester City Council,Corporate Services,Mobilephone Charges,11-Jul-23,5105880639,EE/T-Mobile,£971.45
Manchester City Council,Regeneration Finance,Hire of Equipment,11-Jul-23,5105880503,Siemens Financial Services Ltd,£624.11
Manchester City Council,Regeneration Finance,Hire of Equipment,11-Jul-23,5105880504,Siemens Financial Services Ltd,£696.38
Manchester City Council,Manchester Leisure,Equipment,11-Jul-23,5105880676,Earth Anchors Ltd,£562.00
Manchester City Council,Regeneration Finance,Grounds Maintenance,11-Jul-23,5105880588,Arboricultural Services Treework,£600.00
Manchester City Council,Regeneration Finance,Grounds Maintenance,11-Jul-23,5105880675,Arboricultural Services Treework,£900.00
Manchester City Council,Childrens & Education Services,Signers/Interpreters,11-Jul-23,5105880798,Language Line Ltd,£972.57
Manchester City Council,Childrens & Education Services,Signers/Interpreters,11-Jul-23,5105880800,Language Line Ltd,"£1,450.52"
Manchester City Council,Corporate Services,Signers/Interpreters,11-Jul-23,5105880756,Language Line Ltd,£593.61
Manchester City Council,Childrens & Education Services,Gas,11-Jul-23,5105880778,Manchester School Services Limited,"£80,017.95"
Manchester City Council,Childrens & Education Services,Telecoms Equip,11-Jul-23,5105880652,Insight Direct (Uk) Ltd,£625.90
Manchester City Council,Adult Social Care,Equipment,11-Jul-23,5105880596,Invacare Limited,"£7,865.00"
Manchester City Council,Adult Social Care,Equipment,11-Jul-23,5105880650,Invacare Limited,"£9,912.00"
Manchester City Council,Childrens & Education Services,Day Care Payments,11-Jul-23,5105880634,Tiddlywinks Day Nursery Ltd,"£3,131.20"
Manchester City Council,Chief Executives,Legal Fees,11-Jul-23,5105880613,Weightmans LLP Solicitors,£746.75
Manchester City Council,Chief Executives,Legal Fees,11-Jul-23,5105880640,Weightmans LLP Solicitors,"£6,960.25"
Manchester City Council,Chief Executives,Legal Fees,11-Jul-23,5105880732,Weightmans LLP Solicitors,"£4,353.05"
Manchester City Council,Chief Executives,Legal Fees,11-Jul-23,5105880734,Weightmans LLP Solicitors,"£7,306.75"
Manchester City Council,Chief Executives,Legal Fees,11-Jul-23,5105880735,Weightmans LLP Solicitors,"£3,325.95"
Manchester City Council,Chief Executives,Legal Fees,11-Jul-23,5105880737,Weightmans LLP Solicitors,"£4,804.50"
Manchester City Council,Chief Executives,Legal Fees,11-Jul-23,5105880740,Weightmans LLP Solicitors,£931.00
Manchester City Council,Adult Social Care,Rents,11-Jul-23,5105880610,United Property Management Ltd,£872.00
Manchester City Council,Chief Executives,Rents,11-Jul-23,5105879442,ANS Group PLC,"£50,020.00"
Manchester City Council,Chief Executives,Hire of Equipment,11-Jul-23,5105880698,Universal Live,"-£1,478.50"
Manchester City Council,Adult Social Care,Rents,11-Jul-23,5105880696,Housing Social Ltd,"£36,621.71"
Manchester City Council,Adult Social Care,Rents,11-Jul-23,5105880674,Eeven Homes Ltd.,"£17,890.00"
Manchester City Council,Hospitality + Trading Services,Vehicle Fuel Costs,11-Jul-23,5105880748,Standard Fuels Oils,"£19,589.86"
Manchester City Council,Corporate Services,WPS Awards,11-Jul-23,5105880611,Furniture Resource Centre Ltd,£510.57
Manchester City Council,Chief Executives,Postage,11-Jul-23,5105880697,Civica Election Services,"£1,371.53"
Manchester City Council,Manchester Leisure,Counsel Costs,11-Jul-23,1908163516,Trinity Chambers,"£1,350.00"
Manchester City Council,Adult Social Care,Hire of Premises,11-Jul-23,1908133237,Association of Ukrainians in GB,£550.00
Manchester City Council,Hospitality + Trading Services,Equipment,11-Jul-23,1908161724,Green Goblet Ltd,"£17,116.00"
Manchester City Council,Adult Social Care,Catering Provisions,11-Jul-23,1908132221,Honeypot Catering Service,£750.00
Manchester City Council,Childrens & Education Services,Legal Fees,11-Jul-23,1908163594,ZAFAR AND ASSOCIATES,£560.00
Manchester City Council,Chief Executives,Counsel Costs,11-Jul-23,1908161772,Redacted Personal Information,"£1,093.75"
Manchester City Council,Adult Social Care,Bed & Breakfast Acc,11-Jul-23,5105880719,Redacted Personal Information,"£1,120.00"
Manchester City Council,Chief Executives,Counsel Costs,11-Jul-23,1908158054,Redacted Personal Information,£600.00
Manchester City Council,Chief Executives,Counsel Costs,11-Jul-23,1908158055,Redacted Personal Information,£531.25
Manchester City Council,Chief Executives,Counsel Costs,11-Jul-23,1908158057,Redacted Personal Information,£750.00
Manchester City Council,Adult Social Care,Cleaning Equipment and Materials,12-Jul-23,5105881054,Alliance Disposables Ltd,£880.00
Manchester City Council,Manchester Leisure,Compensation Payments,12-Jul-23,1908163578,Weightmans LLP Solicitors,£586.01
Manchester City Council,Hospitality + Trading Services,Compensation Payments,12-Jul-23,1908166161,Thompsons Solicitors,"£14,186.25"
Manchester City Council,Manchester Leisure,Compensation Payments,12-Jul-23,1908163566,Prowse Phillips Law Ltd,"£7,000.00"
Manchester City Council,Manchester Leisure,Compensation Payments,12-Jul-23,1908163567,Gowing Law Solicitors,"£2,260.00"
Manchester City Council,Manchester Leisure,Compensation Payments,12-Jul-23,1908163574,Irvings Law,"£9,500.00"
Manchester City Council,Manchester Leisure,Compensation Payments,12-Jul-23,1908163575,Gowing Law Solicitors,"£9,500.00"
Manchester City Council,Manchester Leisure,Compensation Payments,12-Jul-23,1908163577,Binghams Solicitors,"£6,250.00"
Manchester City Council,Environment and Operations,Construction Works,12-Jul-23,5105880790,Wilde Consultants Ltd,£896.50
Manchester City Council,Environment and Operations,Construction Works,12-Jul-23,5105880792,Wilde Consultants Ltd,£654.50
Manchester City Council,Environment and Operations,Construction Works,12-Jul-23,5105880898,Wilde Consultants Ltd,-£896.50
Manchester City Council,Environment and Operations,Construction Works,12-Jul-23,5105880899,Wilde Consultants Ltd,-£654.50
Manchester City Council,Environment and Operations,Construction Works,12-Jul-23,5105881036,Wilde Consultants Ltd,"£7,087.50"
Manchester City Council,Environment and Operations,Construction Works,12-Jul-23,5105881037,Wilde Consultants Ltd,"£5,206.25"
Manchester City Council,Environment and Operations,Construction Works,12-Jul-23,5105881039,Wilde Consultants Ltd,£647.00
Manchester City Council,Environment and Operations,Construction Works,12-Jul-23,5105881082,Wilde Consultants Ltd,"£3,105.00"
Manchester City Council,Environment and Operations,Construction Works,12-Jul-23,5105881086,Wilde Consultants Ltd,£636.75
Manchester City Council,Environment and Operations,Construction Works,12-Jul-23,5105881089,Wilde Consultants Ltd,"£3,519.81"
Manchester City Council,Environment and Operations,Construction Works,12-Jul-23,5105881102,Wilde Consultants Ltd,"£3,269.78"
Manchester City Council,Manchester Leisure,"Consumable items eg Toilet rolls, soap etc",12-Jul-23,5105880921,North Manchester Community,"£1,000.00"
Manchester City Council,Manchester Leisure,"Consumable items eg Toilet rolls, soap etc",12-Jul-23,5105880941,Grahams (Holdings) Ltd,£753.00
Manchester City Council,Housing Revenue Account,Council Dwelling Adaptations,12-Jul-23,5105880949,PPG Architectural Coatings UK Ltd,£512.76
Manchester City Council,Housing Revenue Account,Council Dwelling Adaptations,12-Jul-23,5105881025,Emanuel Whittaker Ltd,"£136,545.57"
Manchester City Council,Housing Revenue Account,Council Dwelling Adaptations,12-Jul-23,5105880880,Pts Plumbing Trade Supplies,"£6,448.44"
Manchester City Council,Housing Revenue Account,Council Dwelling Adaptations,12-Jul-23,5105880971,Pts Plumbing Trade Supplies,"£4,404.28"
Manchester City Council,Chief Executives,General Office expenses,12-Jul-23,1908157673,Avr Transcription Ltd,"£1,058.74"
Manchester City Council,Manchester Leisure,Grant and subscriptions awarded,12-Jul-23,5105880256,Oldham Borough Council,"£2,011.55"
Manchester City Council,Adult Social Care,Grant and subscriptions awarded,12-Jul-23,5105880781,LGBT Foundation,"£4,795.25"
Manchester City Council,Manchester Leisure,Grant and subscriptions awarded,12-Jul-23,5105879562,Bolton Mbc,"£10,549.71"
Manchester City Council,Chief Executives,Grant and subscriptions awarded,12-Jul-23,5105881123,Manchester Jazz Festival,"£6,689.25"
Manchester City Council,Chief Executives,Grant and subscriptions awarded,12-Jul-23,5105881125,Castlefield Gallery Limited,"£4,905.45"
Manchester City Council,Manchester Leisure,Grant and subscriptions awarded,12-Jul-23,5105880897,Healthy Me Healthy Communities,£500.00
Manchester City Council,Adult Social Care,Grant and subscriptions awarded,12-Jul-23,5105880876,SSG Sustainable Living,"£95,928.00"
Manchester City Council,Corporate Services,Grant and subscriptions awarded,12-Jul-23,5105880680,The Bread and Butter Thing,"£34,931.76"
Manchester City Council,Manchester Leisure,Grant and subscriptions awarded,12-Jul-23,5105881022,Freshrb CIC,"£3,150.00"
Manchester City Council,Regeneration Finance,I T Provision,12-Jul-23,5105880780,Concerto Support Services,"£33,000.00"
Manchester City Council,Regeneration Finance,I T Provision,12-Jul-23,5105880963,GATEWAY QUALIFICATIONS,"£1,016.00"
Manchester City Council,Adult Social Care,Payments for services,12-Jul-23,5105880884,ACORN Recovery Projects,"£1,607.14"
Manchester City Council,Adult Social Care,Payments for services,12-Jul-23,5105880886,ACORN Recovery Projects,£857.14
Manchester City Council,Adult Social Care,Payments for services,12-Jul-23,5105880887,ACORN Recovery Projects,"£3,321.43"
Manchester City Council,Adult Social Care,Payments for services,12-Jul-23,5105880896,ACORN Recovery Projects,"£2,571.43"
Manchester City Council,Childrens & Education Services,Payments for services,12-Jul-23,5105880994,A S K Healthcare Ltd,"£1,564.00"
Manchester City Council,Childrens & Education Services,Payments for services,12-Jul-23,5105880995,A S K Healthcare Ltd,£736.00
Manchester City Council,Childrens & Education Services,Payments for services,12-Jul-23,5105880996,A S K Healthcare Ltd,£736.00
Manchester City Council,Childrens & Education Services,Payments for services,12-Jul-23,5105880997,A S K Healthcare Ltd,"£1,104.00"
Manchester City Council,Childrens & Education Services,Payments for services,12-Jul-23,5105880998,A S K Healthcare Ltd,£920.00
Manchester City Council,Childrens & Education Services,Payments for services,12-Jul-23,5105881029,Thompsons Academy Ltd,"£44,244.70"
Manchester City Council,Childrens & Education Services,Payments for services,12-Jul-23,5105881010,Staff Resources Ltd,"£5,535.00"
Manchester City Council,Childrens & Education Services,Payments for services,12-Jul-23,5105880860,Care Solutions Recruitment,"£1,038.40"
Manchester City Council,Highways Services,Payments to Sub-Contractors,12-Jul-23,5105881245,Clearway Drainage Systems Ltd,"£10,740.00"
Manchester City Council,Highways Services,Payments to Sub-Contractors,12-Jul-23,5105881246,Clearway Drainage Systems Ltd,"£10,230.00"
Manchester City Council,Highways Services,Payments to Sub-Contractors,12-Jul-23,5105881247,Clearway Drainage Systems Ltd,"£1,450.00"
Manchester City Council,Highways Services,Payments to Sub-Contractors,12-Jul-23,5105881248,Clearway Drainage Systems Ltd,"£4,250.00"
Manchester City Council,Highways Services,Payments to Sub-Contractors,12-Jul-23,5105881249,Clearway Drainage Systems Ltd,"£4,250.00"
Manchester City Council,Highways Services,Payments to Sub-Contractors,12-Jul-23,5105881250,Clearway Drainage Systems Ltd,"£1,700.00"
Manchester City Council,Manchester Leisure,Payments to Sub-Contractors,12-Jul-23,5105880720,Hulme Community Garden Centre,"£1,000.00"
Manchester City Council,Highways Services,Payments to Sub-Contractors,12-Jul-23,5105881129,Fairway Landscapes Ltd,"£2,078.00"
Manchester City Council,Manchester Leisure,Payments to Sub-Contractors,12-Jul-23,5105879731,MRM Street Furniture Ltd,£629.00
Manchester City Council,Manchester Leisure,Payments to Sub-Contractors,12-Jul-23,5105880863,Redacted Personal Information,"£2,050.00"
Manchester City Council,Manchester Leisure,Payments to Sub-Contractors,12-Jul-23,5105880864,Redacted Personal Information,"£2,050.00"
Manchester City Council,Adult Social Care,Personal needs of client,12-Jul-23,5105880974,Care & Independence Ltd,"-£1,625.00"
Manchester City Council,Adult Social Care,Personal needs of client,12-Jul-23,5105880975,Care & Independence Ltd,"£1,625.00"
Manchester City Council,Highways Services,Professional fees,12-Jul-23,5105880797,Wilde Consultants Ltd,"£11,927.31"
Manchester City Council,Highways Services,Professional fees,12-Jul-23,5105880799,Wilde Consultants Ltd,"£5,748.16"
Manchester City Council,Highways Services,Professional fees,12-Jul-23,5105880811,Wilde Consultants Ltd,"£1,090.87"
Manchester City Council,Highways Services,Professional fees,12-Jul-23,5105880812,Wilde Consultants Ltd,£631.49
Manchester City Council,Highways Services,Professional fees,12-Jul-23,5105880813,Wilde Consultants Ltd,"£1,009.15"
Manchester City Council,Highways Services,Professional fees,12-Jul-23,5105880814,Wilde Consultants Ltd,£948.17
Manchester City Council,Highways Services,Professional fees,12-Jul-23,5105880816,Wilde Consultants Ltd,"£1,700.19"
Manchester City Council,Highways Services,Professional fees,12-Jul-23,5105880900,Wilde Consultants Ltd,"-£11,927.31"
Manchester City Council,Highways Services,Professional fees,12-Jul-23,5105880901,Wilde Consultants Ltd,"-£5,748.16"
Manchester City Council,Highways Services,Professional fees,12-Jul-23,5105880903,Wilde Consultants Ltd,"-£1,090.87"
Manchester City Council,Highways Services,Professional fees,12-Jul-23,5105880904,Wilde Consultants Ltd,-£631.49
Manchester City Council,Highways Services,Professional fees,12-Jul-23,5105880905,Wilde Consultants Ltd,"-£1,009.15"
Manchester City Council,Highways Services,Professional fees,12-Jul-23,5105880906,Wilde Consultants Ltd,-£948.17
Manchester City Council,Highways Services,Professional fees,12-Jul-23,5105880907,Wilde Consultants Ltd,"-£1,700.19"
Manchester City Council,Regeneration Finance,Professional fees,12-Jul-23,5105881009,Wythenshawe Community Housing Group,"£18,812.40"
Manchester City Council,Manchester Leisure,Professional fees,12-Jul-23,5105880553,Break into Business Ltd,"£2,524.60"
Manchester City Council,Highways Services,Professional fees,12-Jul-23,5105880870,Waterman Aspen Ltd,"£4,800.00"
Manchester City Council,Childrens & Education Services,Professional fees,12-Jul-23,5105881001,Prospero Teaching,£500.00
Manchester City Council,Childrens & Education Services,Professional fees,12-Jul-23,5105880979,Carole Brooks Associates Limited,"£5,000.00"
Manchester City Council,Childrens & Education Services,Professional fees,12-Jul-23,5105881044,Redacted Personal Information,"£2,700.00"
Manchester City Council,Childrens & Education Services,Professional fees,12-Jul-23,5105881103,Redacted Personal Information,£500.00
Manchester City Council,Manchester Leisure,Refuse Collection,12-Jul-23,5105880948,GTS Steam Cleaners,£727.17
Manchester City Council,Regeneration Finance,Removal and Storage of Furniture,12-Jul-23,5105880724,BCL,£800.00
Manchester City Council,Childrens & Education Services,Residential Care Homes Payments,12-Jul-23,5105881083,Staff Resources Ltd,"£32,584.85"
Manchester City Council,Adult Social Care,Supporting People Payments,12-Jul-23,5105880990,One Manchester Limited,"£15,500.00"
Manchester City Council,Adult Social Care,Third party payments relating to Voluntary Organisations,12-Jul-23,5105880701,Citizens Advice Manchester,"£80,000.00"
Manchester City Council,Adult Social Care,Third party payments relating to Voluntary Organisations,12-Jul-23,5105880693,The Depaul Trust,"£100,000.00"
Manchester City Council,Adult Social Care,Third party payments relating to Voluntary Organisations,12-Jul-23,5105880877,SSG Sustainable Living,"£9,194.61"
Manchester City Council,Adult Social Care,Third party payments relating to Voluntary Organisations,12-Jul-23,5105880878,SSG Sustainable Living,"£4,597.50"
Manchester City Council,Adult Social Care,Third party payments to Health Authority,12-Jul-23,5105880909,Central Mcr Uni Hospital t/a,"£10,000.00"
Manchester City Council,Adult Social Care,Third party payments to Health Authority,12-Jul-23,5105880911,Central Mcr Uni Hospital t/a,"£3,040.58"
Manchester City Council,Adult Social Care,Third party payments to Health Authority,12-Jul-23,5105880913,Central Mcr Uni Hospital t/a,"£15,972.75"
Manchester City Council,Adult Social Care,Third party payments to Health Authority,12-Jul-23,5105880922,Central Mcr Uni Hospital t/a,"£11,293.07"
Manchester City Council,Adult Social Care,Third party payments to Health Authority,12-Jul-23,5105880774,Egton Medical Information,"£4,763.00"
Manchester City Council,Childrens & Education Services,Third party payments to other Local Authorities,12-Jul-23,5105880923,Central Mcr Uni Hospital t/a,"£1,562.50"
Manchester City Council,Childrens & Education Services,Transport Coach Hire,12-Jul-23,5105881122,Cresta Car Hire,£561.40
Manchester City Council,Childrens & Education Services,Transport Coach Hire,12-Jul-23,5105880727,CW Travel,"£40,600.00"
Manchester City Council,Manchester Leisure,Vehicle Plant Furniture and Equipment,12-Jul-23,5105880599,Insight Direct (Uk) Ltd,"£7,879.04"
Manchester City Council,Manchester Leisure,Works and associated costs for Land and Buildings,12-Jul-23,5105881244,Clearway Drainage Systems Ltd,£930.00
Manchester City Council,Housing Revenue Account,Works and associated costs for Land and Buildings,12-Jul-23,5105880928,Jacobs UK Ltd,"£1,725.00"
Manchester City Council,Housing Revenue Account,Works and associated costs for Land and Buildings,12-Jul-23,5105880928,Jacobs UK Ltd,"£3,775.00"
Manchester City Council,Chief Executives,Works and associated costs for Land and Buildings,12-Jul-23,5105880989,Buro Happold Limited,-£710.00
Manchester City Council,Chief Executives,Works and associated costs for Land and Buildings,12-Jul-23,5105881011,Buro Happold Limited,£710.00
Manchester City Council,Chief Executives,Works and associated costs for Land and Buildings,12-Jul-23,5105881015,Buro Happold Limited,"-£1,850.00"
Manchester City Council,Chief Executives,Works and associated costs for Land and Buildings,12-Jul-23,5105881016,Buro Happold Limited,"£1,850.00"
Manchester City Council,Manchester Leisure,Special Event,12-Jul-23,5105880822,Showmed,"£7,968.00"
Manchester City Council,Adult Social Care,Equipment,12-Jul-23,5105880930,Prism Medical UK Carefree Division,£810.95
Manchester City Council,Adult Social Care,Equipment,12-Jul-23,5105880832,Drive Devilbiss Sidhil Ltd,"£5,548.00"
Manchester City Council,Regeneration Finance,Furniture,12-Jul-23,5105881133,BCL,£638.43
Manchester City Council,Manchester Leisure,Hire of Equipment,12-Jul-23,5105881135,Flowbird Smart City Uk Ltd,£780.83
Manchester City Council,Manchester Leisure,Hire of Equipment,12-Jul-23,5105881137,Flowbird Smart City Uk Ltd,£780.83
Manchester City Council,Manchester Leisure,ClothsUniformLaundry,12-Jul-23,5105881220,Arco Group Ltd,£723.20
Manchester City Council,Hospitality + Trading Services,ClothsUniformLaundry,12-Jul-23,5105880121,Arco Group Ltd,£657.35
Manchester City Council,Hospitality + Trading Services,Hire of Machinery,12-Jul-23,5105880938,R & M Developments Ltd,"£1,073.50"
Manchester City Council,Hospitality + Trading Services,Stationery,12-Jul-23,5105881000,Master Moves Ltd,£889.20
Manchester City Council,Manchester Leisure,Water - Metered,12-Jul-23,5105880953,Wythenshawe Forum Trust Ltd,"£1,085.88"
Manchester City Council,Adult Social Care,Hire of Premises,12-Jul-23,5105880945,Quaker Trading Ltd,£876.66
Manchester City Council,Childrens & Education Services,Hire of Premises,12-Jul-23,5105881105,Greater Manchester Police Sports &,£644.88
Manchester City Council,Chief Executives,Advertising,12-Jul-23,5105880970,CIEH,£800.00
Manchester City Council,Chief Executives,Advertising,12-Jul-23,5105880981,CIEH,£800.00
Manchester City Council,Manchester Leisure,Equipment,12-Jul-23,5105880827,MGB Plastics Limited,"£15,948.00"
Manchester City Council,Manchester Leisure,Equipment,12-Jul-23,5105880828,MGB Plastics Limited,"£15,948.00"
Manchester City Council,Manchester Leisure,Equipment,12-Jul-23,5105880829,MGB Plastics Limited,"£17,232.00"
Manchester City Council,Manchester Leisure,Equipment,12-Jul-23,5105880830,MGB Plastics Limited,"£15,948.00"
Manchester City Council,Manchester Leisure,Equipment,12-Jul-23,5105880871,MGB Plastics Limited,"£15,948.00"
Manchester City Council,Adult Social Care,Stationery,12-Jul-23,5105881101,Rotadex,"£1,190.00"
Manchester City Council,Chief Executives,Landline Telephone,12-Jul-23,1908163217,Daisy Corporate Services Trading,"£1,033.80"
Manchester City Council,Chief Executives,Legal Fees,12-Jul-23,5105880902,11KBW,"£2,800.00"
Manchester City Council,Manchester Leisure,Equipment,12-Jul-23,5105881024,Willfab Ltd,£750.00
Manchester City Council,Chief Executives,Hire of Equipment,12-Jul-23,5105880679,Universal Live,"£1,010.00"
Manchester City Council,Corporate Services,Elec Car L-VAT contr,12-Jul-23,1908165102,Northumbria Healthcare NHS FT,"£1,671.05"
Manchester City Council,Corporate Services,Elec Car L-VAT contr,12-Jul-23,1908165105,Northumbria Healthcare NHS FT,£751.38
Manchester City Council,Corporate Services,Elec Car Lease,12-Jul-23,1700153554,Northumbria Healthcare NHS FT,"-£1,961.34"
Manchester City Council,Corporate Services,Elec Car Lease,12-Jul-23,1700153555,Northumbria Healthcare NHS FT,"-£1,267.02"
Manchester City Council,Corporate Services,Elec Car Lease,12-Jul-23,1908165102,Northumbria Healthcare NHS FT,"£18,626.95"
Manchester City Council,Corporate Services,Elec Car Lease,12-Jul-23,1908165105,Northumbria Healthcare NHS FT,"£8,472.00"
Manchester City Council,Regeneration Finance,Data Links,12-Jul-23,5105880940,The Networking People (TNP) Ltd,"£1,896.36"
Manchester City Council,Manchester Leisure,Catering,12-Jul-23,5105880977,Deep Beat Entertainment Ltd,"£1,962.00"
Manchester City Council,Manchester Leisure,Cleaning Equipment,12-Jul-23,5105880993,CPD Property Services,£625.00
Manchester City Council,Adult Social Care,Bed & Breakfast Acc,12-Jul-23,5105880848,VSP BEAUCLIFFE LTD,"£140,505.00"
Manchester City Council,Adult Social Care,Bed & Breakfast Acc,12-Jul-23,5105881091,VSP BEAUCLIFFE LTD,"£110,040.00"
Manchester City Council,Chief Executives,Advertising,12-Jul-23,5105880966,Associated Newspapers Ltd,"£1,872.00"
Manchester City Council,Chief Executives,Advertising,12-Jul-23,5105880967,Associated Newspapers Ltd,"£1,872.00"
Manchester City Council,Chief Executives,Advertising,12-Jul-23,5105880968,Associated Newspapers Ltd,"£1,872.00"
Manchester City Council,Chief Executives,Advertising,12-Jul-23,5105880969,Associated Newspapers Ltd,"£1,872.00"
Manchester City Council,Manchester Leisure,Hire of Equipment,12-Jul-23,5105880841,Arena Group,"£17,780.00"
Manchester City Council,Chief Executives,Agency staff provision,13-Jul-23,5105881326,Michael Page International,"£2,800.00"
Manchester City Council,Chief Executives,Agency staff provision,13-Jul-23,5105881328,Michael Page International,"£6,270.00"
Manchester City Council,Chief Executives,Agency staff provision,13-Jul-23,5105881329,Michael Page International,"£1,120.00"
Manchester City Council,Manchester Leisure,Cleaning Equipment and Materials,13-Jul-23,5105881364,Redgate Holdings Ltd,"£23,343.32"
Manchester City Council,Regeneration Finance,Contract Cleaning External,13-Jul-23,5105880666,Westgrove Support Services Ltd,"£9,808.77"
Manchester City Council,Regeneration Finance,Contract Cleaning External,13-Jul-23,5105881351,Westgrove Support Services Ltd,£741.44
Manchester City Council,Housing Revenue Account,Council Dwelling Adaptations,13-Jul-23,5105881207,Stannah Lift Services Ltd,"£4,872.00"
Manchester City Council,Chief Executives,Expenditure re Internal Trading Ordered Externally,13-Jul-23,5105881163,Civica Election Services,"£9,970.72"
Manchester City Council,Regeneration Finance,External repairs and maintenance for buildings,13-Jul-23,5105879986,MEMS Power Generation,£595.00
Manchester City Council,Hospitality + Trading Services,Funeral and coroner related services,13-Jul-23,5105880580,Visavvi Ltd,"£2,595.00"
Manchester City Council,Manchester Leisure,Goods purchased for resale in Council outlets,13-Jul-23,5105881288,Grantham Book Services Ltd,£684.25
Manchester City Council,Hospitality + Trading Services,Goods purchased for resale in Council outlets,13-Jul-23,5105881214,Albert Jones Memorials,"£2,916.60"
Manchester City Council,Manchester Leisure,Goods purchased for resale in Council outlets,13-Jul-23,5105881281,Redacted Personal Information,£774.91
Manchester City Council,Manchester Leisure,Grant and subscriptions awarded,13-Jul-23,5105881188,Salford Community Leisure Ltd,"£6,045.09"
Manchester City Council,Manchester Leisure,Grant and subscriptions awarded,13-Jul-23,5105881190,Friends of St John's Gardens,"£1,824.00"
Manchester City Council,Adult Social Care,I T Provision,13-Jul-23,5105881149,Percy Westhead & Company,"£7,910.00"
Manchester City Council,Regeneration Finance,I T Provision,13-Jul-23,5105881275,Stellar Network Solutions Ltd,"£6,948.00"
Manchester City Council,Chief Executives,I T Provision,13-Jul-23,5105881257,euNetworks The Loop Limited,"£12,240.00"
Manchester City Council,Manchester Leisure,I T Provision,13-Jul-23,5105881008,Cleardata,£844.16
Manchester City Council,Childrens & Education Services,Payments for services,13-Jul-23,5105881325,Time Specialist Support Ltd,"£13,386.00"
Manchester City Council,Childrens & Education Services,Payments for services,13-Jul-23,5105881327,Time Specialist Support Ltd,"£2,300.00"
Manchester City Council,Adult Social Care,Payments for services,13-Jul-23,5105881286,Morelife (UK) Ltd,"£41,130.25"
Manchester City Council,Adult Social Care,Payments for services,13-Jul-23,5105881287,Morelife (UK) Ltd,"£13,466.67"
Manchester City Council,Childrens & Education Services,Payments for services,13-Jul-23,5105881274,Reaseheath College,"£5,211.50"
Manchester City Council,Childrens & Education Services,Payments for services,13-Jul-23,5105881273,IncludED Learning Ltd,"£38,248.84"
Manchester City Council,Childrens & Education Services,Payments for services,13-Jul-23,5105881344,The 0161 Project Ltd,"£3,770.00"
Manchester City Council,Highways Services,Payments to Sub-Contractors,13-Jul-23,5105880563,Utilities Design & Planning Ltd,"£2,000.00"
Manchester City Council,Highways Services,Payments to Sub-Contractors,13-Jul-23,5105880564,Utilities Design & Planning Ltd,"£1,600.00"
Manchester City Council,Highways Services,Payments to Sub-Contractors,13-Jul-23,5105880565,Utilities Design & Planning Ltd,"£1,600.00"
Manchester City Council,Highways Services,Payments to Sub-Contractors,13-Jul-23,5105880566,Utilities Design & Planning Ltd,"£1,600.00"
Manchester City Council,Highways Services,Payments to Sub-Contractors,13-Jul-23,5105880567,Utilities Design & Planning Ltd,"£1,600.00"
Manchester City Council,Highways Services,Payments to Sub-Contractors,13-Jul-23,5105880568,Utilities Design & Planning Ltd,"£1,600.00"
Manchester City Council,Highways Services,Payments to Sub-Contractors,13-Jul-23,5105880569,Utilities Design & Planning Ltd,"£2,000.00"
Manchester City Council,Highways Services,Payments to Sub-Contractors,13-Jul-23,5105880570,Utilities Design & Planning Ltd,"£2,000.00"
Manchester City Council,Highways Services,Payments to Sub-Contractors,13-Jul-23,5105880591,Utilities Design & Planning Ltd,"£1,600.00"
Manchester City Council,Highways Services,Payments to Sub-Contractors,13-Jul-23,5105880592,Utilities Design & Planning Ltd,"£2,000.00"
Manchester City Council,Highways Services,Payments to Sub-Contractors,13-Jul-23,5105880593,Utilities Design & Planning Ltd,"£2,000.00"
Manchester City Council,Highways Services,Payments to Sub-Contractors,13-Jul-23,5105880594,Utilities Design & Planning Ltd,"£2,000.00"
Manchester City Council,Highways Services,Payments to Sub-Contractors,13-Jul-23,5105881124,Fairway Landscapes Ltd,"£1,885.85"
Manchester City Council,Highways Services,Payments to Sub-Contractors,13-Jul-23,5105879521,Rosgal Ltd,"£12,375.00"
Manchester City Council,Highways Services,Payments to Sub-Contractors,13-Jul-23,5105879523,Rosgal Ltd,"£12,375.00"
Manchester City Council,Highways Services,Payments to Sub-Contractors,13-Jul-23,5105881282,Rhodes and Sons Construction Ltd,"£2,980.48"
Manchester City Council,Highways Services,Payments to Sub-Contractors,13-Jul-23,5105881283,Rhodes and Sons Construction Ltd,"£2,946.05"
Manchester City Council,Highways Services,Payments to Sub-Contractors,13-Jul-23,5105881284,Rhodes and Sons Construction Ltd,"£6,299.50"
Manchester City Council,Highways Services,Payments to Sub-Contractors,13-Jul-23,5105881285,Rhodes and Sons Construction Ltd,"£6,009.99"
Manchester City Council,Chief Executives,Payments to Sub-Contractors,13-Jul-23,5105881261,Redacted Personal Information,£742.93
Manchester City Council,Chief Executives,Payments to Sub-Contractors,13-Jul-23,5105881313,Redacted Personal Information,£715.09
Manchester City Council,Hospitality + Trading Services,Professional fees,13-Jul-23,5105881181,Nabma,£700.00
Manchester City Council,Regeneration Finance,Professional fees,13-Jul-23,5105880873,CBRE Ltd (Glasgow),"£2,200.00"
Manchester City Council,Regeneration Finance,Professional fees,13-Jul-23,5105880874,CBRE Ltd (Glasgow),"-£2,200.00"
Manchester City Council,Chief Executives,Professional fees,13-Jul-23,5105881258,Pilat Europe Ltd,"£3,000.00"
Manchester City Council,Highways Services,Professional fees,13-Jul-23,5105880244,Pell Frischmann Consultants Ltd,"£8,280.00"
Manchester City Council,Manchester Leisure,Professional fees,13-Jul-23,5105881341,Connected Places Catapult,"£55,000.00"
Manchester City Council,Manchester Leisure,Professional fees,13-Jul-23,5105881342,Connected Places Catapult,"£55,000.00"
Manchester City Council,Manchester Leisure,Recycling Facilities,13-Jul-23,5105881349,Redgate Holdings Ltd,"£17,757.60"
Manchester City Council,Manchester Leisure,Refuse Collection,13-Jul-23,5105881347,Redgate Holdings Ltd,"£51,538.26"
Manchester City Council,Manchester Leisure,Refuse Collection,13-Jul-23,5105880815,Biffa Municipal Limited,"£1,355,419.24"
Manchester City Council,Hospitality + Trading Services,Refuse Collection,13-Jul-23,5105880715,Biffa Municipal Limited,"£118,087.86"
Manchester City Council,Manchester Leisure,Removal and Storage of Furniture,13-Jul-23,5105881236,Master Moves Ltd,£697.01
Manchester City Council,Adult Social Care,Security,13-Jul-23,5105881259,UNIQUE SPECIALIST SERVICES,"£1,404.00"
Manchester City Council,Adult Social Care,Supported Accommodation,13-Jul-23,5105881166,Mosscare Housing Ltd,£703.64
Manchester City Council,Adult Social Care,Third party payments to Health Authority,13-Jul-23,5105881126,Central Mcr Uni Hospital t/a,"£10,000.00"
Manchester City Council,Childrens & Education Services,Third party payments to other Local Authorities,13-Jul-23,5105881213,Mersey Vale Primary School,"£3,256.00"
Manchester City Council,Chief Executives,Training and Development,13-Jul-23,1908166529,North East Lincolnshire Council,"£1,000.00"
Manchester City Council,Regeneration Finance,Travel,13-Jul-23,5105881108,Purcell Architecture Limited,"£1,714.39"
Manchester City Council,Libraries and Theatres,Vehicle Plant Furniture and Equipment,13-Jul-23,5105881345,thedesignconcept,"£15,725.00"
Manchester City Council,Corporate Services,Works and associated costs for Land and Buildings,13-Jul-23,5105881173,Mace Ltd,"£33,298.00"
Manchester City Council,Corporate Services,Works and associated costs for Land and Buildings,13-Jul-23,5105881173,Mace Ltd,£680.00
Manchester City Council,Corporate Services,Works and associated costs for Land and Buildings,13-Jul-23,5105881159,Faithful & Gould Ltd,"£37,000.00"
Manchester City Council,Corporate Services,Works and associated costs for Land and Buildings,13-Jul-23,5105881174,Mather & Co Limited,"£2,700.00"
Manchester City Council,Corporate Services,Works and associated costs for Land and Buildings,13-Jul-23,5105881175,Planit,"£3,360.00"
Manchester City Council,Corporate Services,Works and associated costs for Land and Buildings,13-Jul-23,5105881108,Purcell Architecture Limited,"£35,000.00"
Manchester City Council,Corporate Services,Works and associated costs for Land and Buildings,13-Jul-23,5105881109,Purcell Architecture Limited,"£1,500.00"
Manchester City Council,Corporate Services,Works and associated costs for Land and Buildings,13-Jul-23,5105881178,Purcell Architecture Limited,"£7,000.00"
Manchester City Council,Chief Executives,Works and associated costs for Land and Buildings,13-Jul-23,5105881366,Bowmer & Kirkland Ltd,"£73,662.65"
Manchester City Council,Chief Executives,Works and associated costs for Land and Buildings,13-Jul-23,5105881366,Bowmer & Kirkland Ltd,"£458,534.36"
Manchester City Council,Chief Executives,Postage,13-Jul-23,5105881115,Royal Mail Group Plc,"£34,939.66"
Manchester City Council,Adult Social Care,Equipment,13-Jul-23,5105881141,Sarabec Limited,£598.50
Manchester City Council,Manchester Leisure,Hire of Equipment,13-Jul-23,5105881118,Flowbird Smart City Uk Ltd,£780.83
Manchester City Council,Manchester Leisure,Hire of Equipment,13-Jul-23,5105881119,Flowbird Smart City Uk Ltd,"£1,214.00"
Manchester City Council,Manchester Leisure,Hire of Equipment,13-Jul-23,5105881139,Flowbird Smart City Uk Ltd,£780.83
Manchester City Council,Corporate Services,Hire of Equipment,13-Jul-23,5105881309,Flowbird Smart City Uk Ltd,"£3,824.00"
Manchester City Council,Adult Social Care,Equipment,13-Jul-23,5105881189,Back Care Solutions Ltd,£848.89
Manchester City Council,Manchester Leisure,Special Event,13-Jul-23,5105881155,Ramora Ltd,"£1,150.00"
Manchester City Council,Manchester Leisure,Special Event,13-Jul-23,5105880595,Utilities Design & Planning Ltd,"£11,883.26"
Manchester City Council,Manchester Leisure,Special Event,13-Jul-23,5105880710,Utilities Design & Planning Ltd,"£4,350.00"
Manchester City Council,Chief Executives,Paper & Envelopes,13-Jul-23,5105881217,Premier Paper Group Ltd,£745.04
Manchester City Council,Manchester Leisure,Grounds Maintenance,13-Jul-23,5105881361,Redgate Holdings Ltd,"£10,291.46"
